Body,Body Name,Date Paid,Transaction Number,Amount,Supplier Name,Supplier ID,Supplier post code (first 4 digits),Directorate,Service Area,General Ledger code Description,BVACOP class,Revenue/ Capital Spend
http://statistics.data.gov.uk/id/local-authority/00HY,Wiltshire Council,09/07/2012,1900861041,1308.76,1st Choice Cabs ,101285,SP4 ,Neighbourhood & Planning,DCS CTPLD U65,Transport Contracts,Third Party Payments,REVENUE
http://statistics.data.gov.uk/id/local-authority/00HY,Wiltshire Council,09/07/2012,1900861042,1067.23,1st Choice Cabs ,101285,SP4 ,Neighbourhood & Planning,DCS CTPLD U65,Transport Contracts,Third Party Payments,REVENUE
http://statistics.data.gov.uk/id/local-authority/00HY,Wiltshire Council,09/07/2012,1900861044,1080.00,1st Choice Cabs ,101285,SP4 ,Neighbourhood & Planning,DCS CTPLD U65,Transport Contracts,Third Party Payments,REVENUE
http://statistics.data.gov.uk/id/local-authority/00HY,Wiltshire Council,09/07/2012,1900861049,3108.14,1st Choice Cabs ,101285,SP4 ,Neighbourhood & Planning,SEN Primary,Transport Contracts,Third Party Payments,REVENUE
http://statistics.data.gov.uk/id/local-authority/00HY,Wiltshire Council,30/07/2012,1900875898,4105.00,1st Choice Stairlifts ,113095,SN11,Wiltshire Council,Wiltshire Council,Payments to Contractors - Other,Third Party Payments,CAPITAL
http://statistics.data.gov.uk/id/local-authority/00HY,Wiltshire Council,06/07/2012,5106146475,2264.84,2 Care UK Ltd ,110002,BH7 ,Community Services,MH AOWA South,Adult Residential Placements - Spot Purchase,Third Party Payments,REVENUE
http://statistics.data.gov.uk/id/local-authority/00HY,Wiltshire Council,06/07/2012,5106147374,1180.00,2 Care UK Ltd ,110002,BH7 ,Community Services,MH OP North Locality,Adult Residential Placements - Spot Purchase,Third Party Payments,REVENUE
http://statistics.data.gov.uk/id/local-authority/00HY,Wiltshire Council,06/07/2012,5106147375,1180.00,2 Care UK Ltd ,110002,BH7 ,Community Services,Section 117-PCT Clnt,Adult Residential Placements - Spot Purchase,Third Party Payments,REVENUE
http://statistics.data.gov.uk/id/local-authority/00HY,Wiltshire Council,06/07/2012,5106144702,5929.60,22 Wingfield ,129621,BA14,Community Services,CTPLD County CIC U65,Adult Residential Placements - Spot Purchase,Third Party Payments,REVENUE
http://statistics.data.gov.uk/id/local-authority/00HY,Wiltshire Council,04/07/2012,5106146042,4898.00,22 Wingfield ,129621,BA14,Community Services,OP West Locality,Adult Residential Placements - Spot Purchase,Third Party Payments,REVENUE
http://statistics.data.gov.uk/id/local-authority/00HY,Wiltshire Council,04/07/2012,5106146047,7052.00,22 Wingfield ,129621,BA14,Community Services,CTPLD County CIC U65,Adult Residential Placements - Spot Purchase,Third Party Payments,REVENUE
http://statistics.data.gov.uk/id/local-authority/00HY,Wiltshire Council,04/07/2012,5106146052,5400.00,22 Wingfield ,129621,BA14,Community Services,MH AOWA West,Adult Residential Placements - Spot Purchase,Third Party Payments,REVENUE
http://statistics.data.gov.uk/id/local-authority/00HY,Wiltshire Council,13/07/2012,1900870370,976.80,24-7 Taxis ,101087,BA12,Neighbourhood & Planning,SEN Secondary,Transport Contracts,Third Party Payments,REVENUE
http://statistics.data.gov.uk/id/local-authority/00HY,Wiltshire Council,04/07/2012,5106145150,515238.24,4 Children ,113122,E14 ,Children & Education,EYChildCentreTm,Grants Paid to individuals for Tangible Benefits,Supplies and Services,REVENUE
http://statistics.data.gov.uk/id/local-authority/00HY,Wiltshire Council,16/07/2012,1900870938,1490.40,A  and  S Private Hire ,101115,SN15,Neighbourhood & Planning,SEN Primary,Transport Contracts,Third Party Payments,REVENUE
http://statistics.data.gov.uk/id/local-authority/00HY,Wiltshire Council,10/07/2012,1900861335,1023.08,A B Taxis Ltd ,100945,SN12,Neighbourhood & Planning,Mainstream Secondary,Transport Contracts,Third Party Payments,REVENUE
http://statistics.data.gov.uk/id/local-authority/00HY,Wiltshire Council,10/07/2012,1900861340,522.40,A B Taxis Ltd ,100945,SN12,Neighbourhood & Planning,Mainstream Secondary,Transport Contracts,Third Party Payments,REVENUE
http://statistics.data.gov.uk/id/local-authority/00HY,Wiltshire Council,13/07/2012,5106152101,1450.00,A E Smith   Son ,110014,SN3 ,Resources,CoronerGeneral,Body Removals,Supplies and Services,REVENUE
http://statistics.data.gov.uk/id/local-authority/00HY,Wiltshire Council,13/07/2012,5106152102,1212.00,A E Smith   Son ,110014,SN3 ,Resources,CoronerGeneral,Body Removals,Supplies and Services,REVENUE
http://statistics.data.gov.uk/id/local-authority/00HY,Wiltshire Council,17/07/2012,1900871902,11664.66,A G Minibuses ,100878,BA12,Neighbourhood & Planning,Connect 2 Wiltshire,Transport Contracts,Third Party Payments,REVENUE
http://statistics.data.gov.uk/id/local-authority/00HY,Wiltshire Council,17/07/2012,1900871903,997.50,A G Minibuses ,100878,BA12,Neighbourhood & Planning,Mainstream Primary,Transport Contracts,Third Party Payments,REVENUE
http://statistics.data.gov.uk/id/local-authority/00HY,Wiltshire Council,17/07/2012,1900871903,1588.52,A G Minibuses ,100878,BA12,Neighbourhood & Planning,Public Transport,Transport Contracts,Third Party Payments,REVENUE
http://statistics.data.gov.uk/id/local-authority/00HY,Wiltshire Council,17/07/2012,1900871903,4318.23,A G Minibuses ,100878,BA12,Neighbourhood & Planning,Connect 2 Wiltshire,Transport Contracts,Third Party Payments,REVENUE
http://statistics.data.gov.uk/id/local-authority/00HY,Wiltshire Council,23/07/2012,1900873493,1760.31,A G Minibuses ,100878,BA12,Neighbourhood & Planning,Mainstream Primary,Transport Contracts,Third Party Payments,REVENUE
http://statistics.data.gov.uk/id/local-authority/00HY,Wiltshire Council,23/07/2012,1900873497,585.19,A G Minibuses ,100878,BA12,Neighbourhood & Planning,RES 16+ Secondary,Transport Contracts,Third Party Payments,REVENUE
http://statistics.data.gov.uk/id/local-authority/00HY,Wiltshire Council,23/07/2012,1900873506,662.23,A G Minibuses ,100878,BA12,Neighbourhood & Planning,SEN Primary,Transport Contracts,Third Party Payments,REVENUE
http://statistics.data.gov.uk/id/local-authority/00HY,Wiltshire Council,23/07/2012,1900873506,709.52,A G Minibuses ,100878,BA12,Neighbourhood & Planning,SEN Secondary,Transport Contracts,Third Party Payments,REVENUE
http://statistics.data.gov.uk/id/local-authority/00HY,Wiltshire Council,23/07/2012,1900873508,947.10,A G Minibuses ,100878,BA12,Neighbourhood & Planning,Mainstream Primary,Transport Contracts,Third Party Payments,REVENUE
http://statistics.data.gov.uk/id/local-authority/00HY,Wiltshire Council,23/07/2012,1900873513,879.41,A G Minibuses ,100878,BA12,Neighbourhood & Planning,Mainstream Secondary,Transport Contracts,Third Party Payments,REVENUE
http://statistics.data.gov.uk/id/local-authority/00HY,Wiltshire Council,23/07/2012,1900873514,674.58,A G Minibuses ,100878,BA12,Neighbourhood & Planning,SEN 16+ Secondary,Transport Contracts,Third Party Payments,REVENUE
http://statistics.data.gov.uk/id/local-authority/00HY,Wiltshire Council,23/07/2012,1900873515,836.40,A G Minibuses ,100878,BA12,Neighbourhood & Planning,SEN Secondary,Transport Contracts,Third Party Payments,REVENUE
http://statistics.data.gov.uk/id/local-authority/00HY,Wiltshire Council,23/07/2012,1900873521,2097.57,A G Minibuses ,100878,BA12,Neighbourhood & Planning,Mainstream Primary,Transport Contracts,Third Party Payments,REVENUE
http://statistics.data.gov.uk/id/local-authority/00HY,Wiltshire Council,23/07/2012,1900873522,778.00,A G Minibuses ,100878,BA12,Neighbourhood & Planning,SEN Primary,Transport Contracts,Third Party Payments,REVENUE
http://statistics.data.gov.uk/id/local-authority/00HY,Wiltshire Council,23/07/2012,1900873522,778.00,A G Minibuses ,100878,BA12,Neighbourhood & Planning,SEN Secondary,Transport Contracts,Third Party Payments,REVENUE
http://statistics.data.gov.uk/id/local-authority/00HY,Wiltshire Council,23/07/2012,1900873522,778.00,A G Minibuses ,100878,BA12,Neighbourhood & Planning,SEN 16+ Secondary,Transport Contracts,Third Party Payments,REVENUE
http://statistics.data.gov.uk/id/local-authority/00HY,Wiltshire Council,23/07/2012,1900873523,633.46,A G Minibuses ,100878,BA12,Neighbourhood & Planning,SEN Secondary,Transport Contracts,Third Party Payments,REVENUE
http://statistics.data.gov.uk/id/local-authority/00HY,Wiltshire Council,23/07/2012,1900873531,869.00,A G Minibuses ,100878,BA12,Neighbourhood & Planning,Ref&Assess Devizes,Transport Contracts,Third Party Payments,REVENUE
http://statistics.data.gov.uk/id/local-authority/00HY,Wiltshire Council,26/07/2012,1900875790,685.92,A G Minibuses ,100878,BA12,Neighbourhood & Planning,DCS East Locality PI,Transport Contracts,Third Party Payments,REVENUE
http://statistics.data.gov.uk/id/local-authority/00HY,Wiltshire Council,26/07/2012,1900875792,704.87,A G Minibuses ,100878,BA12,Neighbourhood & Planning,DCS East Locality OP,Transport Contracts,Third Party Payments,REVENUE
http://statistics.data.gov.uk/id/local-authority/00HY,Wiltshire Council,26/07/2012,1900875792,1292.25,A G Minibuses ,100878,BA12,Neighbourhood & Planning,DCS Kennet MenHthO65,Transport Contracts,Third Party Payments,REVENUE
http://statistics.data.gov.uk/id/local-authority/00HY,Wiltshire Council,26/07/2012,1900875798,565.11,A G Minibuses ,100878,BA12,Neighbourhood & Planning,DCS CTPLD U65,Transport Contracts,Third Party Payments,REVENUE
http://statistics.data.gov.uk/id/local-authority/00HY,Wiltshire Council,26/07/2012,1900875799,532.90,A G Minibuses ,100878,BA12,Neighbourhood & Planning,DCS East Locality PI,Transport Contracts,Third Party Payments,REVENUE
http://statistics.data.gov.uk/id/local-authority/00HY,Wiltshire Council,26/07/2012,1900875804,1849.71,A G Minibuses ,100878,BA12,Neighbourhood & Planning,DCS CTPLD U65,Transport Contracts,Third Party Payments,REVENUE
http://statistics.data.gov.uk/id/local-authority/00HY,Wiltshire Council,27/07/2012,1900875890,565.05,A G Minibuses ,100878,BA12,Neighbourhood & Planning,Mainstream Primary,Transport Contracts,Third Party Payments,REVENUE
http://statistics.data.gov.uk/id/local-authority/00HY,Wiltshire Council,27/07/2012,1900875890,565.05,A G Minibuses ,100878,BA12,Neighbourhood & Planning,SEN Primary,Transport Contracts,Third Party Payments,REVENUE
http://statistics.data.gov.uk/id/local-authority/00HY,Wiltshire Council,27/07/2012,1900875890,565.05,A G Minibuses ,100878,BA12,Neighbourhood & Planning,SEN Secondary,Transport Contracts,Third Party Payments,REVENUE
http://statistics.data.gov.uk/id/local-authority/00HY,Wiltshire Council,27/07/2012,1900875890,565.05,A G Minibuses ,100878,BA12,Neighbourhood & Planning,SEN 16+ Secondary,Transport Contracts,Third Party Payments,REVENUE
http://statistics.data.gov.uk/id/local-authority/00HY,Wiltshire Council,03/07/2012,1900859417,1209.04,A M S Taxis ,100839,BA14,Neighbourhood & Planning,SEN Primary,Transport Contracts,Third Party Payments,REVENUE
http://statistics.data.gov.uk/id/local-authority/00HY,Wiltshire Council,03/07/2012,1900859475,955.52,A M S Taxis ,100839,BA14,Neighbourhood & Planning,SEN Secondary,Transport Contracts,Third Party Payments,REVENUE
http://statistics.data.gov.uk/id/local-authority/00HY,Wiltshire Council,06/07/2012,1900860875,1473.92,A M S Taxis ,100839,BA14,Neighbourhood & Planning,SEN Primary,Transport Contracts,Third Party Payments,REVENUE
http://statistics.data.gov.uk/id/local-authority/00HY,Wiltshire Council,03/07/2012,1900859434,717.65,A P Taxis ,100628,SN12,Neighbourhood & Planning,SEN Secondary,Transport Contracts,Third Party Payments,REVENUE
http://statistics.data.gov.uk/id/local-authority/00HY,Wiltshire Council,06/07/2012,1900860874,2478.64,A P Taxis ,100628,SN12,Neighbourhood & Planning,SEN Primary,Transport Contracts,Third Party Payments,REVENUE
http://statistics.data.gov.uk/id/local-authority/00HY,Wiltshire Council,06/07/2012,1900860883,943.50,A P Taxis ,100628,SN12,Neighbourhood & Planning,Community Team East,Transport Contracts,Third Party Payments,REVENUE
http://statistics.data.gov.uk/id/local-authority/00HY,Wiltshire Council,03/07/2012,1900859428,1316.48,A1 Cab Company ,101233,SP4 ,Neighbourhood & Planning,SEN Secondary,Transport Contracts,Third Party Payments,REVENUE
http://statistics.data.gov.uk/id/local-authority/00HY,Wiltshire Council,03/07/2012,1900859429,2649.60,A1 Cab Company ,101233,SP4 ,Neighbourhood & Planning,SEN Secondary,Transport Contracts,Third Party Payments,REVENUE
http://statistics.data.gov.uk/id/local-authority/00HY,Wiltshire Council,03/07/2012,1900859430,846.15,A1 Cab Company ,101233,SP4 ,Neighbourhood & Planning,Mainstream Primary,Transport Contracts,Third Party Payments,REVENUE
http://statistics.data.gov.uk/id/local-authority/00HY,Wiltshire Council,03/07/2012,1900859438,624.00,A1 Cab Company ,101233,SP4 ,Neighbourhood & Planning,YPSS Kennet,Transport Contracts,Third Party Payments,REVENUE
http://statistics.data.gov.uk/id/local-authority/00HY,Wiltshire Council,03/07/2012,1900859439,640.00,A1 Cab Company ,101233,SP4 ,Neighbourhood & Planning,SEN Primary,Transport Contracts,Third Party Payments,REVENUE
http://statistics.data.gov.uk/id/local-authority/00HY,Wiltshire Council,09/07/2012,1900860947,10916.16,A2 Winchester Ltd ,101167,SO23,Neighbourhood & Planning,HousingOptionsOther,Payments to Contractors - Other,Third Party Payments,REVENUE
http://statistics.data.gov.uk/id/local-authority/00HY,Wiltshire Council,16/07/2012,5106145220,16088.00,Aareon Uk Ltd ,113252,CV8 ,Wiltshire Council,Wiltshire Council,ICT - Support arrangements,Supplies and Services,CAPITAL
http://statistics.data.gov.uk/id/local-authority/00HY,Wiltshire Council,16/07/2012,5106145221,973.00,Aareon Uk Ltd ,113252,CV8 ,Wiltshire Council,Wiltshire Council,ICT - Support arrangements,Supplies and Services,CAPITAL
http://statistics.data.gov.uk/id/local-authority/00HY,Wiltshire Council,16/07/2012,5106145222,973.00,Aareon Uk Ltd ,113252,CV8 ,Wiltshire Council,Wiltshire Council,ICT - Support arrangements,Supplies and Services,CAPITAL
http://statistics.data.gov.uk/id/local-authority/00HY,Wiltshire Council,16/07/2012,5106145223,873.00,Aareon Uk Ltd ,113252,CV8 ,Wiltshire Council,Wiltshire Council,ICT - Support arrangements,Supplies and Services,CAPITAL
http://statistics.data.gov.uk/id/local-authority/00HY,Wiltshire Council,16/07/2012,5106145224,873.00,Aareon Uk Ltd ,113252,CV8 ,Wiltshire Council,Wiltshire Council,ICT - Support arrangements,Supplies and Services,CAPITAL
http://statistics.data.gov.uk/id/local-authority/00HY,Wiltshire Council,16/07/2012,5106145225,873.00,Aareon Uk Ltd ,113252,CV8 ,Wiltshire Council,Wiltshire Council,ICT - Support arrangements,Supplies and Services,CAPITAL
http://statistics.data.gov.uk/id/local-authority/00HY,Wiltshire Council,16/07/2012,5106145226,873.00,Aareon Uk Ltd ,113252,CV8 ,Wiltshire Council,Wiltshire Council,ICT - Support arrangements,Supplies and Services,CAPITAL
http://statistics.data.gov.uk/id/local-authority/00HY,Wiltshire Council,27/07/2012,5106154207,873.00,Aareon Uk Ltd ,113252,CV8 ,Wiltshire Council,Wiltshire Council,ICT - Support arrangements,Supplies and Services,CAPITAL
http://statistics.data.gov.uk/id/local-authority/00HY,Wiltshire Council,27/07/2012,5106154208,873.00,Aareon Uk Ltd ,113252,CV8 ,Wiltshire Council,Wiltshire Council,ICT - Support arrangements,Supplies and Services,CAPITAL
http://statistics.data.gov.uk/id/local-authority/00HY,Wiltshire Council,27/07/2012,5106154209,873.00,Aareon Uk Ltd ,113252,CV8 ,Wiltshire Council,Wiltshire Council,ICT - Support arrangements,Supplies and Services,CAPITAL
http://statistics.data.gov.uk/id/local-authority/00HY,Wiltshire Council,27/07/2012,5106154210,750.00,Aareon Uk Ltd ,113252,CV8 ,Wiltshire Council,Wiltshire Council,ICT - Support arrangements,Supplies and Services,CAPITAL
http://statistics.data.gov.uk/id/local-authority/00HY,Wiltshire Council,27/07/2012,5106154211,873.00,Aareon Uk Ltd ,113252,CV8 ,Wiltshire Council,Wiltshire Council,ICT - Support arrangements,Supplies and Services,CAPITAL
http://statistics.data.gov.uk/id/local-authority/00HY,Wiltshire Council,27/07/2012,5106154212,873.00,Aareon Uk Ltd ,113252,CV8 ,Wiltshire Council,Wiltshire Council,ICT - Support arrangements,Supplies and Services,CAPITAL
http://statistics.data.gov.uk/id/local-authority/00HY,Wiltshire Council,04/07/2012,1900860104,675.00,Abbey Taxis (Swindon) Ltd ,100920,SN2 ,Neighbourhood & Planning,Mainstream Secondary,Transport Contracts,Third Party Payments,REVENUE
http://statistics.data.gov.uk/id/local-authority/00HY,Wiltshire Council,16/07/2012,1900870939,529.92,Abbey Taxis (Swindon) Ltd ,100920,SN2 ,Neighbourhood & Planning,SEN Secondary,Transport Contracts,Third Party Payments,REVENUE
http://statistics.data.gov.uk/id/local-authority/00HY,Wiltshire Council,16/07/2012,1900870939,529.92,Abbey Taxis (Swindon) Ltd ,100920,SN2 ,Neighbourhood & Planning,SEN 16+ Secondary,Transport Contracts,Third Party Payments,REVENUE
http://statistics.data.gov.uk/id/local-authority/00HY,Wiltshire Council,16/07/2012,1900870942,534.06,Abbey Taxis (Swindon) Ltd ,100920,SN2 ,Neighbourhood & Planning,SEN Primary,Transport Contracts,Third Party Payments,REVENUE
http://statistics.data.gov.uk/id/local-authority/00HY,Wiltshire Council,16/07/2012,1900870943,1334.08,Abbey Taxis (Swindon) Ltd ,100920,SN2 ,Neighbourhood & Planning,SEN Secondary,Transport Contracts,Third Party Payments,REVENUE
http://statistics.data.gov.uk/id/local-authority/00HY,Wiltshire Council,16/07/2012,1900870950,927.36,Abbey Taxis (Swindon) Ltd ,100920,SN2 ,Neighbourhood & Planning,SEN Primary,Transport Contracts,Third Party Payments,REVENUE
http://statistics.data.gov.uk/id/local-authority/00HY,Wiltshire Council,17/07/2012,1900871874,957.72,Abbey Taxis (Swindon) Ltd ,100920,SN2 ,Neighbourhood & Planning,Mainstream Secondary,Transport Contracts,Third Party Payments,REVENUE
http://statistics.data.gov.uk/id/local-authority/00HY,Wiltshire Council,17/07/2012,1900871875,1044.80,Abbey Taxis (Swindon) Ltd ,100920,SN2 ,Neighbourhood & Planning,SEN Secondary,Transport Contracts,Third Party Payments,REVENUE
http://statistics.data.gov.uk/id/local-authority/00HY,Wiltshire Council,18/07/2012,1900872541,728.64,Abbey Taxis (Swindon) Ltd ,100920,SN2 ,Neighbourhood & Planning,Mainstream Primary,Transport Contracts,Third Party Payments,REVENUE
http://statistics.data.gov.uk/id/local-authority/00HY,Wiltshire Council,18/07/2012,1900872571,745.20,Abbey Taxis (Swindon) Ltd ,100920,SN2 ,Neighbourhood & Planning,SEN Secondary,Transport Contracts,Third Party Payments,REVENUE
http://statistics.data.gov.uk/id/local-authority/00HY,Wiltshire Council,18/07/2012,1900872576,1521.46,Abbey Taxis (Swindon) Ltd ,100920,SN2 ,Neighbourhood & Planning,SEN Primary,Transport Contracts,Third Party Payments,REVENUE
http://statistics.data.gov.uk/id/local-authority/00HY,Wiltshire Council,18/07/2012,1900872578,524.68,Abbey Taxis (Swindon) Ltd ,100920,SN2 ,Neighbourhood & Planning,Mainstream Secondary,Transport Contracts,Third Party Payments,REVENUE
http://statistics.data.gov.uk/id/local-authority/00HY,Wiltshire Council,18/07/2012,1900872580,527.14,Abbey Taxis (Swindon) Ltd ,100920,SN2 ,Neighbourhood & Planning,SEN Primary,Transport Contracts,Third Party Payments,REVENUE
http://statistics.data.gov.uk/id/local-authority/00HY,Wiltshire Council,18/07/2012,1900872580,1317.90,Abbey Taxis (Swindon) Ltd ,100920,SN2 ,Neighbourhood & Planning,Mainstream Primary,Transport Contracts,Third Party Payments,REVENUE
http://statistics.data.gov.uk/id/local-authority/00HY,Wiltshire Council,23/07/2012,1900873566,1291.00,Abbey Taxis (Swindon) Ltd ,100920,SN2 ,Neighbourhood & Planning,N&E Children w/Dis,Transport Contracts,Third Party Payments,REVENUE
http://statistics.data.gov.uk/id/local-authority/00HY,Wiltshire Council,26/07/2012,1900875788,1958.00,Abbey Taxis (Swindon) Ltd ,100920,SN2 ,Neighbourhood & Planning,N&E Children w/Dis,Transport Contracts,Third Party Payments,REVENUE
http://statistics.data.gov.uk/id/local-authority/00HY,Wiltshire Council,10/07/2012,1900861301,520.00,Abbey Taxis Ltd ,101080,BA2 ,Neighbourhood & Planning,Mainstream Secondary,Transport Contracts,Third Party Payments,REVENUE
http://statistics.data.gov.uk/id/local-authority/00HY,Wiltshire Council,17/07/2012,1900871897,1071.00,Abbey Taxis Ltd ,101080,BA2 ,Neighbourhood & Planning,Community Team East,Transport Contracts,Third Party Payments,REVENUE
http://statistics.data.gov.uk/id/local-authority/00HY,Wiltshire Council,17/07/2012,1900871897,2478.20,Abbey Taxis Ltd ,101080,BA2 ,Neighbourhood & Planning,LAC&16+ North&East,Transport Contracts,Third Party Payments,REVENUE
http://statistics.data.gov.uk/id/local-authority/00HY,Wiltshire Council,18/07/2012,1900872598,967.69,Abbey Taxis Ltd ,101080,BA2 ,Neighbourhood & Planning,Mainstream Primary,Transport Contracts,Third Party Payments,REVENUE
http://statistics.data.gov.uk/id/local-authority/00HY,Wiltshire Council,18/07/2012,1900872599,1391.10,Abbey Taxis Ltd ,101080,BA2 ,Neighbourhood & Planning,SEN Primary,Transport Contracts,Third Party Payments,REVENUE
http://statistics.data.gov.uk/id/local-authority/00HY,Wiltshire Council,18/07/2012,1900872604,736.00,Abbey Taxis Ltd ,101080,BA2 ,Neighbourhood & Planning,SEN Secondary,Transport Contracts,Third Party Payments,REVENUE
http://statistics.data.gov.uk/id/local-authority/00HY,Wiltshire Council,18/07/2012,1900872605,1273.28,Abbey Taxis Ltd ,101080,BA2 ,Neighbourhood & Planning,SEN Secondary,Transport Contracts,Third Party Payments,REVENUE
http://statistics.data.gov.uk/id/local-authority/00HY,Wiltshire Council,06/07/2012,5106139708,3266.97,Abicare Services Ltd Homecare ,110031,SP2 ,Community Services,OP West Locality,Adult Domiciliary Care - Mileage,Third Party Payments,REVENUE
http://statistics.data.gov.uk/id/local-authority/00HY,Wiltshire Council,02/07/2012,5106142798,7956.60,Abicare Services Ltd Homecare ,110031,SP2 ,Community Services,OP South Locality,Adult Domiciliary Care - Block Contribution,Income,REVENUE
http://statistics.data.gov.uk/id/local-authority/00HY,Wiltshire Council,06/07/2012,5106142810,1263.63,Abicare Services Ltd Homecare ,110031,SP2 ,Community Services,CTPLD County CIC U65,Adult Domiciliary Care - Spot,Third Party Payments,REVENUE
http://statistics.data.gov.uk/id/local-authority/00HY,Wiltshire Council,17/07/2012,5106152522,622.48,Abicare Services Ltd Homecare ,110031,SP2 ,Community Services,PI South Locality,Adult Domiciliary Care - Block Contribution,Income,REVENUE
http://statistics.data.gov.uk/id/local-authority/00HY,Wiltshire Council,24/07/2012,5106154686,6844.30,Abicare Services Ltd Homecare ,110031,SP2 ,Community Services,OP South Locality,Adult Domiciliary Care - Block,Third Party Payments,REVENUE
http://statistics.data.gov.uk/id/local-authority/00HY,Wiltshire Council,26/07/2012,5106156481,1545.54,Abicare Services Ltd Homecare ,110031,SP2 ,Community Services,MH OP South Locality,Adult Domiciliary Care - Spot,Third Party Payments,REVENUE
http://statistics.data.gov.uk/id/local-authority/00HY,Wiltshire Council,30/07/2012,5106158190,2132.70,Abicare Services Ltd Homecare ,110031,SP2 ,Community Services,CTPLD County CIC U65,Adult Domiciliary Care - Spot,Third Party Payments,REVENUE
http://statistics.data.gov.uk/id/local-authority/00HY,Wiltshire Council,30/07/2012,5106158191,813.78,Abicare Services Ltd Homecare ,110031,SP2 ,Community Services,CTPLD County CIC U65,Adult Domiciliary Care - Spot,Third Party Payments,REVENUE
http://statistics.data.gov.uk/id/local-authority/00HY,Wiltshire Council,30/07/2012,5106158192,813.78,Abicare Services Ltd Homecare ,110031,SP2 ,Community Services,CTPLD County CIC U65,Adult Domiciliary Care - Spot,Third Party Payments,REVENUE
http://statistics.data.gov.uk/id/local-authority/00HY,Wiltshire Council,31/07/2012,5106161832,828.08,Abicare Services Ltd Homecare ,110031,SP2 ,Community Services,OP South Locality,Adult Domiciliary Care - Spot,Third Party Payments,REVENUE
http://statistics.data.gov.uk/id/local-authority/00HY,Wiltshire Council,06/07/2012,5106139694,2901.20,Abicare Services Ltd Live in Care. ,113071,SP2 ,Community Services,OP South Locality,Adult Domiciliary Care - Live in Care,Third Party Payments,REVENUE
http://statistics.data.gov.uk/id/local-authority/00HY,Wiltshire Council,18/07/2012,5106153004,2174.04,Abicare Services Ltd Live in Care. ,113071,SP2 ,Community Services,MH OP South Locality,Adult Domiciliary Care - Spot Contribution,Income,REVENUE
http://statistics.data.gov.uk/id/local-authority/00HY,Wiltshire Council,18/07/2012,5106153005,3084.76,Abicare Services Ltd Live in Care. ,113071,SP2 ,Community Services,MH OP South Locality,Adult Domiciliary Care - Live in Care,Third Party Payments,REVENUE
http://statistics.data.gov.uk/id/local-authority/00HY,Wiltshire Council,18/07/2012,5106153133,1608.36,Abicare Services Ltd Live in Care. ,113071,SP2 ,Community Services,OP East Locality,Adult Domiciliary care - Live in contribution,Income,REVENUE
http://statistics.data.gov.uk/id/local-authority/00HY,Wiltshire Council,31/07/2012,5106161822,3926.92,Abicare Services Ltd Live in Care. ,113071,SP2 ,Community Services,CTPLD County CIC U65,Adult Domiciliary Care - Live in Care,Third Party Payments,REVENUE
http://statistics.data.gov.uk/id/local-authority/00HY,Wiltshire Council,04/07/2012,5106143821,3320.72,Ability Associates Ltd ,110033,SP3 ,Community Services,CTPLD County CIC U65,Supported Living - Without SP payments,Third Party Payments,REVENUE
http://statistics.data.gov.uk/id/local-authority/00HY,Wiltshire Council,04/07/2012,5106143822,3852.04,Ability Associates Ltd ,110033,SP3 ,Community Services,CTPLD County CIC U65,Supported Living - Without SP payments,Third Party Payments,REVENUE
http://statistics.data.gov.uk/id/local-authority/00HY,Wiltshire Council,04/07/2012,5106144379,6270.12,Ability Associates Ltd ,110033,SP3 ,Community Services,CTPLD County CIC U65,Adult Residential Placements - Spot Purchase,Third Party Payments,REVENUE
http://statistics.data.gov.uk/id/local-authority/00HY,Wiltshire Council,04/07/2012,5106144381,6083.48,Ability Associates Ltd ,110033,SP3 ,Community Services,CTPLD County CIC U65,Adult Residential Placements - Spot Purchase,Third Party Payments,REVENUE
http://statistics.data.gov.uk/id/local-authority/00HY,Wiltshire Council,04/07/2012,5106144383,5403.20,Ability Associates Ltd ,110033,SP3 ,Community Services,CTPLD County CIC U65,Adult Residential Placements - Spot Purchase,Third Party Payments,REVENUE
http://statistics.data.gov.uk/id/local-authority/00HY,Wiltshire Council,09/07/2012,1900860992,1687.67,ABLE ,101029,BA14,Community Services,MH Commissioned Cont,Grants Paid to individuals for Tangible Benefits,Supplies and Services,REVENUE
http://statistics.data.gov.uk/id/local-authority/00HY,Wiltshire Council,09/07/2012,1900860993,1227.40,ABLE ,101029,BA14,Community Services,MH Commissioned Cont,Grants Paid to individuals for Tangible Benefits,Supplies and Services,REVENUE
http://statistics.data.gov.uk/id/local-authority/00HY,Wiltshire Council,04/07/2012,5106143824,685.72,ABLE ,101029,BA14,Community Services,MH AOWA North,Supported Living - Without SP payments,Third Party Payments,REVENUE
http://statistics.data.gov.uk/id/local-authority/00HY,Wiltshire Council,04/07/2012,5106143826,685.72,ABLE ,101029,BA14,Community Services,MH AOWA North,Supported Living - Without SP payments,Third Party Payments,REVENUE
http://statistics.data.gov.uk/id/local-authority/00HY,Wiltshire Council,04/07/2012,5106143830,543.52,ABLE ,101029,BA14,Community Services,MH AOWA North,Supported Living - Without SP payments,Third Party Payments,REVENUE
http://statistics.data.gov.uk/id/local-authority/00HY,Wiltshire Council,04/07/2012,5106143831,3935.21,ABLE ,101029,BA14,Community Services,MH AOWA North,Supported Living - Without SP payments,Third Party Payments,REVENUE
http://statistics.data.gov.uk/id/local-authority/00HY,Wiltshire Council,06/07/2012,5106147529,2920.00,ABLE ,101029,BA14,Community Services,MH AOWA East,Adult Residential Placements - Spot Purchase,Third Party Payments,REVENUE
http://statistics.data.gov.uk/id/local-authority/00HY,Wiltshire Council,04/07/2012,5106144385,2502.00,ABLE ,110034,BA14,Community Services,MH PCT Section 256,Adult Residential Placements - Spot Purchase,Third Party Payments,REVENUE
http://statistics.data.gov.uk/id/local-authority/00HY,Wiltshire Council,04/07/2012,5106144387,2321.04,ABLE ,110034,BA14,Community Services,MH PCT Section 256,Adult Residential Placements - Spot Purchase,Third Party Payments,REVENUE
http://statistics.data.gov.uk/id/local-authority/00HY,Wiltshire Council,04/07/2012,5106144389,2933.80,ABLE ,110034,BA14,Community Services,MH PCT Section 256,Adult Residential Placements - Spot Purchase,Third Party Payments,REVENUE
http://statistics.data.gov.uk/id/local-authority/00HY,Wiltshire Council,04/07/2012,5106144391,2769.92,ABLE ,110034,BA14,Community Services,MH PCT Section 256,Adult Residential Placements - Spot Purchase,Third Party Payments,REVENUE
http://statistics.data.gov.uk/id/local-authority/00HY,Wiltshire Council,04/07/2012,5106146179,2481.88,ABLE ,110034,BA14,Community Services,MH PCT Section 256,Adult Residential Placements - Spot Purchase,Third Party Payments,REVENUE
http://statistics.data.gov.uk/id/local-authority/00HY,Wiltshire Council,06/07/2012,5106146478,2793.84,ABLE ,110034,BA14,Community Services,MH AOWA West,Adult Residential Placements - Spot Purchase,Third Party Payments,REVENUE
http://statistics.data.gov.uk/id/local-authority/00HY,Wiltshire Council,06/07/2012,1900854845,725.00,AC  and  MS Ltd ,101175,SS6 ,Wiltshire Council,Wiltshire Council,Buildings Minor Alterations,Premises Related,CAPITAL
http://statistics.data.gov.uk/id/local-authority/00HY,Wiltshire Council,10/07/2012,1900857065,635.00,AC  and  MS Ltd ,101175,SS6 ,Resources,Primary Sch Pooling,Preventative Property Maintenance,Premises Related,REVENUE
http://statistics.data.gov.uk/id/local-authority/00HY,Wiltshire Council,13/07/2012,1900858696,4675.00,AC  and  MS Ltd ,101175,SS6 ,Resources,Campus,Preventative Property Maintenance,Premises Related,REVENUE
http://statistics.data.gov.uk/id/local-authority/00HY,Wiltshire Council,16/07/2012,1900858697,1535.00,AC  and  MS Ltd ,101175,SS6 ,Wiltshire Council,Wiltshire Council,Buildings Minor Alterations,Premises Related,CAPITAL
http://statistics.data.gov.uk/id/local-authority/00HY,Wiltshire Council,24/07/2012,1900860259,635.00,AC  and  MS Ltd ,101175,SS6 ,Wiltshire Council,Wiltshire Council,Buildings Minor Alterations,Premises Related,CAPITAL
http://statistics.data.gov.uk/id/local-authority/00HY,Wiltshire Council,24/07/2012,1900860260,635.00,AC  and  MS Ltd ,101175,SS6 ,Wiltshire Council,Wiltshire Council,Buildings Minor Alterations,Premises Related,CAPITAL
http://statistics.data.gov.uk/id/local-authority/00HY,Wiltshire Council,13/07/2012,1900860756,12232.00,AC  and  MS Ltd ,101175,SS6 ,Resources,Primary Schools,Preventative Property Maintenance,Premises Related,REVENUE
http://statistics.data.gov.uk/id/local-authority/00HY,Wiltshire Council,13/07/2012,1900860768,20645.90,AC  and  MS Ltd ,101175,SS6 ,Wiltshire Council,Wiltshire Council,Buildings Minor Alterations,Premises Related,CAPITAL
http://statistics.data.gov.uk/id/local-authority/00HY,Wiltshire Council,06/07/2012,5106139889,14430.00,AC  and  MS Ltd ,101175,SS6 ,Wiltshire Council,Wiltshire Council,Premises Related Other Maintenance Costs,Premises Related,CAPITAL
http://statistics.data.gov.uk/id/local-authority/00HY,Wiltshire Council,16/07/2012,5106140719,2500.00,AC  and  MS Ltd ,101175,SS6 ,Wiltshire Council,Wiltshire Council,Premises Related Other Maintenance Costs,Premises Related,CAPITAL
http://statistics.data.gov.uk/id/local-authority/00HY,Wiltshire Council,16/07/2012,5106140750,4885.00,AC  and  MS Ltd ,101175,SS6 ,Wiltshire Council,Wiltshire Council,Premises Related Other Maintenance Costs,Premises Related,CAPITAL
http://statistics.data.gov.uk/id/local-authority/00HY,Wiltshire Council,13/07/2012,5106142776,900.00,AC  and  MS Ltd ,101175,SS6 ,Wiltshire Council,Wiltshire Council,Premises Related Other Maintenance Costs,Premises Related,CAPITAL
http://statistics.data.gov.uk/id/local-authority/00HY,Wiltshire Council,13/07/2012,5106139820,3685.88,Access Care Ltd ,110037,SP10,Community Services,OP West Locality,Adult Domiciliary care - Live in contribution,Income,REVENUE
http://statistics.data.gov.uk/id/local-authority/00HY,Wiltshire Council,13/07/2012,5106139821,2956.00,Access Care Ltd ,110037,SP10,Community Services,PI East Locality,Adult Domiciliary care - Live in contribution,Income,REVENUE
http://statistics.data.gov.uk/id/local-authority/00HY,Wiltshire Council,13/07/2012,5106149467,2074.52,Access Care Ltd ,110037,SP10,Community Services,OP South Locality,Adult Domiciliary care - Live in contribution,Income,REVENUE
http://statistics.data.gov.uk/id/local-authority/00HY,Wiltshire Council,02/07/2012,5106144255,9995.00,Access Intelligence Media and Communications Limited,125087,EC2A,Resources,Applications SuppLOB,ICT - Support arrangements,Supplies and Services,REVENUE
http://statistics.data.gov.uk/id/local-authority/00HY,Wiltshire Council,20/07/2012,5106143598,674.67,Access UK Limited ,128203,CT1 ,Resources,Applications SuppLOB,ICT - Support arrangements,Supplies and Services,REVENUE
http://statistics.data.gov.uk/id/local-authority/00HY,Wiltshire Council,11/07/2012,5106151672,700.00,Acer Tree Surgeons Ltd ,113296,BA13,Neighbourhood & Planning,Woodland & Tree Mtc,Grounds Maintenance,Premises Related,REVENUE
http://statistics.data.gov.uk/id/local-authority/00HY,Wiltshire Council,31/07/2012,5106158447,675.00,Acer Tree Surgeons Ltd ,113296,BA13,Neighbourhood & Planning,Woodland & Tree Mtc,Grounds Maintenance,Premises Related,REVENUE
http://statistics.data.gov.uk/id/local-authority/00HY,Wiltshire Council,31/07/2012,5106158452,600.00,Acer Tree Surgeons Ltd ,113296,BA13,Neighbourhood & Planning,Woodland & Tree Mtc,Grounds Maintenance,Premises Related,REVENUE
http://statistics.data.gov.uk/id/local-authority/00HY,Wiltshire Council,02/07/2012,5106145060,175000.00,Action For Children ,110045,WD18,Children & Education,Family&Parenting Sup,Other Social & Welfare Costs,Third Party Payments,REVENUE
http://statistics.data.gov.uk/id/local-authority/00HY,Wiltshire Council,10/07/2012,5106151390,3288.47,Action For Children ,110045,WD18,Children & Education,External Placements,Adult / Child Care Agency Placement,Third Party Payments,REVENUE
http://statistics.data.gov.uk/id/local-authority/00HY,Wiltshire Council,16/07/2012,5106152276,3398.09,Action For Children ,110045,WD18,Children & Education,External Placements,Adult / Child Care Agency Placement,Third Party Payments,REVENUE
http://statistics.data.gov.uk/id/local-authority/00HY,Wiltshire Council,17/07/2012,1900871825,7000.00,Action on Addiction ,110046,SP3 ,Children & Education,YPSM Commissioning,Staff Training Course Costs,Employee Related,REVENUE
http://statistics.data.gov.uk/id/local-authority/00HY,Wiltshire Council,17/07/2012,1900871843,14000.00,Action on Addiction ,110046,SP3 ,Children & Education,YPSM Commissioning,Staff Training Course Costs,Employee Related,REVENUE
http://statistics.data.gov.uk/id/local-authority/00HY,Wiltshire Council,13/07/2012,5106152119,6218.00,Action on Addiction ,110046,SP3 ,Community Services,(8)FamiliesPlus-Othr,Substance Misuse - Payments to Contractors,Third Party Payments,REVENUE
http://statistics.data.gov.uk/id/local-authority/00HY,Wiltshire Council,13/07/2012,5106152168,1700.80,Action on Addiction ,110046,SP3 ,Community Services,(9)ResPlacementsCIC,Adult Residential Place - Substance Misuse Cont,Income,REVENUE
http://statistics.data.gov.uk/id/local-authority/00HY,Wiltshire Council,13/07/2012,5106152168,1752.00,Action on Addiction ,110046,SP3 ,Community Services,(9)ResPlacementsPCT,Adult Residential Placements - Substance Misuse,Third Party Payments,REVENUE
http://statistics.data.gov.uk/id/local-authority/00HY,Wiltshire Council,06/07/2012,5106144420,5009.56,Action on Hearing Loss ,112215,EC1Y,Community Services,OP North Locality,Adult Residential Placements - Spot Purchase,Third Party Payments,REVENUE
http://statistics.data.gov.uk/id/local-authority/00HY,Wiltshire Council,04/07/2012,5106145643,5793.68,Action on Hearing Loss ,112215,EC1Y,Community Services,PI South Locality,Adult Residential Placements - Spot Purchase,Third Party Payments,REVENUE
http://statistics.data.gov.uk/id/local-authority/00HY,Wiltshire Council,04/07/2012,5106147854,1017.24,Action on Hearing Loss ,112215,EC1Y,Community Services,PI North Locality,Adult Domiciliary Care - Spot,Third Party Payments,REVENUE
http://statistics.data.gov.uk/id/local-authority/00HY,Wiltshire Council,18/07/2012,5106153105,1044.40,Action on Hearing Loss ,112215,EC1Y,Community Services,PI North Locality,Adult Domiciliary Care - Spot,Third Party Payments,REVENUE
http://statistics.data.gov.uk/id/local-authority/00HY,Wiltshire Council,26/07/2012,5106156377,926.82,Action on Hearing Loss ,112215,EC1Y,Community Services,PI North Locality,Adult Domiciliary Care - Spot,Third Party Payments,REVENUE
http://statistics.data.gov.uk/id/local-authority/00HY,Wiltshire Council,05/07/2012,5106139920,750.00,Active8 Care Ltd ,131346,BT9 ,Children & Education,External Placements,Adult / Child Care Agency Placement,Third Party Payments,REVENUE
http://statistics.data.gov.uk/id/local-authority/00HY,Wiltshire Council,16/07/2012,5106147455,19057.06,Active8 Care Ltd ,131346,BT9 ,Children & Education,External Placements,Adult / Child Care Agency Placement,Third Party Payments,REVENUE
http://statistics.data.gov.uk/id/local-authority/00HY,Wiltshire Council,12/07/2012,5106152033,13263.66,Active8 Care Ltd ,131346,BT9 ,Children & Education,External Placements,Adult / Child Care Agency Placement,Third Party Payments,REVENUE
http://statistics.data.gov.uk/id/local-authority/00HY,Wiltshire Council,23/07/2012,5106154473,10514.24,Active8 Care Ltd ,131346,BT9 ,Children & Education,External Placements,Adult / Child Care Agency Placement,Third Party Payments,REVENUE
http://statistics.data.gov.uk/id/local-authority/00HY,Wiltshire Council,13/07/2012,1900859565,1041.60,Adams Integra ,113318,PO19,Neighbourhood & Planning,Spatial Planning,Consultants� Fees,Supplies and Services,REVENUE
http://statistics.data.gov.uk/id/local-authority/00HY,Wiltshire Council,12/07/2012,5106143108,1860.00,Adams Integra ,113318,PO19,Neighbourhood & Planning,Wiltshire Core Strat,Consultants� Fees,Supplies and Services,REVENUE
http://statistics.data.gov.uk/id/local-authority/00HY,Wiltshire Council,04/07/2012,5106138564,620.01,Adams Morey Ltd ,110053,SP2 ,Neighbourhood & Planning,Fleet Operations,Vehicle Parts,Transport Related,REVENUE
http://statistics.data.gov.uk/id/local-authority/00HY,Wiltshire Council,19/07/2012,5106143064,639.62,Adams Morey Ltd ,110053,SP2 ,Neighbourhood & Planning,Fleet Operations,Vehicle Parts,Transport Related,REVENUE
http://statistics.data.gov.uk/id/local-authority/00HY,Wiltshire Council,17/07/2012,5106143067,564.05,Adams Morey Ltd ,110053,SP2 ,Neighbourhood & Planning,Fleet Operations,Vehicle Parts,Transport Related,REVENUE
http://statistics.data.gov.uk/id/local-authority/00HY,Wiltshire Council,10/07/2012,5106143099,1438.35,Adams Morey Ltd ,110053,SP2 ,Neighbourhood & Planning,Fleet Operations,Vehicle Parts,Transport Related,REVENUE
http://statistics.data.gov.uk/id/local-authority/00HY,Wiltshire Council,24/07/2012,5106149336,836.51,Adams Morey Ltd ,110053,SP2 ,Neighbourhood & Planning,Fleet Operations,Vehicle Parts,Transport Related,REVENUE
http://statistics.data.gov.uk/id/local-authority/00HY,Wiltshire Council,26/07/2012,5106149340,1047.30,Adams Morey Ltd ,110053,SP2 ,Neighbourhood & Planning,Fleet Operations,Vehicle Parts,Transport Related,REVENUE
http://statistics.data.gov.uk/id/local-authority/00HY,Wiltshire Council,03/07/2012,1900859313,6164.84,Adiemus Care Limited - Ravenscroft ,132154,HA1 ,Community Services,FNC,Adult Care Funded Nursing Care - Out of County Cli,Third Party Payments,REVENUE
http://statistics.data.gov.uk/id/local-authority/00HY,Wiltshire Council,09/07/2012,1900860900,1228.42,Adiemus Care Limited - Ravenscroft ,132154,HA1 ,Community Services,OP West Locality,Adult Nursing Place- Spot Purchase Contr,Income,REVENUE
http://statistics.data.gov.uk/id/local-authority/00HY,Wiltshire Council,31/07/2012,1900876399,8274.96,Adiemus Care Limited - Ravenscroft ,132154,HA1 ,Community Services,FNC,Adult Care Funded Nursing Care - Out of County Cli,Third Party Payments,REVENUE
http://statistics.data.gov.uk/id/local-authority/00HY,Wiltshire Council,04/07/2012,5106143797,2265.20,Adiemus Care Limited - Ravenscroft ,132154,HA1 ,Community Services,Home Loans,Adult Care - Home Loan Costs,Capital charges and Expenditure,REVENUE
http://statistics.data.gov.uk/id/local-authority/00HY,Wiltshire Council,06/07/2012,5106144486,2021.52,Adiemus Care Limited - Ravenscroft ,132154,HA1 ,Community Services,MH OP West Locality,Adult Care Nursing Placements- Spot Purchase,Third Party Payments,REVENUE
http://statistics.data.gov.uk/id/local-authority/00HY,Wiltshire Council,06/07/2012,5106144593,2021.52,Adiemus Care Limited - Ravenscroft ,132154,HA1 ,Community Services,MH OP West Locality,Adult Care Nursing Placements- Spot Purchase,Third Party Payments,REVENUE
http://statistics.data.gov.uk/id/local-authority/00HY,Wiltshire Council,06/07/2012,5106144739,1878.60,Adiemus Care Limited - Ravenscroft ,132154,HA1 ,Community Services,OP West Locality,Adult Residential Placements - Spot Purchase,Third Party Payments,REVENUE
http://statistics.data.gov.uk/id/local-authority/00HY,Wiltshire Council,06/07/2012,5106144741,2382.12,Adiemus Care Limited - Ravenscroft ,132154,HA1 ,Community Services,OP West Locality,Adult Residential Placements - Spot Purchase,Third Party Payments,REVENUE
http://statistics.data.gov.uk/id/local-authority/00HY,Wiltshire Council,06/07/2012,5106144773,2000.00,Adiemus Care Limited - Ravenscroft ,132154,HA1 ,Community Services,OP West Locality,Adult Residential Placements - Spot Purchase,Third Party Payments,REVENUE
http://statistics.data.gov.uk/id/local-authority/00HY,Wiltshire Council,04/07/2012,5106146337,1947.32,Adiemus Care Limited - Ravenscroft ,132154,HA1 ,Community Services,OP West Locality,Adult Care Nursing Placements- Spot Purchase,Third Party Payments,REVENUE
http://statistics.data.gov.uk/id/local-authority/00HY,Wiltshire Council,04/07/2012,5106146340,2085.20,Adiemus Care Limited - Ravenscroft ,132154,HA1 ,Community Services,OP West Locality,Adult Care Nursing Placements- Spot Purchase,Third Party Payments,REVENUE
http://statistics.data.gov.uk/id/local-authority/00HY,Wiltshire Council,04/07/2012,5106146343,1643.96,Adiemus Care Limited - Ravenscroft ,132154,HA1 ,Community Services,OP West Locality,Adult Care Nursing Placements- Spot Purchase,Third Party Payments,REVENUE
http://statistics.data.gov.uk/id/local-authority/00HY,Wiltshire Council,04/07/2012,5106146346,1456.88,Adiemus Care Limited - Ravenscroft ,132154,HA1 ,Community Services,MH OP West Locality,Adult Care Nursing Placements- Spot Purchase,Third Party Payments,REVENUE
http://statistics.data.gov.uk/id/local-authority/00HY,Wiltshire Council,04/07/2012,5106146349,2008.40,Adiemus Care Limited - Ravenscroft ,132154,HA1 ,Community Services,OP West Locality,Adult Care Nursing Placements- Spot Purchase,Third Party Payments,REVENUE
http://statistics.data.gov.uk/id/local-authority/00HY,Wiltshire Council,04/07/2012,5106146352,1965.20,Adiemus Care Limited - Ravenscroft ,132154,HA1 ,Community Services,OP West Locality,Adult Care Nursing Placements- Spot Purchase,Third Party Payments,REVENUE
http://statistics.data.gov.uk/id/local-authority/00HY,Wiltshire Council,04/07/2012,5106146355,1456.88,Adiemus Care Limited - Ravenscroft ,132154,HA1 ,Community Services,OP West Locality,Adult Care Nursing Placements- Spot Purchase,Third Party Payments,REVENUE
http://statistics.data.gov.uk/id/local-authority/00HY,Wiltshire Council,04/07/2012,5106146358,2021.52,Adiemus Care Limited - Ravenscroft ,132154,HA1 ,Community Services,OP West Locality,Adult Care Nursing Placements- Spot Purchase,Third Party Payments,REVENUE
http://statistics.data.gov.uk/id/local-authority/00HY,Wiltshire Council,06/07/2012,5106146386,1958.84,Adiemus Care Limited - Ravenscroft ,132154,HA1 ,Community Services,MH OP West Locality,Adult Residential Placements - Spot Purchase,Third Party Payments,REVENUE
http://statistics.data.gov.uk/id/local-authority/00HY,Wiltshire Council,06/07/2012,5106146755,2021.52,Adiemus Care Limited - Ravenscroft ,132154,HA1 ,Community Services,OP West Locality,Adult Care Nursing Placements- Spot Purchase,Third Party Payments,REVENUE
http://statistics.data.gov.uk/id/local-authority/00HY,Wiltshire Council,06/07/2012,5106146758,2021.52,Adiemus Care Limited - Ravenscroft ,132154,HA1 ,Community Services,OP West Locality,Adult Care Nursing Placements- Spot Purchase,Third Party Payments,REVENUE
http://statistics.data.gov.uk/id/local-authority/00HY,Wiltshire Council,06/07/2012,5106146761,1456.88,Adiemus Care Limited - Ravenscroft ,132154,HA1 ,Community Services,OP West Locality,Adult Care Nursing Placements- Spot Purchase,Third Party Payments,REVENUE
http://statistics.data.gov.uk/id/local-authority/00HY,Wiltshire Council,06/07/2012,5106146764,2021.52,Adiemus Care Limited - Ravenscroft ,132154,HA1 ,Community Services,MH AOWA West,Adult Care Nursing Placements- Spot Purchase,Third Party Payments,REVENUE
http://statistics.data.gov.uk/id/local-authority/00HY,Wiltshire Council,06/07/2012,5106146767,2021.52,Adiemus Care Limited - Ravenscroft ,132154,HA1 ,Community Services,OP West Locality,Adult Care Nursing Placements- Spot Purchase,Third Party Payments,REVENUE
http://statistics.data.gov.uk/id/local-authority/00HY,Wiltshire Council,06/07/2012,5106147484,1971.52,Adiemus Care Limited - Ravenscroft ,132154,HA1 ,Community Services,OP West Locality,Adult Residential Placements - Spot Purchase,Third Party Payments,REVENUE
http://statistics.data.gov.uk/id/local-authority/00HY,Wiltshire Council,04/07/2012,5106147957,2021.52,Adiemus Care Limited - Ravenscroft ,132154,HA1 ,Community Services,OP West Locality,Adult Care Nursing Placements- Spot Purchase,Third Party Payments,REVENUE
http://statistics.data.gov.uk/id/local-authority/00HY,Wiltshire Council,04/07/2012,5106147962,2021.52,Adiemus Care Limited - Ravenscroft ,132154,HA1 ,Community Services,OP West Locality,Adult Care Nursing Placements- Spot Purchase,Third Party Payments,REVENUE
http://statistics.data.gov.uk/id/local-authority/00HY,Wiltshire Council,18/07/2012,5106153747,6064.56,Adiemus Care Limited - Ravenscroft ,132154,HA1 ,Community Services,OP West Locality,Adult Care Nursing Placements - 12 Week,Third Party Payments,REVENUE
http://statistics.data.gov.uk/id/local-authority/00HY,Wiltshire Council,18/07/2012,5106153749,1304.40,Adiemus Care Limited - Ravenscroft ,132154,HA1 ,Community Services,OP West FNC,Adult Care Funded Nursing Care - Loal Auth Clients,Third Party Payments,REVENUE
http://statistics.data.gov.uk/id/local-authority/00HY,Wiltshire Council,23/07/2012,5106154515,2600.00,Adiemus Care Limited - Ravenscroft ,132154,HA1 ,Community Services,Home Loans,Adult Care - Home Loan Costs,Capital charges and Expenditure,REVENUE
http://statistics.data.gov.uk/id/local-authority/00HY,Wiltshire Council,23/07/2012,5106154517,2600.00,Adiemus Care Limited - Ravenscroft ,132154,HA1 ,Community Services,Home Loans,Adult Care - Home Loan Costs,Capital charges and Expenditure,REVENUE
http://statistics.data.gov.uk/id/local-authority/00HY,Wiltshire Council,23/07/2012,5106154519,2600.00,Adiemus Care Limited - Ravenscroft ,132154,HA1 ,Community Services,Home Loans,Adult Care - Home Loan Costs,Capital charges and Expenditure,REVENUE
http://statistics.data.gov.uk/id/local-authority/00HY,Wiltshire Council,25/07/2012,5106156251,1469.27,Adiemus Care Limited - Ravenscroft ,132154,HA1 ,Community Services,OP West Locality,Adult Care Nursing Placements- Spot Purchase,Third Party Payments,REVENUE
http://statistics.data.gov.uk/id/local-authority/00HY,Wiltshire Council,25/07/2012,5106156258,1877.20,Adiemus Care Limited - Ravenscroft ,132154,HA1 ,Community Services,OP West Locality,Adult Care Nursing Placements- Spot Purchase,Third Party Payments,REVENUE
http://statistics.data.gov.uk/id/local-authority/00HY,Wiltshire Council,25/07/2012,5106156261,2021.52,Adiemus Care Limited - Ravenscroft ,132154,HA1 ,Community Services,OP West Locality,Adult Care Nursing Placements- Spot Purchase,Third Party Payments,REVENUE
http://statistics.data.gov.uk/id/local-authority/00HY,Wiltshire Council,18/07/2012,1900872612,1750.66,Adrains Engineering Psv ,100848,SN15,Neighbourhood & Planning,Public Transport,Transport Contracts,Third Party Payments,REVENUE
http://statistics.data.gov.uk/id/local-authority/00HY,Wiltshire Council,18/07/2012,1900872612,3480.12,Adrains Engineering Psv ,100848,SN15,Neighbourhood & Planning,Mainstream Primary,Transport Contracts,Third Party Payments,REVENUE
http://statistics.data.gov.uk/id/local-authority/00HY,Wiltshire Council,18/07/2012,1900872613,1562.76,Adrains Engineering Psv ,100848,SN15,Neighbourhood & Planning,Mainstream Primary,Transport Contracts,Third Party Payments,REVENUE
http://statistics.data.gov.uk/id/local-authority/00HY,Wiltshire Council,18/07/2012,1900872613,2621.55,Adrains Engineering Psv ,100848,SN15,Neighbourhood & Planning,Public Transport,Transport Contracts,Third Party Payments,REVENUE
http://statistics.data.gov.uk/id/local-authority/00HY,Wiltshire Council,18/07/2012,1900872615,822.15,Adrains Engineering Psv ,100848,SN15,Neighbourhood & Planning,Mainstream Primary,Transport Contracts,Third Party Payments,REVENUE
http://statistics.data.gov.uk/id/local-authority/00HY,Wiltshire Council,18/07/2012,1900872615,822.16,Adrains Engineering Psv ,100848,SN15,Neighbourhood & Planning,Public Transport,Transport Contracts,Third Party Payments,REVENUE
http://statistics.data.gov.uk/id/local-authority/00HY,Wiltshire Council,18/07/2012,1900872615,2466.46,Adrains Engineering Psv ,100848,SN15,Neighbourhood & Planning,Mainstream Secondary,Transport Contracts,Third Party Payments,REVENUE
http://statistics.data.gov.uk/id/local-authority/00HY,Wiltshire Council,18/07/2012,1900872616,1197.58,Adrains Engineering Psv ,100848,SN15,Neighbourhood & Planning,Mainstream Secondary,Transport Contracts,Third Party Payments,REVENUE
http://statistics.data.gov.uk/id/local-authority/00HY,Wiltshire Council,18/07/2012,1900872616,4911.90,Adrains Engineering Psv ,100848,SN15,Neighbourhood & Planning,Mainstream Primary,Transport Contracts,Third Party Payments,REVENUE
http://statistics.data.gov.uk/id/local-authority/00HY,Wiltshire Council,18/07/2012,1900872616,9562.75,Adrains Engineering Psv ,100848,SN15,Neighbourhood & Planning,Public Transport,Transport Contracts,Third Party Payments,REVENUE
http://statistics.data.gov.uk/id/local-authority/00HY,Wiltshire Council,18/07/2012,1900872619,2443.07,Adrains Engineering Psv ,100848,SN15,Neighbourhood & Planning,Public Transport,Transport Contracts,Third Party Payments,REVENUE
http://statistics.data.gov.uk/id/local-authority/00HY,Wiltshire Council,18/07/2012,1900872619,3302.59,Adrains Engineering Psv ,100848,SN15,Neighbourhood & Planning,Mainstream Secondary,Transport Contracts,Third Party Payments,REVENUE
http://statistics.data.gov.uk/id/local-authority/00HY,Wiltshire Council,18/07/2012,1900872621,506.88,Adrains Engineering Psv ,100848,SN15,Neighbourhood & Planning,Public Transport,Transport Contracts,Third Party Payments,REVENUE
http://statistics.data.gov.uk/id/local-authority/00HY,Wiltshire Council,09/07/2012,5106138558,2580.31,Advanced Fire Systems Ltd ,110062,BS7 ,Neighbourhood & Planning,Housg Rprs Contracts,Premises Related Other Maintenance Costs,Premises Related,REVENUE
http://statistics.data.gov.uk/id/local-authority/00HY,Wiltshire Council,23/07/2012,5106144157,1417.00,Advanced Fire Systems Ltd ,110062,BS7 ,Neighbourhood & Planning,Housing Rprs Simdell,Premises Related Other Maintenance Costs,Premises Related,REVENUE
http://statistics.data.gov.uk/id/local-authority/00HY,Wiltshire Council,10/07/2012,5106138452,799.96,AginCare Live In Care Services Ltd ,110071,DT4 ,Community Services,OP South Locality,Adult Domiciliary Care - Live in Care,Third Party Payments,REVENUE
http://statistics.data.gov.uk/id/local-authority/00HY,Wiltshire Council,10/07/2012,5106138453,799.96,AginCare Live In Care Services Ltd ,110071,DT4 ,Community Services,OP South Locality,Adult Domiciliary Care - Live in Care,Third Party Payments,REVENUE
http://statistics.data.gov.uk/id/local-authority/00HY,Wiltshire Council,10/07/2012,5106138454,669.34,AginCare Live In Care Services Ltd ,110071,DT4 ,Community Services,OP South Locality,Adult Domiciliary care - Live in contribution,Income,REVENUE
http://statistics.data.gov.uk/id/local-authority/00HY,Wiltshire Council,10/07/2012,5106138628,1549.94,AginCare Live In Care Services Ltd ,110071,DT4 ,Community Services,PI South Locality,Adult Domiciliary Care - Live in Care,Third Party Payments,REVENUE
http://statistics.data.gov.uk/id/local-authority/00HY,Wiltshire Council,10/07/2012,5106138629,1549.94,AginCare Live In Care Services Ltd ,110071,DT4 ,Community Services,PI West Locality,Adult Domiciliary Care - Live in Care,Third Party Payments,REVENUE
http://statistics.data.gov.uk/id/local-authority/00HY,Wiltshire Council,10/07/2012,5106138650,1400.00,AginCare Live In Care Services Ltd ,110071,DT4 ,Community Services,PI West Locality,Adult Domiciliary Care - Live in Care,Third Party Payments,REVENUE
http://statistics.data.gov.uk/id/local-authority/00HY,Wiltshire Council,24/07/2012,5106149470,1549.94,AginCare Live In Care Services Ltd ,110071,DT4 ,Community Services,PI West Locality,Adult Domiciliary Care - Live in Care,Third Party Payments,REVENUE
http://statistics.data.gov.uk/id/local-authority/00HY,Wiltshire Council,24/07/2012,5106149471,1400.00,AginCare Live In Care Services Ltd ,110071,DT4 ,Community Services,PI West Locality,Adult Domiciliary Care - Live in Care,Third Party Payments,REVENUE
http://statistics.data.gov.uk/id/local-authority/00HY,Wiltshire Council,24/07/2012,5106149472,1549.94,AginCare Live In Care Services Ltd ,110071,DT4 ,Community Services,PI South Locality,Adult Domiciliary Care - Live in Care,Third Party Payments,REVENUE
http://statistics.data.gov.uk/id/local-authority/00HY,Wiltshire Council,24/07/2012,5106149474,799.96,AginCare Live In Care Services Ltd ,110071,DT4 ,Community Services,OP South Locality,Adult Domiciliary Care - Live in Care,Third Party Payments,REVENUE
http://statistics.data.gov.uk/id/local-authority/00HY,Wiltshire Council,24/07/2012,5106149475,669.34,AginCare Live In Care Services Ltd ,110071,DT4 ,Community Services,OP South Locality,Adult Domiciliary care - Live in contribution,Income,REVENUE
http://statistics.data.gov.uk/id/local-authority/00HY,Wiltshire Council,24/07/2012,5106153800,621.42,AginCare Live In Care Services Ltd ,110071,DT4 ,Community Services,OP East Locality,Adult Domiciliary Care - Live in Care,Third Party Payments,REVENUE
http://statistics.data.gov.uk/id/local-authority/00HY,Wiltshire Council,27/07/2012,5106154571,1449.98,AginCare Live In Care Services Ltd ,110071,DT4 ,Community Services,OP East Locality,Adult Domiciliary Care - Live in Care,Third Party Payments,REVENUE
http://statistics.data.gov.uk/id/local-authority/00HY,Wiltshire Council,27/07/2012,5106156548,669.34,AginCare Live In Care Services Ltd ,110071,DT4 ,Community Services,OP South Locality,Adult Domiciliary care - Live in contribution,Income,REVENUE
http://statistics.data.gov.uk/id/local-authority/00HY,Wiltshire Council,27/07/2012,5106156557,799.96,AginCare Live In Care Services Ltd ,110071,DT4 ,Community Services,OP South Locality,Adult Domiciliary Care - Live in Care,Third Party Payments,REVENUE
http://statistics.data.gov.uk/id/local-authority/00HY,Wiltshire Council,27/07/2012,5106156558,799.96,AginCare Live In Care Services Ltd ,110071,DT4 ,Community Services,OP South Locality,Adult Domiciliary Care - Live in Care,Third Party Payments,REVENUE
http://statistics.data.gov.uk/id/local-authority/00HY,Wiltshire Council,27/07/2012,5106156559,1549.94,AginCare Live In Care Services Ltd ,110071,DT4 ,Community Services,PI South Locality,Adult Domiciliary Care - Live in Care,Third Party Payments,REVENUE
http://statistics.data.gov.uk/id/local-authority/00HY,Wiltshire Council,05/07/2012,5106148384,793.92,Agincare Ltd ,110069,DT4 ,Community Services,MH AOWA West,Adult Domiciliary Care - Block,Third Party Payments,REVENUE
http://statistics.data.gov.uk/id/local-authority/00HY,Wiltshire Council,05/07/2012,5106148384,946.36,Agincare Ltd ,110069,DT4 ,Community Services,PI West Locality,Adult Domiciliary Care - Block Contribution,Income,REVENUE
http://statistics.data.gov.uk/id/local-authority/00HY,Wiltshire Council,05/07/2012,5106148384,1690.84,Agincare Ltd ,110069,DT4 ,Community Services,PI North Locality,Adult Domiciliary Care - Block Contribution,Income,REVENUE
http://statistics.data.gov.uk/id/local-authority/00HY,Wiltshire Council,05/07/2012,5106148384,2793.66,Agincare Ltd ,110069,DT4 ,Community Services,MH AOWA North,Adult Domiciliary Care - Block,Third Party Payments,REVENUE
http://statistics.data.gov.uk/id/local-authority/00HY,Wiltshire Council,05/07/2012,5106148384,20951.54,Agincare Ltd ,110069,DT4 ,Community Services,OP North Locality,Adult Domiciliary Care - Block Contribution,Income,REVENUE
http://statistics.data.gov.uk/id/local-authority/00HY,Wiltshire Council,10/07/2012,5106151541,580.06,Agincare Ltd ,110069,DT4 ,Community Services,MH OP South Locality,Third Party Income for Social Care Package,Income,REVENUE
http://statistics.data.gov.uk/id/local-authority/00HY,Wiltshire Council,10/07/2012,5106151542,1529.92,Agincare Ltd ,110069,DT4 ,Community Services,MH AOWA West,Adult Domiciliary Care - Live in Care,Third Party Payments,REVENUE
http://statistics.data.gov.uk/id/local-authority/00HY,Wiltshire Council,26/07/2012,5106156484,1529.92,Agincare Ltd ,110069,DT4 ,Community Services,MH AOWA West,Adult Domiciliary Care - Live in Care,Third Party Payments,REVENUE
http://statistics.data.gov.uk/id/local-authority/00HY,Wiltshire Council,09/07/2012,5106143253,676.88,Air Photo Services Limited ,134217,SN15,Neighbourhood & Planning,DevControlNorth,Printing External,Supplies and Services,REVENUE
http://statistics.data.gov.uk/id/local-authority/00HY,Wiltshire Council,16/07/2012,1900870948,900.00,Airport Connections pewsey  Ltd ,100937,.,Neighbourhood & Planning,SEN Secondary,Transport Contracts,Third Party Payments,REVENUE
http://statistics.data.gov.uk/id/local-authority/00HY,Wiltshire Council,16/07/2012,1900870956,685.60,Airport Connections pewsey  Ltd ,100937,.,Neighbourhood & Planning,Mainstream Primary,Transport Contracts,Third Party Payments,REVENUE
http://statistics.data.gov.uk/id/local-authority/00HY,Wiltshire Council,30/07/2012,5106158090,3670.00,AIRSPACE SOLUTIONS COM LTD ,110081,NP22,Neighbourhood & Planning,Marlborough,Equipment Purchase,Supplies and Services,REVENUE
http://statistics.data.gov.uk/id/local-authority/00HY,Wiltshire Council,30/07/2012,5106158090,3670.00,AIRSPACE SOLUTIONS COM LTD ,110081,NP22,Neighbourhood & Planning,Five Rivers,Equipment Purchase,Supplies and Services,REVENUE
http://statistics.data.gov.uk/id/local-authority/00HY,Wiltshire Council,13/07/2012,1900870360,558.46,Akcess Ltd ,101402,SN2 ,Neighbourhood & Planning,DCS North Locality O,Transport Contracts,Third Party Payments,REVENUE
http://statistics.data.gov.uk/id/local-authority/00HY,Wiltshire Council,13/07/2012,1900870360,651.54,Akcess Ltd ,101402,SN2 ,Neighbourhood & Planning,DCS North Locality P,Transport Contracts,Third Party Payments,REVENUE
http://statistics.data.gov.uk/id/local-authority/00HY,Wiltshire Council,13/07/2012,1900870368,954.99,Akcess Ltd ,101402,SN2 ,Neighbourhood & Planning,Mainstream Secondary,Transport Contracts,Third Party Payments,REVENUE
http://statistics.data.gov.uk/id/local-authority/00HY,Wiltshire Council,13/07/2012,1900870368,1061.14,Akcess Ltd ,101402,SN2 ,Neighbourhood & Planning,Mainstream Primary,Transport Contracts,Third Party Payments,REVENUE
http://statistics.data.gov.uk/id/local-authority/00HY,Wiltshire Council,13/07/2012,1900870369,1795.68,Akcess Ltd ,101402,SN2 ,Neighbourhood & Planning,SEN Secondary,Transport Contracts,Third Party Payments,REVENUE
http://statistics.data.gov.uk/id/local-authority/00HY,Wiltshire Council,13/07/2012,1900870372,1266.01,Akcess Ltd ,101402,SN2 ,Neighbourhood & Planning,Mainstream Secondary,Transport Contracts,Third Party Payments,REVENUE
http://statistics.data.gov.uk/id/local-authority/00HY,Wiltshire Council,13/07/2012,1900870373,1273.28,Akcess Ltd ,101402,SN2 ,Neighbourhood & Planning,Mainstream Primary,Transport Contracts,Third Party Payments,REVENUE
http://statistics.data.gov.uk/id/local-authority/00HY,Wiltshire Council,13/07/2012,1900870374,1188.89,Akcess Ltd ,101402,SN2 ,Neighbourhood & Planning,LAC&16+ North&East,Transport Contracts,Third Party Payments,REVENUE
http://statistics.data.gov.uk/id/local-authority/00HY,Wiltshire Council,16/07/2012,1900870929,1829.04,Akcess Ltd ,101402,SN2 ,Neighbourhood & Planning,Mainstream Secondary,Transport Contracts,Third Party Payments,REVENUE
http://statistics.data.gov.uk/id/local-authority/00HY,Wiltshire Council,16/07/2012,1900870930,1670.08,Akcess Ltd ,101402,SN2 ,Neighbourhood & Planning,SEN 16+ Secondary,Transport Contracts,Third Party Payments,REVENUE
http://statistics.data.gov.uk/id/local-authority/00HY,Wiltshire Council,17/07/2012,1900871909,718.24,Akcess Ltd ,101402,SN2 ,Neighbourhood & Planning,SEN Primary,Transport Contracts,Third Party Payments,REVENUE
http://statistics.data.gov.uk/id/local-authority/00HY,Wiltshire Council,09/07/2012,1900860995,2600.55,Alabare Christian Care Centre ,100837,SP1 ,Community Services,MH Commissioned Cont,Grants Paid to individuals for Tangible Benefits,Supplies and Services,REVENUE
http://statistics.data.gov.uk/id/local-authority/00HY,Wiltshire Council,09/07/2012,1900860996,3589.22,Alabare Christian Care Centre ,100837,SP1 ,Neighbourhood & Planning,HousingOptionsOther,Payments to Contractors - Other,Third Party Payments,REVENUE
http://statistics.data.gov.uk/id/local-authority/00HY,Wiltshire Council,09/07/2012,1900860997,2463.23,Alabare Christian Care Centre ,100837,SP1 ,Neighbourhood & Planning,HousingOptionsOther,Payments to Contractors - Other,Third Party Payments,REVENUE
http://statistics.data.gov.uk/id/local-authority/00HY,Wiltshire Council,09/07/2012,1900860998,1475.95,Alabare Christian Care Centre ,100837,SP1 ,Neighbourhood & Planning,HousingOptionsOther,Payments to Contractors - Other,Third Party Payments,REVENUE
http://statistics.data.gov.uk/id/local-authority/00HY,Wiltshire Council,09/07/2012,1900860999,4644.93,Alabare Christian Care Centre ,100837,SP1 ,Neighbourhood & Planning,HousingOptionsOther,Payments to Contractors - Other,Third Party Payments,REVENUE
http://statistics.data.gov.uk/id/local-authority/00HY,Wiltshire Council,09/07/2012,1900861000,9501.05,Alabare Christian Care Centre ,100837,SP1 ,Neighbourhood & Planning,HousingOptionsOther,Payments to Contractors - Other,Third Party Payments,REVENUE
http://statistics.data.gov.uk/id/local-authority/00HY,Wiltshire Council,09/07/2012,1900861001,23013.70,Alabare Christian Care Centre ,100837,SP1 ,Neighbourhood & Planning,HousingOptionsOther,Payments to Contractors - Other,Third Party Payments,REVENUE
http://statistics.data.gov.uk/id/local-authority/00HY,Wiltshire Council,09/07/2012,1900861002,3166.99,Alabare Christian Care Centre ,100837,SP1 ,Community Services,Disabilities Comm Ct,Grants Paid to individuals for Tangible Benefits,Supplies and Services,REVENUE
http://statistics.data.gov.uk/id/local-authority/00HY,Wiltshire Council,09/07/2012,1900861003,2807.67,Alabare Christian Care Centre ,100837,SP1 ,Neighbourhood & Planning,HousingOptionsOther,Payments to Contractors - Other,Third Party Payments,REVENUE
http://statistics.data.gov.uk/id/local-authority/00HY,Wiltshire Council,09/07/2012,1900861004,3904.66,Alabare Christian Care Centre ,100837,SP1 ,Neighbourhood & Planning,HousingOptionsOther,Payments to Contractors - Other,Third Party Payments,REVENUE
http://statistics.data.gov.uk/id/local-authority/00HY,Wiltshire Council,09/07/2012,1900861005,30780.05,Alabare Christian Care Centre ,100837,SP1 ,Neighbourhood & Planning,HousingOptionsOther,Payments to Contractors - Other,Third Party Payments,REVENUE
http://statistics.data.gov.uk/id/local-authority/00HY,Wiltshire Council,09/07/2012,1900861006,8736.00,Alabare Christian Care Centre ,100837,SP1 ,Community Services,Disabilities Comm Ct,Grants Paid to individuals for Tangible Benefits,Supplies and Services,REVENUE
http://statistics.data.gov.uk/id/local-authority/00HY,Wiltshire Council,23/07/2012,1900873693,6501.00,Alabare Christian Care Centre ,100837,SP1 ,Wiltshire Council,Wiltshire Council,Software Development,Supplies and Services,CAPITAL
http://statistics.data.gov.uk/id/local-authority/00HY,Wiltshire Council,04/07/2012,5106143832,2107.20,Alabare Christian Care Centre ,100837,SP1 ,Community Services,CTPLD County CIC U65,Supported Living - Without SP payments,Third Party Payments,REVENUE
http://statistics.data.gov.uk/id/local-authority/00HY,Wiltshire Council,04/07/2012,5106143834,1588.80,Alabare Christian Care Centre ,100837,SP1 ,Community Services,CTPLD County CIC U65,Supported Living - Without SP payments,Third Party Payments,REVENUE
http://statistics.data.gov.uk/id/local-authority/00HY,Wiltshire Council,04/07/2012,5106143836,659.04,Alabare Christian Care Centre ,100837,SP1 ,Community Services,CTPLD County CIC U65,Supported Living - Without SP payments,Third Party Payments,REVENUE
http://statistics.data.gov.uk/id/local-authority/00HY,Wiltshire Council,04/07/2012,5106143838,4085.60,Alabare Christian Care Centre ,100837,SP1 ,Community Services,CTPLD County CIC U65,Supported Living - With SP Payments (3rd Party),Third Party Payments,REVENUE
http://statistics.data.gov.uk/id/local-authority/00HY,Wiltshire Council,04/07/2012,5106143841,1306.64,Alabare Christian Care Centre ,100837,SP1 ,Community Services,CTPLD County CIC U65,Supported Living - Without SP payments,Third Party Payments,REVENUE
http://statistics.data.gov.uk/id/local-authority/00HY,Wiltshire Council,04/07/2012,5106143842,1564.92,Alabare Christian Care Centre ,100837,SP1 ,Community Services,CTPLD County CIC U65,Supported Living - Without SP payments,Third Party Payments,REVENUE
http://statistics.data.gov.uk/id/local-authority/00HY,Wiltshire Council,04/07/2012,5106143844,3219.04,Alabare Christian Care Centre ,100837,SP1 ,Community Services,CTPLD County CIC U65,Supported Living - With SP Payments (3rd Party),Third Party Payments,REVENUE
http://statistics.data.gov.uk/id/local-authority/00HY,Wiltshire Council,04/07/2012,5106143847,2208.44,Alabare Christian Care Centre ,100837,SP1 ,Community Services,CTPLD County CIC U65,Supported Living - Without SP payments,Third Party Payments,REVENUE
http://statistics.data.gov.uk/id/local-authority/00HY,Wiltshire Council,04/07/2012,5106143849,1560.96,Alabare Christian Care Centre ,100837,SP1 ,Community Services,CTPLD County S75 U65,Supported Living - Without SP payments,Third Party Payments,REVENUE
http://statistics.data.gov.uk/id/local-authority/00HY,Wiltshire Council,04/07/2012,5106143851,1741.80,Alabare Christian Care Centre ,100837,SP1 ,Community Services,CTPLD County CIC U65,Supported Living - Without SP payments,Third Party Payments,REVENUE
http://statistics.data.gov.uk/id/local-authority/00HY,Wiltshire Council,04/07/2012,5106143853,1751.44,Alabare Christian Care Centre ,100837,SP1 ,Community Services,CTPLD County CIC U65,Supported Living - Without SP payments,Third Party Payments,REVENUE
http://statistics.data.gov.uk/id/local-authority/00HY,Wiltshire Council,04/07/2012,5106143855,1461.36,Alabare Christian Care Centre ,100837,SP1 ,Community Services,CTPLD County CIC U65,Supported Living - Without SP payments,Third Party Payments,REVENUE
http://statistics.data.gov.uk/id/local-authority/00HY,Wiltshire Council,04/07/2012,5106143857,819.28,Alabare Christian Care Centre ,100837,SP1 ,Community Services,CTPLD County CIC U65,Supported Living - Without SP payments,Third Party Payments,REVENUE
http://statistics.data.gov.uk/id/local-authority/00HY,Wiltshire Council,04/07/2012,5106143859,2454.24,Alabare Christian Care Centre ,100837,SP1 ,Community Services,CTPLD County CIC U65,Supported Living - Without SP payments,Third Party Payments,REVENUE
http://statistics.data.gov.uk/id/local-authority/00HY,Wiltshire Council,04/07/2012,5106143861,4085.60,Alabare Christian Care Centre ,100837,SP1 ,Community Services,CTPLD County CIC U65,Supported Living - With SP Payments (3rd Party),Third Party Payments,REVENUE
http://statistics.data.gov.uk/id/local-authority/00HY,Wiltshire Council,04/07/2012,5106143864,1751.44,Alabare Christian Care Centre ,100837,SP1 ,Community Services,CTPLD County CIC U65,Supported Living - Without SP payments,Third Party Payments,REVENUE
http://statistics.data.gov.uk/id/local-authority/00HY,Wiltshire Council,04/07/2012,5106143865,4085.60,Alabare Christian Care Centre ,100837,SP1 ,Community Services,CTPLD County CIC U65,Supported Living - With SP Payments (3rd Party),Third Party Payments,REVENUE
http://statistics.data.gov.uk/id/local-authority/00HY,Wiltshire Council,04/07/2012,5106143867,1560.00,Alabare Christian Care Centre ,100837,SP1 ,Community Services,CTPLD County CIC U65,Supported Living - Without SP payments,Third Party Payments,REVENUE
http://statistics.data.gov.uk/id/local-authority/00HY,Wiltshire Council,03/07/2012,5106147752,63383.24,Alabare Christian Care Centre ,100837,SP1 ,Children & Education,Towpath Road,Adult / Child Care Agency Placement,Third Party Payments,REVENUE
http://statistics.data.gov.uk/id/local-authority/00HY,Wiltshire Council,03/07/2012,5106147753,10388.16,Alabare Christian Care Centre ,100837,SP1 ,Children & Education,Towpath Road,Adult / Child Care Agency Placement,Third Party Payments,REVENUE
http://statistics.data.gov.uk/id/local-authority/00HY,Wiltshire Council,10/07/2012,5106151469,37596.28,Alabare Christian Care Centre ,100837,SP1 ,Community Services,MH Commissioned Cont,Grants Paid to individuals for Tangible Benefits,Supplies and Services,REVENUE
http://statistics.data.gov.uk/id/local-authority/00HY,Wiltshire Council,17/07/2012,5106152777,979.55,Alabare Christian Care Centre ,100837,SP1 ,Community Services,MH AOWA South,Adult Domiciliary Care - Spot,Third Party Payments,REVENUE
http://statistics.data.gov.uk/id/local-authority/00HY,Wiltshire Council,26/07/2012,5106156435,1419.00,Alabare Christian Care Centre ,100837,SP1 ,Community Services,CTPLD County CIC U65,Supported Living - Without SP payments,Third Party Payments,REVENUE
http://statistics.data.gov.uk/id/local-authority/00HY,Wiltshire Council,26/07/2012,5106156436,1773.75,Alabare Christian Care Centre ,100837,SP1 ,Community Services,CTPLD County CIC U65,Supported Living - Without SP payments,Third Party Payments,REVENUE
http://statistics.data.gov.uk/id/local-authority/00HY,Wiltshire Council,26/07/2012,5106156437,801.45,Alabare Christian Care Centre ,100837,SP1 ,Community Services,CTPLD County CIC 65+,Supported Living - Without SP payments,Third Party Payments,REVENUE
http://statistics.data.gov.uk/id/local-authority/00HY,Wiltshire Council,27/07/2012,5106156538,2674.12,Alabare Christian Care Centre ,100837,SP1 ,Community Services,CTPLD County CIC U65,Supported Living - Without SP payments,Third Party Payments,REVENUE
http://statistics.data.gov.uk/id/local-authority/00HY,Wiltshire Council,27/07/2012,5106156540,2727.40,Alabare Christian Care Centre ,100837,SP1 ,Community Services,CTPLD County CIC U65,Supported Living - Without SP payments,Third Party Payments,REVENUE
http://statistics.data.gov.uk/id/local-authority/00HY,Wiltshire Council,24/07/2012,5106154877,550.00,Albion Chambers ,113388,BS1 ,Children & Education,HQ Social Care,Legal Fees,Supplies and Services,REVENUE
http://statistics.data.gov.uk/id/local-authority/00HY,Wiltshire Council,05/07/2012,5106148435,7750.00,Alcium Software Ltd ,113391,S35 ,Neighbourhood & Planning,EconomicDevelopment,ICT - Support arrangements,Supplies and Services,REVENUE
http://statistics.data.gov.uk/id/local-authority/00HY,Wiltshire Council,03/07/2012,1900859299,3043.59,Aldbourne Nursing Home ,110090,SN8 ,Community Services,FNC,Adult Care Funded Nursing Care - Out of County Cli,Third Party Payments,REVENUE
http://statistics.data.gov.uk/id/local-authority/00HY,Wiltshire Council,31/07/2012,1900876386,3757.91,Aldbourne Nursing Home ,110090,SN8 ,Community Services,FNC,Adult Care Funded Nursing Care - Out of County Cli,Third Party Payments,REVENUE
http://statistics.data.gov.uk/id/local-authority/00HY,Wiltshire Council,04/07/2012,5106143054,2045.76,Aldbourne Nursing Home ,110090,SN8 ,Community Services,MH OP East Locality,Adult Care Nursing Placements- Spot Purchase,Third Party Payments,REVENUE
http://statistics.data.gov.uk/id/local-authority/00HY,Wiltshire Council,04/07/2012,5106143057,2045.76,Aldbourne Nursing Home ,110090,SN8 ,Community Services,OP West Locality,Adult Care Nursing Placements- Spot Purchase,Third Party Payments,REVENUE
http://statistics.data.gov.uk/id/local-authority/00HY,Wiltshire Council,04/07/2012,5106144403,2021.20,Aldbourne Nursing Home ,110090,SN8 ,Community Services,OP East Locality,Adult Care Nursing Placements- Spot Purchase,Third Party Payments,REVENUE
http://statistics.data.gov.uk/id/local-authority/00HY,Wiltshire Council,04/07/2012,5106146181,1935.16,Aldbourne Nursing Home ,110090,SN8 ,Community Services,OP East Locality,Adult Residential Placements - Spot Purchase,Third Party Payments,REVENUE
http://statistics.data.gov.uk/id/local-authority/00HY,Wiltshire Council,04/07/2012,5106147951,2465.20,Aldbourne Nursing Home ,110090,SN8 ,Community Services,MH OP East Locality,Adult Care Nursing Placements- Spot Purchase,Third Party Payments,REVENUE
http://statistics.data.gov.uk/id/local-authority/00HY,Wiltshire Council,04/07/2012,5106148051,2305.20,Aldbourne Nursing Home ,110090,SN8 ,Community Services,MH OP East Locality,Adult Care Nursing Placements- Spot Purchase,Third Party Payments,REVENUE
http://statistics.data.gov.uk/id/local-authority/00HY,Wiltshire Council,25/07/2012,1900874094,5000.00,Aldbourne Youth Council ,113395,SN8 ,Community Services,Area Board Marlboro,Area Board Grants,Supplies and Services,REVENUE
http://statistics.data.gov.uk/id/local-authority/00HY,Wiltshire Council,04/07/2012,5106147829,28852.00,Alec French Architects ,125769,BS1 ,Wiltshire Council,Wiltshire Council,Consultants� Fees,Supplies and Services,CAPITAL
http://statistics.data.gov.uk/id/local-authority/00HY,Wiltshire Council,26/07/2012,5106147831,28852.00,Alec French Architects ,125769,BS1 ,Wiltshire Council,Wiltshire Council,Consultants� Fees,Supplies and Services,CAPITAL
http://statistics.data.gov.uk/id/local-authority/00HY,Wiltshire Council,04/07/2012,5106146071,6000.00,Alexandra Homes (Bristol) Ltd ,131787,BS15,Community Services,MH AOWA West,Adult Residential Placements - Spot Purchase,Third Party Payments,REVENUE
http://statistics.data.gov.uk/id/local-authority/00HY,Wiltshire Council,31/07/2012,5106148425,763.00,Alistair Snow Associates and Projec ,127802,EH11,Community Services,Public Arts Project,Consultants� Fees,Supplies and Services,REVENUE
http://statistics.data.gov.uk/id/local-authority/00HY,Wiltshire Council,06/07/2012,5106146491,3712.40,Alliance Home Care ,110986,SN15,Community Services,MH OP East Locality,Adult Residential Placements - Spot Purchase,Third Party Payments,REVENUE
http://statistics.data.gov.uk/id/local-authority/00HY,Wiltshire Council,06/07/2012,5106146959,3416.88,Alliance Home Care ,110986,SN15,Community Services,CTPLD County CIC 65+,Adult Residential Placements - Spot Purchase,Third Party Payments,REVENUE
http://statistics.data.gov.uk/id/local-authority/00HY,Wiltshire Council,06/07/2012,5106147621,3586.56,Alliance Home Care ,110986,SN15,Community Services,MH AOWA North,Adult Residential Placements - Spot Purchase,Third Party Payments,REVENUE
http://statistics.data.gov.uk/id/local-authority/00HY,Wiltshire Council,06/07/2012,5106147991,2683.28,Alliance Home Care ,110986,SN15,Community Services,MH AOWA North,Adult Residential Placements - Spot Purchase,Third Party Payments,REVENUE
http://statistics.data.gov.uk/id/local-authority/00HY,Wiltshire Council,06/07/2012,5106147993,3326.00,Alliance Home Care ,110986,SN15,Community Services,PI North Locality,Adult Residential Placements - Spot Purchase,Third Party Payments,REVENUE
http://statistics.data.gov.uk/id/local-authority/00HY,Wiltshire Council,04/07/2012,5106144393,5455.20,Allied Backup Project ,110111,EX17,Community Services,CTPLD County S75 U65,Adult Residential Placements - Spot Purchase,Third Party Payments,REVENUE
http://statistics.data.gov.uk/id/local-authority/00HY,Wiltshire Council,04/07/2012,5106140859,4300.61,Allied Healthcare Group Allied Healthcare Group,113066,SP2 ,Community Services,CTPLD County CIC U65,Adult Day Care - Spot,Third Party Payments,REVENUE
http://statistics.data.gov.uk/id/local-authority/00HY,Wiltshire Council,04/07/2012,5106140871,2072.26,Allied Healthcare Group Allied Healthcare Group,113066,SP2 ,Community Services,CTPLD County CIC U65,Adult Domiciliary Care - Spot,Third Party Payments,REVENUE
http://statistics.data.gov.uk/id/local-authority/00HY,Wiltshire Council,04/07/2012,5106140872,10856.36,Allied Healthcare Group Allied Healthcare Group,113066,SP2 ,Community Services,CTPLD County CIC U65,Adult Domiciliary Care - Spot Contribution,Income,REVENUE
http://statistics.data.gov.uk/id/local-authority/00HY,Wiltshire Council,04/07/2012,5106143268,3222.85,Allied Healthcare Group Allied Healthcare Group,113066,SP2 ,Community Services,PI South Locality,Adult Domiciliary care - Live in contribution,Income,REVENUE
http://statistics.data.gov.uk/id/local-authority/00HY,Wiltshire Council,04/07/2012,5106147761,886.22,Allied Healthcare Group Allied Healthcare Group,113066,SP2 ,Community Services,MH AOWA South,Adult Domiciliary Care - Mileage,Third Party Payments,REVENUE
http://statistics.data.gov.uk/id/local-authority/00HY,Wiltshire Council,05/07/2012,5106148386,624.50,Allied Healthcare Group Allied Healthcare Group,113066,SP2 ,Community Services,MH OP South Locality,Adult Domiciliary Care - Block,Third Party Payments,REVENUE
http://statistics.data.gov.uk/id/local-authority/00HY,Wiltshire Council,05/07/2012,5106148386,1496.58,Allied Healthcare Group Allied Healthcare Group,113066,SP2 ,Community Services,MH AOWA South,Adult Domiciliary Care - Block Contribution,Income,REVENUE
http://statistics.data.gov.uk/id/local-authority/00HY,Wiltshire Council,05/07/2012,5106148386,4090.41,Allied Healthcare Group Allied Healthcare Group,113066,SP2 ,Community Services,PI South Locality,Adult Domiciliary Care - Block Contribution,Income,REVENUE
http://statistics.data.gov.uk/id/local-authority/00HY,Wiltshire Council,05/07/2012,5106138200,1040.00,ALLSPARES  AUTO  LTD ,110116,CF33,Neighbourhood & Planning,Fleet Operations,Vehicle Parts,Transport Related,REVENUE
http://statistics.data.gov.uk/id/local-authority/00HY,Wiltshire Council,26/07/2012,5106151320,525.00,ALLSPARES  AUTO  LTD ,110116,CF33,Neighbourhood & Planning,Fleet Operations,Vehicle Parts,Transport Related,REVENUE
http://statistics.data.gov.uk/id/local-authority/00HY,Wiltshire Council,04/07/2012,1900860134,714.67,Allstar Business Solutions Limited ,132643,SN5 ,Neighbourhood & Planning,Housg Mtc Trading Ac,Vehicle Fuel,Transport Related,REVENUE
http://statistics.data.gov.uk/id/local-authority/00HY,Wiltshire Council,09/07/2012,1900860919,747.50,Allstar Business Solutions Limited ,132643,SN5 ,Neighbourhood & Planning,Housg Mtc Trading Ac,Vehicle Fuel,Transport Related,REVENUE
http://statistics.data.gov.uk/id/local-authority/00HY,Wiltshire Council,09/07/2012,5106149428,819.91,Allstar Business Solutions Limited ,132643,SN5 ,Neighbourhood & Planning,Pool Cars,Vehicle Fuel,Transport Related,REVENUE
http://statistics.data.gov.uk/id/local-authority/00HY,Wiltshire Council,18/07/2012,5106153038,1006.43,Allstar Business Solutions Limited ,132643,SN5 ,Neighbourhood & Planning,Pool Cars,Vehicle Fuel,Transport Related,REVENUE
http://statistics.data.gov.uk/id/local-authority/00HY,Wiltshire Council,19/07/2012,5106153827,878.48,Allstar Business Solutions Limited ,132643,SN5 ,Neighbourhood & Planning,Pool Cars,Vehicle Fuel,Transport Related,REVENUE
http://statistics.data.gov.uk/id/local-authority/00HY,Wiltshire Council,19/07/2012,5106153828,506.43,Allstar Business Solutions Limited ,132643,SN5 ,Neighbourhood & Planning,Pool Cars,Vehicle Fuel,Transport Related,REVENUE
http://statistics.data.gov.uk/id/local-authority/00HY,Wiltshire Council,19/07/2012,5106153829,666.88,Allstar Business Solutions Limited ,132643,SN5 ,Neighbourhood & Planning,Pool Cars,Vehicle Fuel,Transport Related,REVENUE
http://statistics.data.gov.uk/id/local-authority/00HY,Wiltshire Council,23/07/2012,5106154361,1181.41,Allstar Business Solutions Limited ,132643,SN5 ,Neighbourhood & Planning,Pool Cars,Vehicle Fuel,Transport Related,REVENUE
http://statistics.data.gov.uk/id/local-authority/00HY,Wiltshire Council,23/07/2012,5106154362,592.85,Allstar Business Solutions Limited ,132643,SN5 ,Neighbourhood & Planning,Pool Cars,Vehicle Fuel,Transport Related,REVENUE
http://statistics.data.gov.uk/id/local-authority/00HY,Wiltshire Council,24/07/2012,5106154643,637.93,Allstar Business Solutions Limited ,132643,SN5 ,Neighbourhood & Planning,Pool Cars,Vehicle Fuel,Transport Related,REVENUE
http://statistics.data.gov.uk/id/local-authority/00HY,Wiltshire Council,24/07/2012,5106154645,595.91,Allstar Business Solutions Limited ,132643,SN5 ,Neighbourhood & Planning,Pool Cars,Vehicle Fuel,Transport Related,REVENUE
http://statistics.data.gov.uk/id/local-authority/00HY,Wiltshire Council,24/07/2012,5106154660,629.10,Allstar Business Solutions Limited ,132643,SN5 ,Neighbourhood & Planning,Pool Cars,Vehicle Fuel,Transport Related,REVENUE
http://statistics.data.gov.uk/id/local-authority/00HY,Wiltshire Council,10/07/2012,1900861302,974.00,Alpha Taxis ,100124,BA14,Neighbourhood & Planning,DCS CTPLD U65,Transport Contracts,Third Party Payments,REVENUE
http://statistics.data.gov.uk/id/local-authority/00HY,Wiltshire Council,10/07/2012,1900861310,568.85,Alpha Taxis ,100124,BA14,Neighbourhood & Planning,Mainstream Secondary,Transport Contracts,Third Party Payments,REVENUE
http://statistics.data.gov.uk/id/local-authority/00HY,Wiltshire Council,10/07/2012,1900861311,1048.50,Alpha Taxis ,100124,BA14,Neighbourhood & Planning,LAC&16+ South&West,Transport Contracts,Third Party Payments,REVENUE
http://statistics.data.gov.uk/id/local-authority/00HY,Wiltshire Council,10/07/2012,1900861313,1080.00,Alpha Taxis ,100124,BA14,Neighbourhood & Planning,Community Team West,Transport Contracts,Third Party Payments,REVENUE
http://statistics.data.gov.uk/id/local-authority/00HY,Wiltshire Council,27/07/2012,1900875886,545.20,Alpha Taxis ,100124,BA14,Neighbourhood & Planning,Mainstream Primary,Transport Contracts,Third Party Payments,REVENUE
http://statistics.data.gov.uk/id/local-authority/00HY,Wiltshire Council,27/07/2012,1900875886,590.15,Alpha Taxis ,100124,BA14,Neighbourhood & Planning,Community Team North,Transport Contracts,Third Party Payments,REVENUE
http://statistics.data.gov.uk/id/local-authority/00HY,Wiltshire Council,27/07/2012,1900875886,1009.40,Alpha Taxis ,100124,BA14,Neighbourhood & Planning,LAC&16+ South&West,Transport Contracts,Third Party Payments,REVENUE
http://statistics.data.gov.uk/id/local-authority/00HY,Wiltshire Council,27/07/2012,1900875886,2301.36,Alpha Taxis ,100124,BA14,Neighbourhood & Planning,Community Team West,Transport Contracts,Third Party Payments,REVENUE
http://statistics.data.gov.uk/id/local-authority/00HY,Wiltshire Council,27/07/2012,1900875886,2697.40,Alpha Taxis ,100124,BA14,Neighbourhood & Planning,YPSS West,Transport Contracts,Third Party Payments,REVENUE
http://statistics.data.gov.uk/id/local-authority/00HY,Wiltshire Council,23/07/2012,1900873702,4161.80,Alzheimer's Society ,131298,PL2 ,Wiltshire Council,Wiltshire Council,Software Development,Supplies and Services,CAPITAL
http://statistics.data.gov.uk/id/local-authority/00HY,Wiltshire Council,23/07/2012,1900873703,8951.09,Alzheimer's Society ,131298,PL2 ,Wiltshire Council,Wiltshire Council,Software Development,Supplies and Services,CAPITAL
http://statistics.data.gov.uk/id/local-authority/00HY,Wiltshire Council,12/07/2012,5106147896,2806.00,Alzheimers Support ,113451,BA14,Community Services,Carers General,Grants Paid to individuals for Tangible Benefits,Supplies and Services,REVENUE
http://statistics.data.gov.uk/id/local-authority/00HY,Wiltshire Council,12/07/2012,5106147896,3962.00,Alzheimers Support ,113451,BA14,Community Services,Social Inclusion,Grants Paid to individuals for Tangible Benefits,Supplies and Services,REVENUE
http://statistics.data.gov.uk/id/local-authority/00HY,Wiltshire Council,12/07/2012,5106147896,7282.00,Alzheimers Support ,113451,BA14,Community Services,MH Commissioned Cont,Grants Paid to individuals for Tangible Benefits,Supplies and Services,REVENUE
http://statistics.data.gov.uk/id/local-authority/00HY,Wiltshire Council,12/07/2012,5106147897,4712.00,Alzheimers Support ,113451,BA14,Community Services,Social Inclusion,Grants Paid to individuals for Tangible Benefits,Supplies and Services,REVENUE
http://statistics.data.gov.uk/id/local-authority/00HY,Wiltshire Council,12/07/2012,5106147897,7195.00,Alzheimers Support ,113451,BA14,Community Services,Carers General,Grants Paid to individuals for Tangible Benefits,Supplies and Services,REVENUE
http://statistics.data.gov.uk/id/local-authority/00HY,Wiltshire Council,12/07/2012,5106147897,16686.00,Alzheimers Support ,113451,BA14,Community Services,MH Commissioned Cont,Grants Paid to individuals for Tangible Benefits,Supplies and Services,REVENUE
http://statistics.data.gov.uk/id/local-authority/00HY,Wiltshire Council,27/07/2012,5106153044,621.30,Alzheimers Support ,113451,BA14,Community Services,MH OP West Locality,Adult Domiciliary Care - Spot,Third Party Payments,REVENUE
http://statistics.data.gov.uk/id/local-authority/00HY,Wiltshire Council,24/07/2012,5106154909,21400.00,Alzheimers Support ,113451,BA14,Community Services,Carers Pooled Budget,Grants Paid to individuals for Tangible Benefits,Supplies and Services,REVENUE
http://statistics.data.gov.uk/id/local-authority/00HY,Wiltshire Council,11/07/2012,5106151683,2275.00,Amelix ,113468,CT5 ,Children & Education,VoiceInfluenceTeam,Marketing and Promotions,Supplies and Services,REVENUE
http://statistics.data.gov.uk/id/local-authority/00HY,Wiltshire Council,17/07/2012,5106152839,3476.34,Amicus Foster Care Limited ,126050,BS2 ,Children & Education,External Placements,Adult / Child Care Agency Placement,Third Party Payments,REVENUE
http://statistics.data.gov.uk/id/local-authority/00HY,Wiltshire Council,04/07/2012,1900859297,2251.64,AMS Care Wiltshire ,130764,SN4 ,Community Services,FNC,Adult Care Funded Nursing Care - Out of County Cli,Third Party Payments,REVENUE
http://statistics.data.gov.uk/id/local-authority/00HY,Wiltshire Council,04/07/2012,5106143995,3600.00,AMS Care Wiltshire ,130764,SN4 ,Community Services,Home Loans,Adult Care - Home Loan Costs,Capital charges and Expenditure,REVENUE
http://statistics.data.gov.uk/id/local-authority/00HY,Wiltshire Council,06/07/2012,5106144591,2105.20,AMS Care Wiltshire ,130764,SN4 ,Community Services,OP North Locality,Adult Care Nursing Placements- Spot Purchase,Third Party Payments,REVENUE
http://statistics.data.gov.uk/id/local-authority/00HY,Wiltshire Council,04/07/2012,5106146305,2513.20,AMS Care Wiltshire ,130764,SN4 ,Community Services,OP North Locality,Adult Care Nursing Placements- Spot Purchase,Third Party Payments,REVENUE
http://statistics.data.gov.uk/id/local-authority/00HY,Wiltshire Council,04/07/2012,5106146313,2514.40,AMS Care Wiltshire ,130764,SN4 ,Community Services,MH OP North Locality,Adult Care Nursing Placements- Spot Purchase,Third Party Payments,REVENUE
http://statistics.data.gov.uk/id/local-authority/00HY,Wiltshire Council,04/07/2012,5106146316,2514.40,AMS Care Wiltshire ,130764,SN4 ,Community Services,OP North Locality,Adult Care Nursing Placements- Spot Purchase,Third Party Payments,REVENUE
http://statistics.data.gov.uk/id/local-authority/00HY,Wiltshire Council,04/07/2012,5106146325,2514.40,AMS Care Wiltshire ,130764,SN4 ,Community Services,MH OP West Locality,Adult Care Nursing Placements- Spot Purchase,Third Party Payments,REVENUE
http://statistics.data.gov.uk/id/local-authority/00HY,Wiltshire Council,04/07/2012,5106146330,2070.00,AMS Care Wiltshire ,130764,SN4 ,Community Services,OP North Locality,Adult Care Nursing Placements- Spot Purchase,Third Party Payments,REVENUE
http://statistics.data.gov.uk/id/local-authority/00HY,Wiltshire Council,06/07/2012,5106146750,2281.20,AMS Care Wiltshire ,130764,SN4 ,Community Services,OP North Locality,Adult Care Nursing Placements- Spot Purchase,Third Party Payments,REVENUE
http://statistics.data.gov.uk/id/local-authority/00HY,Wiltshire Council,06/07/2012,5106146782,2106.36,AMS Care Wiltshire ,130764,SN4 ,Community Services,OP North Locality,Adult Care Nursing Placements- Spot Purchase,Third Party Payments,REVENUE
http://statistics.data.gov.uk/id/local-authority/00HY,Wiltshire Council,06/07/2012,5106146808,2504.80,AMS Care Wiltshire ,130764,SN4 ,Community Services,OP North Locality,Adult Care Nursing Placements- Spot Purchase,Third Party Payments,REVENUE
http://statistics.data.gov.uk/id/local-authority/00HY,Wiltshire Council,06/07/2012,5106147414,2105.20,AMS Care Wiltshire ,130764,SN4 ,Community Services,OP North Locality,Adult Care Nursing Placements- Spot Purchase,Third Party Payments,REVENUE
http://statistics.data.gov.uk/id/local-authority/00HY,Wiltshire Council,04/07/2012,5106147513,1140.60,AMS Care Wiltshire ,130764,SN4 ,Community Services,OP East Locality,Adult Care Nursing Placements- Block Contract,Third Party Payments,REVENUE
http://statistics.data.gov.uk/id/local-authority/00HY,Wiltshire Council,04/07/2012,5106147522,1140.60,AMS Care Wiltshire ,130764,SN4 ,Community Services,OP North Locality,Adult Care Nursing Placements- Block Contract,Third Party Payments,REVENUE
http://statistics.data.gov.uk/id/local-authority/00HY,Wiltshire Council,04/07/2012,5106147570,2281.20,AMS Care Wiltshire ,130764,SN4 ,Community Services,OP North Locality,Adult Care Nursing Placements- Block Contract,Third Party Payments,REVENUE
http://statistics.data.gov.uk/id/local-authority/00HY,Wiltshire Council,04/07/2012,5106147579,2281.20,AMS Care Wiltshire ,130764,SN4 ,Community Services,OP East Locality,Adult Care Nursing Placements- Block Contract,Third Party Payments,REVENUE
http://statistics.data.gov.uk/id/local-authority/00HY,Wiltshire Council,04/07/2012,5106147591,2281.20,AMS Care Wiltshire ,130764,SN4 ,Community Services,OP North Locality,Adult Care Nursing Placements- Block Contract,Third Party Payments,REVENUE
http://statistics.data.gov.uk/id/local-authority/00HY,Wiltshire Council,04/07/2012,5106147609,2281.20,AMS Care Wiltshire ,130764,SN4 ,Community Services,MH OP West Locality,Adult Care Nursing Placements- Block Contract,Third Party Payments,REVENUE
http://statistics.data.gov.uk/id/local-authority/00HY,Wiltshire Council,04/07/2012,5106147637,2281.20,AMS Care Wiltshire ,130764,SN4 ,Community Services,OP North Locality,Adult Care Nursing Placements- Block Contract,Third Party Payments,REVENUE
http://statistics.data.gov.uk/id/local-authority/00HY,Wiltshire Council,04/07/2012,5106147683,2036.75,AMS Care Wiltshire ,130764,SN4 ,Community Services,OP North Locality,Adult Care Nursing Placements- Block Contract,Third Party Payments,REVENUE
http://statistics.data.gov.uk/id/local-authority/00HY,Wiltshire Council,04/07/2012,5106147939,2106.36,AMS Care Wiltshire ,130764,SN4 ,Community Services,OP North Locality,Adult Care Nursing Placements- Spot Purchase,Third Party Payments,REVENUE
http://statistics.data.gov.uk/id/local-authority/00HY,Wiltshire Council,04/07/2012,5106147942,2514.40,AMS Care Wiltshire ,130764,SN4 ,Community Services,OP North Locality,Adult Care Nursing Placements- Spot Purchase,Third Party Payments,REVENUE
http://statistics.data.gov.uk/id/local-authority/00HY,Wiltshire Council,04/07/2012,5106147967,2106.36,AMS Care Wiltshire ,130764,SN4 ,Community Services,OP North Locality,Adult Care Nursing Placements- Spot Purchase,Third Party Payments,REVENUE
http://statistics.data.gov.uk/id/local-authority/00HY,Wiltshire Council,04/07/2012,5106148183,2765.20,AMS Care Wiltshire ,130764,SN4 ,Community Services,Home Loans,Adult Care - Home Loan Costs,Capital charges and Expenditure,REVENUE
http://statistics.data.gov.uk/id/local-authority/00HY,Wiltshire Council,06/07/2012,5106151027,977.64,AMS Care Wiltshire ,130764,SN4 ,Community Services,OP North Locality,Adult Care Nursing Placements- Block Contract,Third Party Payments,REVENUE
http://statistics.data.gov.uk/id/local-authority/00HY,Wiltshire Council,13/07/2012,5106152259,651.76,AMS Care Wiltshire ,130764,SN4 ,Community Services,OP North Locality,Adult Care Nursing Placements- Block Contract,Third Party Payments,REVENUE
http://statistics.data.gov.uk/id/local-authority/00HY,Wiltshire Council,17/07/2012,5106152861,2281.20,AMS Care Wiltshire ,130764,SN4 ,Community Services,OP North Locality,Adult Care Nursing Placements- Block Contract,Third Party Payments,REVENUE
http://statistics.data.gov.uk/id/local-authority/00HY,Wiltshire Council,17/07/2012,5106152864,2281.20,AMS Care Wiltshire ,130764,SN4 ,Community Services,OP North Locality,Adult Care Nursing Placements- Block Contract,Third Party Payments,REVENUE
http://statistics.data.gov.uk/id/local-authority/00HY,Wiltshire Council,17/07/2012,5106152867,2281.20,AMS Care Wiltshire ,130764,SN4 ,Community Services,OP North Locality,Adult Care Nursing Placements- Block Contract,Third Party Payments,REVENUE
http://statistics.data.gov.uk/id/local-authority/00HY,Wiltshire Council,17/07/2012,5106152870,2281.20,AMS Care Wiltshire ,130764,SN4 ,Community Services,OP North Locality,Adult Care Nursing Placements- Block Contract,Third Party Payments,REVENUE
http://statistics.data.gov.uk/id/local-authority/00HY,Wiltshire Council,17/07/2012,5106152873,2281.20,AMS Care Wiltshire ,130764,SN4 ,Community Services,OP North Locality,Adult Care Nursing Placements- Block Contract,Third Party Payments,REVENUE
http://statistics.data.gov.uk/id/local-authority/00HY,Wiltshire Council,17/07/2012,5106152876,2281.20,AMS Care Wiltshire ,130764,SN4 ,Community Services,OP North Locality,Adult Care Nursing Placements- Block Contract,Third Party Payments,REVENUE
http://statistics.data.gov.uk/id/local-authority/00HY,Wiltshire Council,17/07/2012,5106152881,2281.20,AMS Care Wiltshire ,130764,SN4 ,Community Services,OP North Locality,Adult Care Nursing Placements- Block Contract,Third Party Payments,REVENUE
http://statistics.data.gov.uk/id/local-authority/00HY,Wiltshire Council,17/07/2012,5106152884,2281.20,AMS Care Wiltshire ,130764,SN4 ,Community Services,OP North Locality,Adult Care Nursing Placements- Block Contract,Third Party Payments,REVENUE
http://statistics.data.gov.uk/id/local-authority/00HY,Wiltshire Council,17/07/2012,5106152887,2281.20,AMS Care Wiltshire ,130764,SN4 ,Community Services,OP North Locality,Adult Care Nursing Placements- Block Contract,Third Party Payments,REVENUE
http://statistics.data.gov.uk/id/local-authority/00HY,Wiltshire Council,17/07/2012,5106152890,2281.20,AMS Care Wiltshire ,130764,SN4 ,Community Services,MH OP West Locality,Adult Care Nursing Placements- Block Contract,Third Party Payments,REVENUE
http://statistics.data.gov.uk/id/local-authority/00HY,Wiltshire Council,17/07/2012,5106152893,2281.20,AMS Care Wiltshire ,130764,SN4 ,Community Services,MH OP West Locality,Adult Care Nursing Placements- Block Contract,Third Party Payments,REVENUE
http://statistics.data.gov.uk/id/local-authority/00HY,Wiltshire Council,17/07/2012,5106152896,2281.20,AMS Care Wiltshire ,130764,SN4 ,Community Services,MH OP West Locality,Adult Care Nursing Placements- Block Contract,Third Party Payments,REVENUE
http://statistics.data.gov.uk/id/local-authority/00HY,Wiltshire Council,17/07/2012,5106152899,2281.20,AMS Care Wiltshire ,130764,SN4 ,Community Services,MH OP North Locality,Adult Care Nursing Placements- Block Contract,Third Party Payments,REVENUE
http://statistics.data.gov.uk/id/local-authority/00HY,Wiltshire Council,17/07/2012,5106152902,2281.20,AMS Care Wiltshire ,130764,SN4 ,Community Services,MH OP North Locality,Adult Care Nursing Placements- Block Contract,Third Party Payments,REVENUE
http://statistics.data.gov.uk/id/local-authority/00HY,Wiltshire Council,17/07/2012,5106152905,2281.20,AMS Care Wiltshire ,130764,SN4 ,Community Services,MH OP North Locality,Adult Care Nursing Placements- Block Contract,Third Party Payments,REVENUE
http://statistics.data.gov.uk/id/local-authority/00HY,Wiltshire Council,19/07/2012,5106154113,2281.20,AMS Care Wiltshire ,130764,SN4 ,Community Services,OP North Locality,Adult Care Nursing Placements- Block Contract,Third Party Payments,REVENUE
http://statistics.data.gov.uk/id/local-authority/00HY,Wiltshire Council,19/07/2012,5106154116,2281.20,AMS Care Wiltshire ,130764,SN4 ,Community Services,OP North Locality,Adult Care Nursing Placements- Block Contract,Third Party Payments,REVENUE
http://statistics.data.gov.uk/id/local-authority/00HY,Wiltshire Council,19/07/2012,5106154119,2281.20,AMS Care Wiltshire ,130764,SN4 ,Community Services,OP North Locality,Adult Care Nursing Placements- Block Contract,Third Party Payments,REVENUE
http://statistics.data.gov.uk/id/local-authority/00HY,Wiltshire Council,20/07/2012,5106154291,2281.20,AMS Care Wiltshire ,130764,SN4 ,Community Services,OP North Locality,Adult Care Nursing Placements- Block Contract,Third Party Payments,REVENUE
http://statistics.data.gov.uk/id/local-authority/00HY,Wiltshire Council,20/07/2012,5106154294,2281.20,AMS Care Wiltshire ,130764,SN4 ,Community Services,OP North Locality,Adult Care Nursing Placements- Block Contract,Third Party Payments,REVENUE
http://statistics.data.gov.uk/id/local-authority/00HY,Wiltshire Council,20/07/2012,5106154297,2281.20,AMS Care Wiltshire ,130764,SN4 ,Community Services,OP North Locality,Adult Care Nursing Placements- Block Contract,Third Party Payments,REVENUE
http://statistics.data.gov.uk/id/local-authority/00HY,Wiltshire Council,20/07/2012,5106154310,2281.20,AMS Care Wiltshire ,130764,SN4 ,Community Services,OP North Locality,Adult Care Nursing Placements- Block Contract,Third Party Payments,REVENUE
http://statistics.data.gov.uk/id/local-authority/00HY,Wiltshire Council,20/07/2012,5106154312,2281.20,AMS Care Wiltshire ,130764,SN4 ,Community Services,OP North Locality,Adult Care Nursing Placements- Block Contract,Third Party Payments,REVENUE
http://statistics.data.gov.uk/id/local-authority/00HY,Wiltshire Council,20/07/2012,5106154314,2281.20,AMS Care Wiltshire ,130764,SN4 ,Community Services,OP North Locality,Adult Care Nursing Placements- Block Contract,Third Party Payments,REVENUE
http://statistics.data.gov.uk/id/local-authority/00HY,Wiltshire Council,11/07/2012,1900855114,5684.00,AMTEC Consulting PLC ,129078,GU9 ,Wiltshire Council,Wiltshire Council,Consultants� Fees,Supplies and Services,CAPITAL
http://statistics.data.gov.uk/id/local-authority/00HY,Wiltshire Council,11/07/2012,1900861288,10985.00,AMTEC Consulting PLC ,129078,GU9 ,Community Services,RSC HCDC Service Re,Consultants� Fees,Supplies and Services,REVENUE
http://statistics.data.gov.uk/id/local-authority/00HY,Wiltshire Council,11/07/2012,1900861289,5643.06,AMTEC Consulting PLC ,129078,GU9 ,Community Services,RSC HCDC Service Re,Consultants� Fees,Supplies and Services,REVENUE
http://statistics.data.gov.uk/id/local-authority/00HY,Wiltshire Council,10/07/2012,1900861290,29057.71,AMTEC Consulting PLC ,129078,GU9 ,Community Services,RSC HCDC Service Re,Consultants� Fees,Supplies and Services,REVENUE
http://statistics.data.gov.uk/id/local-authority/00HY,Wiltshire Council,31/07/2012,5106158381,1176.41,ANA Treatment Centres ,126008,PO6 ,Community Services,(9)ResPlacementsCIC,Adult Residential Placements - Substance Misuse,Third Party Payments,REVENUE
http://statistics.data.gov.uk/id/local-authority/00HY,Wiltshire Council,31/07/2012,5106158381,1176.42,ANA Treatment Centres ,126008,PO6 ,Community Services,(9)ResPlacementsPCT,Adult Residential Placements - Substance Misuse,Third Party Payments,REVENUE
http://statistics.data.gov.uk/id/local-authority/00HY,Wiltshire Council,06/07/2012,5106144661,3232.64,Andover Nursing Home ,110142,SP10,Community Services,OP East Locality,Adult Care Nursing Placements- Spot Purchase,Third Party Payments,REVENUE
http://statistics.data.gov.uk/id/local-authority/00HY,Wiltshire Council,06/07/2012,5106144836,1893.80,Andover Nursing Home ,110142,SP10,Community Services,OP East Locality,Adult Care Nursing Placements- Spot Purchase,Third Party Payments,REVENUE
http://statistics.data.gov.uk/id/local-authority/00HY,Wiltshire Council,06/07/2012,5106146791,3034.36,Andover Nursing Home ,110142,SP10,Community Services,MH OP East Locality,Adult Care Nursing Placements- Spot Purchase,Third Party Payments,REVENUE
http://statistics.data.gov.uk/id/local-authority/00HY,Wiltshire Council,30/07/2012,5106158093,2000.00,Andrew Townsend Architects ,133345,SN7 ,Neighbourhood & Planning,Bridge Routine Mtc,Highways - Other Materials,Supplies and Services,REVENUE
http://statistics.data.gov.uk/id/local-authority/00HY,Wiltshire Council,04/07/2012,1900860031,1258.56,Andy Taxis Limited ,100874,SP4 ,Neighbourhood & Planning,SEN 16+ Secondary,Transport Contracts,Third Party Payments,REVENUE
http://statistics.data.gov.uk/id/local-authority/00HY,Wiltshire Council,04/07/2012,1900860032,791.16,Andy Taxis Limited ,100874,SP4 ,Neighbourhood & Planning,Mainstream Primary,Transport Contracts,Third Party Payments,REVENUE
http://statistics.data.gov.uk/id/local-authority/00HY,Wiltshire Council,03/07/2012,1900859473,3933.00,Andybus  and  Coach Ltd ,100132,SN16,Neighbourhood & Planning,Mainstream Primary,Transport Contracts,Third Party Payments,REVENUE
http://statistics.data.gov.uk/id/local-authority/00HY,Wiltshire Council,03/07/2012,1900859473,4990.17,Andybus  and  Coach Ltd ,100132,SN16,Neighbourhood & Planning,Mainstream 16+ Sec,Transport Contracts,Third Party Payments,REVENUE
http://statistics.data.gov.uk/id/local-authority/00HY,Wiltshire Council,03/07/2012,1900859473,19505.61,Andybus  and  Coach Ltd ,100132,SN16,Neighbourhood & Planning,Mainstream Secondary,Transport Contracts,Third Party Payments,REVENUE
http://statistics.data.gov.uk/id/local-authority/00HY,Wiltshire Council,03/07/2012,1900859473,41306.21,Andybus  and  Coach Ltd ,100132,SN16,Neighbourhood & Planning,Public Transport,Transport Contracts,Third Party Payments,REVENUE
http://statistics.data.gov.uk/id/local-authority/00HY,Wiltshire Council,24/07/2012,1900874024,6444.66,Andybus  and  Coach Ltd ,100132,SN16,Neighbourhood & Planning,Concessionary Fares,Compensation for Concessionary fares,Third Party Payments,REVENUE
http://statistics.data.gov.uk/id/local-authority/00HY,Wiltshire Council,09/07/2012,5106151093,754.04,ANGEL HOTEL CHIPPENHAM ,110150,SN15,Resources,DemocraticMemberSupp,Premises Rental / Hire Charges,Premises Related,REVENUE
http://statistics.data.gov.uk/id/local-authority/00HY,Wiltshire Council,12/07/2012,5106151871,839.59,ANGEL HOTEL CHIPPENHAM ,110150,SN15,Children & Education,EYLearnDevTm,Premises Rental / Hire Charges,Premises Related,REVENUE
http://statistics.data.gov.uk/id/local-authority/00HY,Wiltshire Council,24/07/2012,5106154631,539.59,ANGEL HOTEL CHIPPENHAM ,110150,SN15,Children & Education,EYLearnDevTm,Premises Rental / Hire Charges,Premises Related,REVENUE
http://statistics.data.gov.uk/id/local-authority/00HY,Wiltshire Council,25/07/2012,1900874113,2144.71,Aon Limited ,113554,LE1 ,Neighbourhood & Planning,Admin Hsg Management,Tenants� Contents Insurance,Premises Related,REVENUE
http://statistics.data.gov.uk/id/local-authority/00HY,Wiltshire Council,25/07/2012,5106156127,2340.00,APA Consultants Ltd ,113361,SN10,Neighbourhood & Planning,DevControlNorth,Consultants� Fees,Supplies and Services,REVENUE
http://statistics.data.gov.uk/id/local-authority/00HY,Wiltshire Council,04/07/2012,1900860094,1564.31,APL Travel Limited ,100596,SN4 ,Neighbourhood & Planning,Mainstream Secondary,Transport Contracts,Third Party Payments,REVENUE
http://statistics.data.gov.uk/id/local-authority/00HY,Wiltshire Council,04/07/2012,1900860094,2996.02,APL Travel Limited ,100596,SN4 ,Neighbourhood & Planning,Public Transport,Transport Contracts,Third Party Payments,REVENUE
http://statistics.data.gov.uk/id/local-authority/00HY,Wiltshire Council,04/07/2012,1900860095,1423.41,APL Travel Limited ,100596,SN4 ,Neighbourhood & Planning,Mainstream Secondary,Transport Contracts,Third Party Payments,REVENUE
http://statistics.data.gov.uk/id/local-authority/00HY,Wiltshire Council,04/07/2012,1900860095,2668.43,APL Travel Limited ,100596,SN4 ,Neighbourhood & Planning,Mainstream 16+ FE,Transport Contracts,Third Party Payments,REVENUE
http://statistics.data.gov.uk/id/local-authority/00HY,Wiltshire Council,04/07/2012,1900860095,4635.75,APL Travel Limited ,100596,SN4 ,Neighbourhood & Planning,Public Transport,Transport Contracts,Third Party Payments,REVENUE
http://statistics.data.gov.uk/id/local-authority/00HY,Wiltshire Council,04/07/2012,1900860096,5632.98,APL Travel Limited ,100596,SN4 ,Neighbourhood & Planning,Mainstream Secondary,Transport Contracts,Third Party Payments,REVENUE
http://statistics.data.gov.uk/id/local-authority/00HY,Wiltshire Council,04/07/2012,1900860098,2787.83,APL Travel Limited ,100596,SN4 ,Neighbourhood & Planning,Mainstream Secondary,Transport Contracts,Third Party Payments,REVENUE
http://statistics.data.gov.uk/id/local-authority/00HY,Wiltshire Council,06/07/2012,1900860858,1347.80,APL Travel Limited ,100596,SN4 ,Neighbourhood & Planning,Mainstream Secondary,Transport Contracts,Third Party Payments,REVENUE
http://statistics.data.gov.uk/id/local-authority/00HY,Wiltshire Council,06/07/2012,1900860858,5272.19,APL Travel Limited ,100596,SN4 ,Neighbourhood & Planning,Public Transport,Transport Contracts,Third Party Payments,REVENUE
http://statistics.data.gov.uk/id/local-authority/00HY,Wiltshire Council,23/07/2012,1900873478,720.00,APL Travel Limited ,100596,SN4 ,Neighbourhood & Planning,Public Transport,Transport Contracts,Third Party Payments,REVENUE
http://statistics.data.gov.uk/id/local-authority/00HY,Wiltshire Council,24/07/2012,1900874026,5546.67,APL Travel Limited ,100596,SN4 ,Neighbourhood & Planning,Concessionary Fares,Compensation for Concessionary fares,Third Party Payments,REVENUE
http://statistics.data.gov.uk/id/local-authority/00HY,Wiltshire Council,06/07/2012,5106144601,2600.00,Arbory Residential Home ,113587,SP11,Community Services,MH OP East Locality,Adult Residential Placements - Spot Purchase,Third Party Payments,REVENUE
http://statistics.data.gov.uk/id/local-authority/00HY,Wiltshire Council,06/07/2012,5106146479,2037.52,Arch Care Services Ltd ,110169,BS21,Community Services,MH AOWA West,Adult Residential Placements - Spot Purchase,Third Party Payments,REVENUE
http://statistics.data.gov.uk/id/local-authority/00HY,Wiltshire Council,03/07/2012,5106145251,745.00,Arrowline Minibuses Ltd ,110179,SP5 ,Children & Education,EducServChldnLkdAft,Educational Fees,Supplies and Services,REVENUE
http://statistics.data.gov.uk/id/local-authority/00HY,Wiltshire Council,25/07/2012,5106156037,1075.00,Arthur Williams Consulting Ltd ,129581,BA14,Wiltshire Council,Wiltshire Council,Consultants� Fees,Supplies and Services,CAPITAL
http://statistics.data.gov.uk/id/local-authority/00HY,Wiltshire Council,25/07/2012,5106156038,960.00,Arthur Williams Consulting Ltd ,129581,BA14,Wiltshire Council,Wiltshire Council,Consultants� Fees,Supplies and Services,CAPITAL
http://statistics.data.gov.uk/id/local-authority/00HY,Wiltshire Council,25/07/2012,5106156040,665.00,Arthur Williams Consulting Ltd ,129581,BA14,Wiltshire Council,Wiltshire Council,Consultants� Fees,Supplies and Services,CAPITAL
http://statistics.data.gov.uk/id/local-authority/00HY,Wiltshire Council,25/07/2012,5106156042,500.00,Arthur Williams Consulting Ltd ,129581,BA14,Wiltshire Council,Wiltshire Council,Consultants� Fees,Supplies and Services,CAPITAL
http://statistics.data.gov.uk/id/local-authority/00HY,Wiltshire Council,19/07/2012,5106153973,1447.28,Articles of Faith ,133650,BL9 ,Children & Education,STNDRDS&CURRC ACTV,Educational Aids,Supplies and Services,REVENUE
http://statistics.data.gov.uk/id/local-authority/00HY,Wiltshire Council,05/07/2012,1900860661,1047.97,Arval UK Ltd ,113621,SN5 ,Neighbourhood & Planning,Housg Mtc Trading Ac,Vehicle Fuel,Transport Related,REVENUE
http://statistics.data.gov.uk/id/local-authority/00HY,Wiltshire Council,05/07/2012,1900860662,714.67,Arval UK Ltd ,113621,SN5 ,Neighbourhood & Planning,Housg Mtc Trading Ac,Vehicle Fuel,Transport Related,REVENUE
http://statistics.data.gov.uk/id/local-authority/00HY,Wiltshire Council,06/07/2012,1900860914,747.50,Arval UK Ltd ,113621,SN5 ,Neighbourhood & Planning,Housg Mtc Trading Ac,Vehicle Fuel,Transport Related,REVENUE
http://statistics.data.gov.uk/id/local-authority/00HY,Wiltshire Council,06/07/2012,5106147714,2045.20,Ashbourne Court Care Home ,133906,SP10,Community Services,OP East Locality,Adult Care Nursing Placements- Spot Purchase,Third Party Payments,REVENUE
http://statistics.data.gov.uk/id/local-authority/00HY,Wiltshire Council,17/07/2012,5106152803,3184.83,Ashfords Solicitors ,113641,EX1 ,Children & Education,HQ Social Care,Legal Fees,Supplies and Services,REVENUE
http://statistics.data.gov.uk/id/local-authority/00HY,Wiltshire Council,26/07/2012,1900875807,991.40,Ashton Cabs ,101384,BA14,Neighbourhood & Planning,FamilySuppSouth&West,Transport Contracts,Third Party Payments,REVENUE
http://statistics.data.gov.uk/id/local-authority/00HY,Wiltshire Council,02/07/2012,5106145061,10000.00,Ask ,110189,BA14,Children & Education,Family&Parenting Sup,Other Social & Welfare Costs,Third Party Payments,REVENUE
http://statistics.data.gov.uk/id/local-authority/00HY,Wiltshire Council,02/07/2012,5106145062,17500.00,Ask ,110189,BA14,Children & Education,Family&Parenting Sup,Other Social & Welfare Costs,Third Party Payments,REVENUE
http://statistics.data.gov.uk/id/local-authority/00HY,Wiltshire Council,06/07/2012,5106146569,3800.00,Aspects and Milestones Trust ,131150,BS23,Community Services,CTPLD County CIC U65,Adult Residential Placements - Spot Purchase,Third Party Payments,REVENUE
http://statistics.data.gov.uk/id/local-authority/00HY,Wiltshire Council,06/07/2012,5106147650,3729.80,Aspects and Milestones Trust ,131150,BS23,Community Services,MH AOWA West,Adult Residential Placements - Spot Purchase,Third Party Payments,REVENUE
http://statistics.data.gov.uk/id/local-authority/00HY,Wiltshire Council,18/07/2012,1900872603,745.28,Aspire Taxis ,101274,SP2 ,Neighbourhood & Planning,SEN Secondary,Transport Contracts,Third Party Payments,REVENUE
http://statistics.data.gov.uk/id/local-authority/00HY,Wiltshire Council,18/07/2012,1900872618,1407.68,Aspire Taxis ,101274,SP2 ,Neighbourhood & Planning,SEN Secondary,Transport Contracts,Third Party Payments,REVENUE
http://statistics.data.gov.uk/id/local-authority/00HY,Wiltshire Council,06/07/2012,1900860654,91314.88,Aster Group Ltd  Ridgeway Care. ,113069,SN10,Community Services,OP Central Holding,Payments to Contractors - Other,Third Party Payments,REVENUE
http://statistics.data.gov.uk/id/local-authority/00HY,Wiltshire Council,10/07/2012,1900861144,16162.80,Aster Group Ltd  Ridgeway Care. ,113069,SN10,Community Services,OP Central Holding,Payments to Contractors - Other,Third Party Payments,REVENUE
http://statistics.data.gov.uk/id/local-authority/00HY,Wiltshire Council,10/07/2012,1900861146,9705.16,Aster Group Ltd  Ridgeway Care. ,113069,SN10,Community Services,OP Central Holding,Payments to Contractors - Other,Third Party Payments,REVENUE
http://statistics.data.gov.uk/id/local-authority/00HY,Wiltshire Council,10/07/2012,1900861155,33598.72,Aster Group Ltd  Ridgeway Care. ,113069,SN10,Community Services,OP Central Holding,Payments to Contractors - Other,Third Party Payments,REVENUE
http://statistics.data.gov.uk/id/local-authority/00HY,Wiltshire Council,04/07/2012,1900858947,921.50,Aster Living ,112275,SN10,Wiltshire Council,Wiltshire Council,Other Professional Fees,Supplies and Services,CAPITAL
http://statistics.data.gov.uk/id/local-authority/00HY,Wiltshire Council,04/07/2012,1900859036,500.00,Aster Living ,112275,SN10,Wiltshire Council,Wiltshire Council,Other Professional Fees,Supplies and Services,CAPITAL
http://statistics.data.gov.uk/id/local-authority/00HY,Wiltshire Council,04/07/2012,1900860139,558.00,Aster Living ,112275,SN10,Wiltshire Council,Wiltshire Council,Other Professional Fees,Supplies and Services,CAPITAL
http://statistics.data.gov.uk/id/local-authority/00HY,Wiltshire Council,04/07/2012,1900860143,500.00,Aster Living ,112275,SN10,Wiltshire Council,Wiltshire Council,Other Professional Fees,Supplies and Services,CAPITAL
http://statistics.data.gov.uk/id/local-authority/00HY,Wiltshire Council,04/07/2012,1900860229,650.00,Aster Living ,112275,SN10,Wiltshire Council,Wiltshire Council,Other Professional Fees,Supplies and Services,CAPITAL
http://statistics.data.gov.uk/id/local-authority/00HY,Wiltshire Council,05/07/2012,1900860230,1240.00,Aster Living ,112275,SN10,Wiltshire Council,Wiltshire Council,Other Professional Fees,Supplies and Services,CAPITAL
http://statistics.data.gov.uk/id/local-authority/00HY,Wiltshire Council,05/07/2012,1900860231,500.00,Aster Living ,112275,SN10,Wiltshire Council,Wiltshire Council,Other Professional Fees,Supplies and Services,CAPITAL
http://statistics.data.gov.uk/id/local-authority/00HY,Wiltshire Council,05/07/2012,1900860236,500.00,Aster Living ,112275,SN10,Wiltshire Council,Wiltshire Council,Other Professional Fees,Supplies and Services,CAPITAL
http://statistics.data.gov.uk/id/local-authority/00HY,Wiltshire Council,10/07/2012,1900860252,500.00,Aster Living ,112275,SN10,Wiltshire Council,Wiltshire Council,Other Professional Fees,Supplies and Services,CAPITAL
http://statistics.data.gov.uk/id/local-authority/00HY,Wiltshire Council,24/07/2012,1900873833,650.00,Aster Living ,112275,SN10,Wiltshire Council,Wiltshire Council,Other Professional Fees,Supplies and Services,CAPITAL
http://statistics.data.gov.uk/id/local-authority/00HY,Wiltshire Council,06/07/2012,5106147618,1997.20,Astley House Care Centre ,133956,GL50,Community Services,MH OP North Locality,Adult Care Nursing Placements- Spot Purchase,Third Party Payments,REVENUE
http://statistics.data.gov.uk/id/local-authority/00HY,Wiltshire Council,04/07/2012,5106146077,2066.44,Aston House Care Home ,132321,DL3 ,Community Services,MH OP North Locality,Adult Residential Placements - Spot Purchase,Third Party Payments,REVENUE
http://statistics.data.gov.uk/id/local-authority/00HY,Wiltshire Council,27/07/2012,5106149397,23114.05,Ats Euromaster Ltd ,113709,B6 5,Neighbourhood & Planning,Fleet Operations,Vehicle 3rd Party Repairs,Transport Related,REVENUE
http://statistics.data.gov.uk/id/local-authority/00HY,Wiltshire Council,12/07/2012,1900854942,665.00,Atworth Youth Club ,113713,SN12,Community Services,Area Board Melksham,Area Board Grants,Supplies and Services,REVENUE
http://statistics.data.gov.uk/id/local-authority/00HY,Wiltshire Council,12/07/2012,1900859027,840.65,AudioGO Limited ,101157,BA2 ,Community Services,Lib General,Library Service,Supplies and Services,REVENUE
http://statistics.data.gov.uk/id/local-authority/00HY,Wiltshire Council,04/07/2012,5106137177,708.08,Audley Care White Horse ,121958,SN8 ,Community Services,OP East Locality,Adult Domiciliary Care - Spot Contribution,Income,REVENUE
http://statistics.data.gov.uk/id/local-authority/00HY,Wiltshire Council,04/07/2012,5106147853,1047.03,Audley Care White Horse ,121958,SN8 ,Community Services,OP East Locality,Adult Domiciliary Care - Spot,Third Party Payments,REVENUE
http://statistics.data.gov.uk/id/local-authority/00HY,Wiltshire Council,12/07/2012,5106151788,945.42,Audley Care White Horse ,121958,SN8 ,Community Services,MH OP East Locality,Adult Domiciliary Care - Spot,Third Party Payments,REVENUE
http://statistics.data.gov.uk/id/local-authority/00HY,Wiltshire Council,18/07/2012,5106153086,2006.39,Audley Care White Horse ,121958,SN8 ,Community Services,OP East Locality,Adult Domiciliary Care - Spot,Third Party Payments,REVENUE
http://statistics.data.gov.uk/id/local-authority/00HY,Wiltshire Council,18/07/2012,5106153089,1526.96,Audley Care White Horse ,121958,SN8 ,Community Services,PI East Locality,Adult Domiciliary Care - Spot,Third Party Payments,REVENUE
http://statistics.data.gov.uk/id/local-authority/00HY,Wiltshire Council,19/07/2012,5106153904,979.10,Audley Care White Horse ,121958,SN8 ,Community Services,MH OP East Locality,Adult Domiciliary Care - Spot,Third Party Payments,REVENUE
http://statistics.data.gov.uk/id/local-authority/00HY,Wiltshire Council,26/07/2012,5106154629,727.37,Audley Care White Horse ,121958,SN8 ,Community Services,OP East Locality,Adult Domiciliary Care - Spot Contribution,Income,REVENUE
http://statistics.data.gov.uk/id/local-authority/00HY,Wiltshire Council,24/07/2012,5106154641,834.97,Audley Care White Horse ,121958,SN8 ,Community Services,OP East Locality,Adult Domiciliary Care - Spot Contribution,Income,REVENUE
http://statistics.data.gov.uk/id/local-authority/00HY,Wiltshire Council,06/07/2012,5106146835,5721.44,Autism Specialised care Homes ,110205,BS10,Community Services,CTPLD County CIC U65,Adult Residential Placements - Spot Purchase,Third Party Payments,REVENUE
http://statistics.data.gov.uk/id/local-authority/00HY,Wiltshire Council,06/07/2012,5106146837,6983.32,Autism West Midlands ,110206,WR9 ,Community Services,CTPLD County CIC U65,Adult Residential Placements - Spot Purchase,Third Party Payments,REVENUE
http://statistics.data.gov.uk/id/local-authority/00HY,Wiltshire Council,03/07/2012,5106145180,1858.85,Automotive Leasing Ltd ,113729,SL1 ,Neighbourhood & Planning,Fleet Operations,Leased Car Scheme,Transport Related,REVENUE
http://statistics.data.gov.uk/id/local-authority/00HY,Wiltshire Council,17/07/2012,5106152748,1858.85,Automotive Leasing Ltd ,113729,SL1 ,Neighbourhood & Planning,Fleet Operations,Leased Car Scheme,Transport Related,REVENUE
http://statistics.data.gov.uk/id/local-authority/00HY,Wiltshire Council,17/07/2012,5106152911,1858.85,Automotive Leasing Ltd ,113729,SL1 ,Neighbourhood & Planning,Fleet Operations,Leased Car Scheme,Transport Related,REVENUE
http://statistics.data.gov.uk/id/local-authority/00HY,Wiltshire Council,17/07/2012,5106152912,1858.85,Automotive Leasing Ltd ,113729,SL1 ,Neighbourhood & Planning,Fleet Operations,Leased Car Scheme,Transport Related,REVENUE
http://statistics.data.gov.uk/id/local-authority/00HY,Wiltshire Council,24/07/2012,1900873835,2157.53,Avenue Care (Fareham) Ltd ,110691,SN10,Community Services,MH OP West Locality,Adult Residential Place - Spot Purchase,Income,REVENUE
http://statistics.data.gov.uk/id/local-authority/00HY,Wiltshire Council,24/07/2012,1900873838,983.57,Avenue Care (Fareham) Ltd ,110691,SN10,Community Services,MH OP West Locality,Adult Residential Place - Spot Purchase,Income,REVENUE
http://statistics.data.gov.uk/id/local-authority/00HY,Wiltshire Council,04/07/2012,5106146299,1933.28,Avenue Care (Fareham) Ltd ,110691,SN10,Community Services,MH OP East Locality,Adult Residential Placements - Spot Purchase,Third Party Payments,REVENUE
http://statistics.data.gov.uk/id/local-authority/00HY,Wiltshire Council,04/07/2012,5106146301,1969.00,Avenue Care (Fareham) Ltd ,110691,SN10,Community Services,CTPLD County CIC 65+,Adult Residential Placements - Spot Purchase,Third Party Payments,REVENUE
http://statistics.data.gov.uk/id/local-authority/00HY,Wiltshire Council,04/07/2012,5106146303,1916.00,Avenue Care (Fareham) Ltd ,110691,SN10,Community Services,OP East Locality,Adult Residential Placements - Spot Purchase,Third Party Payments,REVENUE
http://statistics.data.gov.uk/id/local-authority/00HY,Wiltshire Council,06/07/2012,5106146905,2080.60,Avenue Care (Fareham) Ltd ,110691,SN10,Community Services,MH OP West Locality,Adult Residential Placements - Spot Purchase,Third Party Payments,REVENUE
http://statistics.data.gov.uk/id/local-authority/00HY,Wiltshire Council,04/07/2012,5106133234,1904.00,"Avenue House, Dorchester ",133778,DT1 ,Community Services,OP East Locality,Adult Residential Placements - Spot Purchase,Third Party Payments,REVENUE
http://statistics.data.gov.uk/id/local-authority/00HY,Wiltshire Council,04/07/2012,5106143791,2144.00,Avery Healthcare Cepen Lodge ,126733,SN14,Community Services,Home Loans,Adult Care - Home Loan Costs,Capital charges and Expenditure,REVENUE
http://statistics.data.gov.uk/id/local-authority/00HY,Wiltshire Council,04/07/2012,5106143793,2280.00,Avery Healthcare Cepen Lodge ,126733,SN14,Community Services,Home Loans,Adult Care - Home Loan Costs,Capital charges and Expenditure,REVENUE
http://statistics.data.gov.uk/id/local-authority/00HY,Wiltshire Council,04/07/2012,5106143952,3100.00,Avery Healthcare Cepen Lodge ,126733,SN14,Community Services,Home Loans,Adult Care - Home Loan Costs,Capital charges and Expenditure,REVENUE
http://statistics.data.gov.uk/id/local-authority/00HY,Wiltshire Council,06/07/2012,5106144677,2060.40,Avery Healthcare Cepen Lodge ,126733,SN14,Community Services,MH OP West Locality,Adult Residential Placements - Spot Purchase,Third Party Payments,REVENUE
http://statistics.data.gov.uk/id/local-authority/00HY,Wiltshire Council,06/07/2012,5106144679,2151.96,Avery Healthcare Cepen Lodge ,126733,SN14,Community Services,MH OP North Locality,Adult Residential Placements - Spot Purchase,Third Party Payments,REVENUE
http://statistics.data.gov.uk/id/local-authority/00HY,Wiltshire Council,06/07/2012,5106144683,2060.40,Avery Healthcare Cepen Lodge ,126733,SN14,Community Services,OP North Locality,Adult Residential Placements - Spot Purchase,Third Party Payments,REVENUE
http://statistics.data.gov.uk/id/local-authority/00HY,Wiltshire Council,06/07/2012,5106144686,2165.44,Avery Healthcare Cepen Lodge ,126733,SN14,Community Services,OP North Locality,Adult Residential Placements - Spot Purchase,Third Party Payments,REVENUE
http://statistics.data.gov.uk/id/local-authority/00HY,Wiltshire Council,06/07/2012,5106144690,2302.80,Avery Healthcare Cepen Lodge ,126733,SN14,Community Services,MH OP North Locality,Adult Residential Placements - Spot Purchase,Third Party Payments,REVENUE
http://statistics.data.gov.uk/id/local-authority/00HY,Wiltshire Council,06/07/2012,5106144833,2060.40,Avery Healthcare Cepen Lodge ,126733,SN14,Community Services,OP West Locality,Adult Residential Placements - Spot Purchase,Third Party Payments,REVENUE
http://statistics.data.gov.uk/id/local-authority/00HY,Wiltshire Council,04/07/2012,5106146012,2165.44,Avery Healthcare Cepen Lodge ,126733,SN14,Community Services,OP North Locality,Adult Residential Placements - Spot Purchase,Third Party Payments,REVENUE
http://statistics.data.gov.uk/id/local-authority/00HY,Wiltshire Council,04/07/2012,5106146014,2302.80,Avery Healthcare Cepen Lodge ,126733,SN14,Community Services,OP West Locality,Adult Residential Placements - Spot Purchase,Third Party Payments,REVENUE
http://statistics.data.gov.uk/id/local-authority/00HY,Wiltshire Council,04/07/2012,5106146019,2060.40,Avery Healthcare Cepen Lodge ,126733,SN14,Community Services,MH OP North Locality,Adult Residential Placements - Spot Purchase,Third Party Payments,REVENUE
http://statistics.data.gov.uk/id/local-authority/00HY,Wiltshire Council,04/07/2012,5106146024,1909.60,Avery Healthcare Cepen Lodge ,126733,SN14,Community Services,OP North Locality,Adult Residential Placements - Spot Purchase,Third Party Payments,REVENUE
http://statistics.data.gov.uk/id/local-authority/00HY,Wiltshire Council,04/07/2012,5106146026,1909.60,Avery Healthcare Cepen Lodge ,126733,SN14,Community Services,OP North Locality,Adult Residential Placements - Spot Purchase,Third Party Payments,REVENUE
http://statistics.data.gov.uk/id/local-authority/00HY,Wiltshire Council,04/07/2012,5106146028,2060.40,Avery Healthcare Cepen Lodge ,126733,SN14,Community Services,OP North Locality,Adult Residential Placements - Spot Purchase,Third Party Payments,REVENUE
http://statistics.data.gov.uk/id/local-authority/00HY,Wiltshire Council,06/07/2012,5106147432,2165.44,Avery Healthcare Cepen Lodge ,126733,SN14,Community Services,OP North Locality,Adult Residential Placements - Spot Purchase,Third Party Payments,REVENUE
http://statistics.data.gov.uk/id/local-authority/00HY,Wiltshire Council,06/07/2012,5106147689,3400.00,Avery Healthcare Cepen Lodge ,126733,SN14,Community Services,OP North Locality,Adult Residential Placements - Spot Purchase,Third Party Payments,REVENUE
http://statistics.data.gov.uk/id/local-authority/00HY,Wiltshire Council,18/07/2012,5106153743,2225.10,Avery Healthcare Cepen Lodge ,126733,SN14,Community Services,OP North Locality,Adult Residential Placements - 12 Week,Third Party Payments,REVENUE
http://statistics.data.gov.uk/id/local-authority/00HY,Wiltshire Council,06/07/2012,5106146381,1900.64,Avery Healthcare Group - Acorn Lodg ,131308,CV10,Community Services,OP West Locality,Adult Residential Placements - Spot Purchase,Third Party Payments,REVENUE
http://statistics.data.gov.uk/id/local-authority/00HY,Wiltshire Council,03/07/2012,1900859310,5295.25,Avery Healthcare Ltd- Langford Sali ,112676,NN4 ,Community Services,FNC,Adult Care Funded Nursing Care - Out of County Cli,Third Party Payments,REVENUE
http://statistics.data.gov.uk/id/local-authority/00HY,Wiltshire Council,31/07/2012,1900876416,33774.63,Avery Healthcare Ltd- Langford Sali ,112676,NN4 ,Community Services,FNC,Adult Care Funded Nursing Care - Out of County Cli,Third Party Payments,REVENUE
http://statistics.data.gov.uk/id/local-authority/00HY,Wiltshire Council,04/07/2012,5106145967,2393.20,Avery Healthcare Ltd- Langford Sali ,112676,NN4 ,Community Services,MH OP South Locality,Adult Care Nursing Placements- Spot Purchase,Third Party Payments,REVENUE
http://statistics.data.gov.uk/id/local-authority/00HY,Wiltshire Council,04/07/2012,5106145971,2649.76,Avery Healthcare Ltd- Langford Sali ,112676,NN4 ,Community Services,MH OP South Locality,Adult Care Nursing Placements- Spot Purchase,Third Party Payments,REVENUE
http://statistics.data.gov.uk/id/local-authority/00HY,Wiltshire Council,04/07/2012,5106145974,2436.40,Avery Healthcare Ltd- Langford Sali ,112676,NN4 ,Community Services,MH OP South Locality,Adult Care Nursing Placements- Spot Purchase,Third Party Payments,REVENUE
http://statistics.data.gov.uk/id/local-authority/00HY,Wiltshire Council,06/07/2012,5106146702,2595.20,Avery Healthcare Ltd- Langford Sali ,112676,NN4 ,Community Services,MH OP South Locality,Adult Care Nursing Placements- Spot Purchase,Third Party Payments,REVENUE
http://statistics.data.gov.uk/id/local-authority/00HY,Wiltshire Council,06/07/2012,5106146705,2140.00,Avery Healthcare Ltd- Langford Sali ,112676,NN4 ,Community Services,MH OP South Locality,Adult Care Nursing Placements- Spot Purchase,Third Party Payments,REVENUE
http://statistics.data.gov.uk/id/local-authority/00HY,Wiltshire Council,04/07/2012,5106147936,2595.20,Avery Healthcare Ltd- Langford Sali ,112676,NN4 ,Community Services,OP South Locality,Adult Care Nursing Placements- Spot Purchase,Third Party Payments,REVENUE
http://statistics.data.gov.uk/id/local-authority/00HY,Wiltshire Council,04/07/2012,5106148081,2292.28,Avery Healthcare Ltd- Langford Sali ,112676,NN4 ,Community Services,OP South Locality,Adult Care Nursing Placements- Spot Purchase,Third Party Payments,REVENUE
http://statistics.data.gov.uk/id/local-authority/00HY,Wiltshire Council,04/07/2012,5106143780,1832.40,Avery Homes Bristol Ltd ,113742,NN4 ,Community Services,Home Loans,Adult Care - Home Loan Costs,Capital charges and Expenditure,REVENUE
http://statistics.data.gov.uk/id/local-authority/00HY,Wiltshire Council,05/07/2012,1900860640,2090.25,Avon and W Wilts MHC NHS Trust ,110216,BA1 ,Community Services,Shared Care CastleRq,Substance Misuse - Payments to Contractors,Third Party Payments,REVENUE
http://statistics.data.gov.uk/id/local-authority/00HY,Wiltshire Council,05/07/2012,1900860640,5717.75,Avon and W Wilts MHC NHS Trust ,110216,BA1 ,Community Services,(8) Shared Care AWP,Substance Misuse - Payments to Contractors,Third Party Payments,REVENUE
http://statistics.data.gov.uk/id/local-authority/00HY,Wiltshire Council,05/07/2012,1900860640,9877.75,Avon and W Wilts MHC NHS Trust ,110216,BA1 ,Community Services,Alcohol Treatment Rq,Substance Misuse - Payments to Contractors,Third Party Payments,REVENUE
http://statistics.data.gov.uk/id/local-authority/00HY,Wiltshire Council,05/07/2012,1900860640,10000.00,Avon and W Wilts MHC NHS Trust ,110216,BA1 ,Community Services,Specialist Services,Substance Misuse - Payments to Contractors,Third Party Payments,REVENUE
http://statistics.data.gov.uk/id/local-authority/00HY,Wiltshire Council,05/07/2012,1900860640,15242.50,Avon and W Wilts MHC NHS Trust ,110216,BA1 ,Community Services,(5) BBV Preventn/HIV,Substance Misuse - Payments to Contractors,Third Party Payments,REVENUE
http://statistics.data.gov.uk/id/local-authority/00HY,Wiltshire Council,05/07/2012,1900860640,15938.75,Avon and W Wilts MHC NHS Trust ,110216,BA1 ,Community Services,(8)AWP SocialWorkers,Substance Misuse - Payments to Contractors,Third Party Payments,REVENUE
http://statistics.data.gov.uk/id/local-authority/00HY,Wiltshire Council,05/07/2012,1900860640,282830.00,Avon and W Wilts MHC NHS Trust ,110216,BA1 ,Community Services,(8) AWP Core&Exp DRR,Substance Misuse - Payments to Contractors,Third Party Payments,REVENUE
http://statistics.data.gov.uk/id/local-authority/00HY,Wiltshire Council,19/07/2012,1900861285,9303.00,Avon and W Wilts MHC NHS Trust ,110216,BA1 ,Community Services,MH Management Fee,Contribution to Assistant Social Workers,Supplies and Services,REVENUE
http://statistics.data.gov.uk/id/local-authority/00HY,Wiltshire Council,26/07/2012,1900873839,4235.00,Avon and W Wilts MHC NHS Trust ,110216,BA1 ,Community Services,NonRecurring Alcohol,Substance Misuse - Payments to Contractors,Third Party Payments,REVENUE
http://statistics.data.gov.uk/id/local-authority/00HY,Wiltshire Council,25/07/2012,1900874129,1638.00,Avon and W Wilts MHC NHS Trust ,110216,BA1 ,Community Services,MH AOWA West,Stray Dog & Other Animal Kennelling,Supplies and Services,REVENUE
http://statistics.data.gov.uk/id/local-authority/00HY,Wiltshire Council,26/07/2012,1900875822,87246.00,Avon and W Wilts MHC NHS Trust ,110216,BA1 ,Community Services,NonRecurring Alcohol,Substance Misuse - Payments to Contractors,Third Party Payments,REVENUE
http://statistics.data.gov.uk/id/local-authority/00HY,Wiltshire Council,26/07/2012,1900875823,60279.00,Avon and W Wilts MHC NHS Trust ,110216,BA1 ,Community Services,NonRecurring Alcohol,Substance Misuse - Payments to Contractors,Third Party Payments,REVENUE
http://statistics.data.gov.uk/id/local-authority/00HY,Wiltshire Council,03/07/2012,1900859319,8230.14,Avon Care Homes Ltd - Sutton Veny H ,112612,BA5 ,Community Services,FNC,Adult Care Funded Nursing Care - Out of County Cli,Third Party Payments,REVENUE
http://statistics.data.gov.uk/id/local-authority/00HY,Wiltshire Council,31/07/2012,1900876404,10435.19,Avon Care Homes Ltd - Sutton Veny H ,112612,BA5 ,Community Services,FNC,Adult Care Funded Nursing Care - Out of County Cli,Third Party Payments,REVENUE
http://statistics.data.gov.uk/id/local-authority/00HY,Wiltshire Council,06/07/2012,5106144456,2221.52,Avon Care Homes Ltd - Sutton Veny H ,112612,BA5 ,Community Services,OP West Locality,Adult Care Nursing Placements- Spot Purchase,Third Party Payments,REVENUE
http://statistics.data.gov.uk/id/local-authority/00HY,Wiltshire Council,04/07/2012,5106145885,1608.48,Avon Care Homes Ltd - Sutton Veny H ,112612,BA5 ,Community Services,OP West Locality,Adult Care Nursing Placements- Spot Purchase,Third Party Payments,REVENUE
http://statistics.data.gov.uk/id/local-authority/00HY,Wiltshire Council,04/07/2012,5106145888,2021.52,Avon Care Homes Ltd - Sutton Veny H ,112612,BA5 ,Community Services,OP West Locality,Adult Care Nursing Placements- Spot Purchase,Third Party Payments,REVENUE
http://statistics.data.gov.uk/id/local-authority/00HY,Wiltshire Council,04/07/2012,5106145891,2023.28,Avon Care Homes Ltd - Sutton Veny H ,112612,BA5 ,Community Services,OP South Locality,Adult Care Nursing Placements- Spot Purchase,Third Party Payments,REVENUE
http://statistics.data.gov.uk/id/local-authority/00HY,Wiltshire Council,04/07/2012,5106145894,2021.52,Avon Care Homes Ltd - Sutton Veny H ,112612,BA5 ,Community Services,OP West Locality,Adult Care Nursing Placements- Spot Purchase,Third Party Payments,REVENUE
http://statistics.data.gov.uk/id/local-authority/00HY,Wiltshire Council,04/07/2012,5106145897,2021.52,Avon Care Homes Ltd - Sutton Veny H ,112612,BA5 ,Community Services,MH OP East Locality,Adult Care Nursing Placements- Spot Purchase,Third Party Payments,REVENUE
http://statistics.data.gov.uk/id/local-authority/00HY,Wiltshire Council,04/07/2012,5106145960,1989.20,Avon Care Homes Ltd - Sutton Veny H ,112612,BA5 ,Community Services,OP South Locality,Adult Care Nursing Placements- Spot Purchase,Third Party Payments,REVENUE
http://statistics.data.gov.uk/id/local-authority/00HY,Wiltshire Council,06/07/2012,5106146476,1965.20,Avon Lea Nursing Home (Dorset) Ltd ,129950,DT4 ,Community Services,OP West Locality,Adult Care Nursing Placements- Spot Purchase,Third Party Payments,REVENUE
http://statistics.data.gov.uk/id/local-authority/00HY,Wiltshire Council,27/07/2012,5106154843,1380.00,Avon Wildlife Trust Ecological Consultancy,133865,BS8 ,Neighbourhood & Planning,DTEL Dept Balance Sh,Buildings Minor Alterations,Premises Related,REVENUE
http://statistics.data.gov.uk/id/local-authority/00HY,Wiltshire Council,03/07/2012,1900859290,869.60,Avoncare Homes Ltd - Wells Nursing ,114326,BA5 ,Community Services,FNC,Adult Care Funded Nursing Care - Out of County Cli,Third Party Payments,REVENUE
http://statistics.data.gov.uk/id/local-authority/00HY,Wiltshire Council,31/07/2012,1900876382,2934.90,Avoncare Homes Ltd - Wells Nursing ,114326,BA5 ,Community Services,FNC,Adult Care Funded Nursing Care - Out of County Cli,Third Party Payments,REVENUE
http://statistics.data.gov.uk/id/local-authority/00HY,Wiltshire Council,04/07/2012,5106143993,3165.20,Avoncare Homes Ltd - Wells Nursing ,114326,BA5 ,Community Services,Home Loans,Adult Care - Home Loan Costs,Capital charges and Expenditure,REVENUE
http://statistics.data.gov.uk/id/local-authority/00HY,Wiltshire Council,06/07/2012,5106144472,2565.20,Avoncare Homes Ltd - Wells Nursing ,114326,BA5 ,Community Services,OP North Locality,Adult Care Nursing Placements- Spot Purchase,Third Party Payments,REVENUE
http://statistics.data.gov.uk/id/local-authority/00HY,Wiltshire Council,06/07/2012,5106147918,2315.24,Avoncare Homes Ltd - Wells Nursing ,114326,BA5 ,Community Services,OP North Locality,Adult Care Nursing Placements- Spot Purchase,Third Party Payments,REVENUE
http://statistics.data.gov.uk/id/local-authority/00HY,Wiltshire Council,02/07/2012,1900859022,1181.62,Avonpark Village (Care Homes) Limit ,110227,BA2 ,Community Services,OP West Locality,Adult Residential Place - Spot Purchase,Income,REVENUE
http://statistics.data.gov.uk/id/local-authority/00HY,Wiltshire Council,03/07/2012,1900859305,3913.20,Avonpark Village (Care Homes) Limit ,110227,BA2 ,Community Services,FNC,Adult Care Funded Nursing Care - Out of County Cli,Third Party Payments,REVENUE
http://statistics.data.gov.uk/id/local-authority/00HY,Wiltshire Council,31/07/2012,1900876388,3913.20,Avonpark Village (Care Homes) Limit ,110227,BA2 ,Community Services,FNC,Adult Care Funded Nursing Care - Out of County Cli,Third Party Payments,REVENUE
http://statistics.data.gov.uk/id/local-authority/00HY,Wiltshire Council,04/07/2012,5106143701,3000.00,Avonpark Village (Care Homes) Limit ,110227,BA2 ,Community Services,Home Loans,Adult Care - Home Loan Costs,Capital charges and Expenditure,REVENUE
http://statistics.data.gov.uk/id/local-authority/00HY,Wiltshire Council,04/07/2012,5106145341,2191.20,Avonpark Village (Care Homes) Limit ,110227,BA2 ,Community Services,OP East Locality,Adult Care Nursing Placements- Spot Purchase,Third Party Payments,REVENUE
http://statistics.data.gov.uk/id/local-authority/00HY,Wiltshire Council,04/07/2012,5106145344,2191.20,Avonpark Village (Care Homes) Limit ,110227,BA2 ,Community Services,OP West Locality,Adult Care Nursing Placements- Spot Purchase,Third Party Payments,REVENUE
http://statistics.data.gov.uk/id/local-authority/00HY,Wiltshire Council,04/07/2012,5106146193,1971.52,Avonpark Village (Care Homes) Limit ,110227,BA2 ,Community Services,MH OP West Locality,Adult Residential Placements - Spot Purchase,Third Party Payments,REVENUE
http://statistics.data.gov.uk/id/local-authority/00HY,Wiltshire Council,04/07/2012,5106146195,1971.52,Avonpark Village (Care Homes) Limit ,110227,BA2 ,Community Services,MH OP West Locality,Adult Residential Placements - Spot Purchase,Third Party Payments,REVENUE
http://statistics.data.gov.uk/id/local-authority/00HY,Wiltshire Council,04/07/2012,5106146197,1971.52,Avonpark Village (Care Homes) Limit ,110227,BA2 ,Community Services,MH OP West Locality,Adult Residential Placements - Spot Purchase,Third Party Payments,REVENUE
http://statistics.data.gov.uk/id/local-authority/00HY,Wiltshire Council,04/07/2012,5106146199,1971.52,Avonpark Village (Care Homes) Limit ,110227,BA2 ,Community Services,OP West Locality,Adult Residential Placements - Spot Purchase,Third Party Payments,REVENUE
http://statistics.data.gov.uk/id/local-authority/00HY,Wiltshire Council,04/07/2012,5106146201,1971.52,Avonpark Village (Care Homes) Limit ,110227,BA2 ,Community Services,MH OP West Locality,Adult Residential Placements - Spot Purchase,Third Party Payments,REVENUE
http://statistics.data.gov.uk/id/local-authority/00HY,Wiltshire Council,04/07/2012,5106146203,2020.00,Avonpark Village (Care Homes) Limit ,110227,BA2 ,Community Services,MH OP West Locality,Adult Residential Placements - Spot Purchase,Third Party Payments,REVENUE
http://statistics.data.gov.uk/id/local-authority/00HY,Wiltshire Council,04/07/2012,5106146205,1878.60,Avonpark Village (Care Homes) Limit ,110227,BA2 ,Community Services,OP West Locality,Adult Residential Placements - Spot Purchase,Third Party Payments,REVENUE
http://statistics.data.gov.uk/id/local-authority/00HY,Wiltshire Council,04/07/2012,5106146207,1971.52,Avonpark Village (Care Homes) Limit ,110227,BA2 ,Community Services,MH OP West Locality,Adult Residential Placements - Spot Purchase,Third Party Payments,REVENUE
http://statistics.data.gov.uk/id/local-authority/00HY,Wiltshire Council,04/07/2012,5106146209,1971.52,Avonpark Village (Care Homes) Limit ,110227,BA2 ,Community Services,OP West Locality,Adult Residential Placements - Spot Purchase,Third Party Payments,REVENUE
http://statistics.data.gov.uk/id/local-authority/00HY,Wiltshire Council,04/07/2012,5106146211,1971.52,Avonpark Village (Care Homes) Limit ,110227,BA2 ,Community Services,OP West Locality,Adult Residential Placements - Spot Purchase,Third Party Payments,REVENUE
http://statistics.data.gov.uk/id/local-authority/00HY,Wiltshire Council,04/07/2012,5106146213,1878.60,Avonpark Village (Care Homes) Limit ,110227,BA2 ,Community Services,OP West Locality,Adult Residential Placements - Spot Purchase,Third Party Payments,REVENUE
http://statistics.data.gov.uk/id/local-authority/00HY,Wiltshire Council,04/07/2012,5106146215,1898.80,Avonpark Village (Care Homes) Limit ,110227,BA2 ,Community Services,OP West Locality,Adult Residential Placements - Spot Purchase,Third Party Payments,REVENUE
http://statistics.data.gov.uk/id/local-authority/00HY,Wiltshire Council,04/07/2012,5106146217,1939.20,Avonpark Village (Care Homes) Limit ,110227,BA2 ,Community Services,MH OP West Locality,Adult Residential Placements - Spot Purchase,Third Party Payments,REVENUE
http://statistics.data.gov.uk/id/local-authority/00HY,Wiltshire Council,04/07/2012,5106146219,1971.52,Avonpark Village (Care Homes) Limit ,110227,BA2 ,Community Services,OP West Locality,Adult Residential Placements - Spot Purchase,Third Party Payments,REVENUE
http://statistics.data.gov.uk/id/local-authority/00HY,Wiltshire Council,04/07/2012,5106146221,1971.52,Avonpark Village (Care Homes) Limit ,110227,BA2 ,Community Services,MH OP West Locality,Adult Residential Placements - Spot Purchase,Third Party Payments,REVENUE
http://statistics.data.gov.uk/id/local-authority/00HY,Wiltshire Council,06/07/2012,5106146839,1971.52,Avonpark Village (Care Homes) Limit ,110227,BA2 ,Community Services,MH OP West Locality,Adult Residential Placements - Spot Purchase,Third Party Payments,REVENUE
http://statistics.data.gov.uk/id/local-authority/00HY,Wiltshire Council,06/07/2012,5106147478,1971.52,Avonpark Village (Care Homes) Limit ,110227,BA2 ,Community Services,OP West Locality,Adult Residential Placements - Spot Purchase,Third Party Payments,REVENUE
http://statistics.data.gov.uk/id/local-authority/00HY,Wiltshire Council,04/07/2012,5106148137,2191.20,Avonpark Village (Care Homes) Limit ,110227,BA2 ,Community Services,OP West Locality,Adult Care Nursing Placements- Spot Purchase,Third Party Payments,REVENUE
http://statistics.data.gov.uk/id/local-authority/00HY,Wiltshire Council,04/07/2012,5106148153,2165.20,Avonpark Village (Care Homes) Limit ,110227,BA2 ,Community Services,MH OP West Locality,Adult Care Nursing Placements- Spot Purchase,Third Party Payments,REVENUE
http://statistics.data.gov.uk/id/local-authority/00HY,Wiltshire Council,12/07/2012,5106151859,680.84,Axis Elevators ,110311,SE1 ,Neighbourhood & Planning,Housg Rprs Contracts,Premises Related Other Maintenance Costs,Premises Related,REVENUE
http://statistics.data.gov.uk/id/local-authority/00HY,Wiltshire Council,18/07/2012,5106140832,750.00,Azzurri Communications Ltd ,101309,WS9 ,Resources,Infrastructure,Staff Training Course Costs,Employee Related,REVENUE
http://statistics.data.gov.uk/id/local-authority/00HY,Wiltshire Council,12/07/2012,5106143085,1121.25,Azzurri Communications Ltd ,101309,WS9 ,Wiltshire Council,Wiltshire Council,ICT - Support arrangements,Supplies and Services,CAPITAL
http://statistics.data.gov.uk/id/local-authority/00HY,Wiltshire Council,23/07/2012,5106154375,3000.00,Azzurri Communications Ltd ,101309,WS9 ,Resources,WAN,Hardware Maintenance,Supplies and Services,REVENUE
http://statistics.data.gov.uk/id/local-authority/00HY,Wiltshire Council,24/07/2012,5106154932,993.50,Azzurri Communications Ltd ,101309,WS9 ,Wiltshire Council,Wiltshire Council,Hardware Maintenance,Supplies and Services,CAPITAL
http://statistics.data.gov.uk/id/local-authority/00HY,Wiltshire Council,26/07/2012,5106154933,1323.00,Azzurri Communications Ltd ,101309,WS9 ,Wiltshire Council,Wiltshire Council,Software Purchases,Supplies and Services,CAPITAL
http://statistics.data.gov.uk/id/local-authority/00HY,Wiltshire Council,26/07/2012,5106154933,7201.00,Azzurri Communications Ltd ,101309,WS9 ,Wiltshire Council,Wiltshire Council,Hardware Maintenance,Supplies and Services,CAPITAL
http://statistics.data.gov.uk/id/local-authority/00HY,Wiltshire Council,26/07/2012,5106154933,7700.00,Azzurri Communications Ltd ,101309,WS9 ,Wiltshire Council,Wiltshire Council,ICT - Support arrangements,Supplies and Services,CAPITAL
http://statistics.data.gov.uk/id/local-authority/00HY,Wiltshire Council,23/07/2012,1900873573,1100.00,B  and  K Cars ,101310,SN6 ,Neighbourhood & Planning,N&E Children w/Dis,Transport Contracts,Third Party Payments,REVENUE
http://statistics.data.gov.uk/id/local-authority/00HY,Wiltshire Council,04/07/2012,1900860111,1500.00,B & M Windows  and  Doors Ltd ,101694,SP2 ,Neighbourhood & Planning,Housing Rprs Simdell,Non responsive repairs - General,Premises Related,REVENUE
http://statistics.data.gov.uk/id/local-authority/00HY,Wiltshire Council,04/07/2012,1900860120,670.00,B & M Windows  and  Doors Ltd ,101694,SP2 ,Neighbourhood & Planning,Housing Rprs Simdell,Non responsive repairs - General,Premises Related,REVENUE
http://statistics.data.gov.uk/id/local-authority/00HY,Wiltshire Council,17/07/2012,5106152710,578.26,B S Mowers Ltd ,123988,BS30,Neighbourhood & Planning,Fleet Operations,Vehicle Parts,Transport Related,REVENUE
http://statistics.data.gov.uk/id/local-authority/00HY,Wiltshire Council,10/07/2012,5106151329,1966.00,B T Redcare ,113829,NW9 ,Neighbourhood & Planning,CCTV,Equipment Maintenance,Supplies and Services,REVENUE
http://statistics.data.gov.uk/id/local-authority/00HY,Wiltshire Council,03/07/2012,1900859472,2410.10,B Y B Travel Ltd ,101145,BA15,Neighbourhood & Planning,Mainstream 16+ FE,Transport Contracts,Third Party Payments,REVENUE
http://statistics.data.gov.uk/id/local-authority/00HY,Wiltshire Council,03/07/2012,1900859483,546.48,B Y B Travel Ltd ,101145,BA15,Neighbourhood & Planning,Mainstream 16+ Sec,Transport Contracts,Third Party Payments,REVENUE
http://statistics.data.gov.uk/id/local-authority/00HY,Wiltshire Council,03/07/2012,1900859483,2036.68,B Y B Travel Ltd ,101145,BA15,Neighbourhood & Planning,Mainstream Secondary,Transport Contracts,Third Party Payments,REVENUE
http://statistics.data.gov.uk/id/local-authority/00HY,Wiltshire Council,24/07/2012,5106154803,500.00,Backlogs Limited ,134259,PE27,Resources,CoronerGeneral,Pathology Fees,Supplies and Services,REVENUE
http://statistics.data.gov.uk/id/local-authority/00HY,Wiltshire Council,24/07/2012,5106154804,2250.00,Backlogs Limited ,134259,PE27,Resources,CoronerGeneral,Pathology Fees,Supplies and Services,REVENUE
http://statistics.data.gov.uk/id/local-authority/00HY,Wiltshire Council,13/07/2012,5106143231,584.36,Bailey Employment Services Ltd ,100204,SN12,Community Services,CTPLD County CIC U65,Adult Day Care - Spot,Third Party Payments,REVENUE
http://statistics.data.gov.uk/id/local-authority/00HY,Wiltshire Council,24/07/2012,5106144228,37842.96,Balfour Beatty Infrastructure Ltd ,113860,RG23,Neighbourhood & Planning,Street Lighting-Mtce,Highways - Other Materials,Supplies and Services,REVENUE
http://statistics.data.gov.uk/id/local-authority/00HY,Wiltshire Council,04/07/2012,1900859292,1304.40,Barchester Healthcare - The White L ,121961,SN5 ,Community Services,FNC,Adult Care Funded Nursing Care - Out of County Cli,Third Party Payments,REVENUE
http://statistics.data.gov.uk/id/local-authority/00HY,Wiltshire Council,04/07/2012,5106143786,3919.20,Barchester Healthcare - The White L ,121961,SN5 ,Community Services,Home Loans,Adult Care - Home Loan Costs,Capital charges and Expenditure,REVENUE
http://statistics.data.gov.uk/id/local-authority/00HY,Wiltshire Council,06/07/2012,5106144653,1692.00,Barchester Healthcare - The White L ,121961,SN5 ,Community Services,OP North Locality,Adult Residential Placements - Spot Purchase,Third Party Payments,REVENUE
http://statistics.data.gov.uk/id/local-authority/00HY,Wiltshire Council,04/07/2012,5106146117,1531.44,Barchester Healthcare - The White L ,121961,SN5 ,Community Services,OP North Locality,Adult Care Nursing Placements- Spot Purchase,Third Party Payments,REVENUE
http://statistics.data.gov.uk/id/local-authority/00HY,Wiltshire Council,04/07/2012,5106146120,1403.48,Barchester Healthcare - The White L ,121961,SN5 ,Community Services,OP North Locality,Adult Care Nursing Placements- Spot Purchase,Third Party Payments,REVENUE
http://statistics.data.gov.uk/id/local-authority/00HY,Wiltshire Council,06/07/2012,5106146431,2514.40,Barchester Healthcare - The White L ,121961,SN5 ,Community Services,OP North Locality,Adult Care Nursing Placements- Spot Purchase,Third Party Payments,REVENUE
http://statistics.data.gov.uk/id/local-authority/00HY,Wiltshire Council,06/07/2012,5106146433,3025.20,Barchester Healthcare - The White L ,121961,SN5 ,Community Services,OP North Locality,Adult Care Nursing Placements- Spot Purchase,Third Party Payments,REVENUE
http://statistics.data.gov.uk/id/local-authority/00HY,Wiltshire Council,06/07/2012,5106146579,3025.20,Barchester Healthcare - The White L ,121961,SN5 ,Community Services,MH OP North Locality,Adult Residential Placements - Spot Purchase,Third Party Payments,REVENUE
http://statistics.data.gov.uk/id/local-authority/00HY,Wiltshire Council,06/07/2012,5106146806,1730.00,Barchester Healthcare - The White L ,121961,SN5 ,Community Services,MH OP East Locality,Adult Care Nursing Placements- Spot Purchase,Third Party Payments,REVENUE
http://statistics.data.gov.uk/id/local-authority/00HY,Wiltshire Council,06/07/2012,5106146807,1730.00,Barchester Healthcare - The White L ,121961,SN5 ,Community Services,Section 117-PCT Clnt,Adult Care Nursing Placements- Spot Purchase,Third Party Payments,REVENUE
http://statistics.data.gov.uk/id/local-authority/00HY,Wiltshire Council,06/07/2012,5106147312,2873.00,Barchester Healthcare - The White L ,121961,SN5 ,Community Services,MH OP North Locality,Adult Care Nursing Placements- Spot Purchase,Third Party Payments,REVENUE
http://statistics.data.gov.uk/id/local-authority/00HY,Wiltshire Council,06/07/2012,5106147313,507.00,Barchester Healthcare - The White L ,121961,SN5 ,Community Services,Section 117-PCT Clnt,Adult Care Nursing Placements- Spot Purchase,Third Party Payments,REVENUE
http://statistics.data.gov.uk/id/local-authority/00HY,Wiltshire Council,06/07/2012,5106147402,3460.00,Barchester Healthcare - The White L ,121961,SN5 ,Community Services,MH OP West Locality,Adult Care Nursing Placements- Spot Purchase,Third Party Payments,REVENUE
http://statistics.data.gov.uk/id/local-authority/00HY,Wiltshire Council,06/07/2012,5106147708,1477.40,Barchester Healthcare - The White L ,121961,SN5 ,Community Services,OP North Locality,Adult Residential Placements - Spot Purchase,Third Party Payments,REVENUE
http://statistics.data.gov.uk/id/local-authority/00HY,Wiltshire Council,06/07/2012,5106147713,2514.40,Barchester Healthcare - The White L ,121961,SN5 ,Community Services,MH OP North Locality,Adult Care Nursing Placements- Spot Purchase,Third Party Payments,REVENUE
http://statistics.data.gov.uk/id/local-authority/00HY,Wiltshire Council,06/07/2012,5106147716,3460.00,Barchester Healthcare - The White L ,121961,SN5 ,Community Services,MH OP North Locality,Adult Care Nursing Placements- Spot Purchase,Third Party Payments,REVENUE
http://statistics.data.gov.uk/id/local-authority/00HY,Wiltshire Council,18/07/2012,5106153741,6205.44,Barchester Healthcare - The White L ,121961,SN5 ,Community Services,OP North Locality,Adult Residential Placements - 12 Week,Third Party Payments,REVENUE
http://statistics.data.gov.uk/id/local-authority/00HY,Wiltshire Council,06/07/2012,5106146747,2765.20,Barchester Healthcare Ltd - Rothsay Grange,127635,SP11,Community Services,MH OP South Locality,Adult Care Nursing Placements- Spot Purchase,Third Party Payments,REVENUE
http://statistics.data.gov.uk/id/local-authority/00HY,Wiltshire Council,06/07/2012,5106147717,4480.00,Barchester Healthcare Ltd - Rothsay Grange,127635,SP11,Community Services,MH OP East Locality,Adult Care Nursing Placements- Spot Purchase,Third Party Payments,REVENUE
http://statistics.data.gov.uk/id/local-authority/00HY,Wiltshire Council,04/07/2012,5106147945,4045.20,Barchester Healthcare Ltd - Rothsay Grange,127635,SP11,Community Services,MH OP South Locality,Adult Care Nursing Placements- Spot Purchase,Third Party Payments,REVENUE
http://statistics.data.gov.uk/id/local-authority/00HY,Wiltshire Council,03/07/2012,1900859324,9783.00,Barchester Healthcare Ltd (Henford ,111113,BA12,Community Services,FNC,Adult Care Funded Nursing Care - Out of County Cli,Third Party Payments,REVENUE
http://statistics.data.gov.uk/id/local-authority/00HY,Wiltshire Council,31/07/2012,1900876410,12640.25,Barchester Healthcare Ltd (Henford ,111113,BA12,Community Services,FNC,Adult Care Funded Nursing Care - Out of County Cli,Third Party Payments,REVENUE
http://statistics.data.gov.uk/id/local-authority/00HY,Wiltshire Council,04/07/2012,5106143727,4165.20,Barchester Healthcare Ltd (Henford ,111113,BA12,Community Services,Home Loans,Adult Care - Home Loan Costs,Capital charges and Expenditure,REVENUE
http://statistics.data.gov.uk/id/local-authority/00HY,Wiltshire Council,04/07/2012,5106143958,3400.00,Barchester Healthcare Ltd (Henford ,111113,BA12,Community Services,Home Loans,Adult Care - Home Loan Costs,Capital charges and Expenditure,REVENUE
http://statistics.data.gov.uk/id/local-authority/00HY,Wiltshire Council,04/07/2012,5106144009,3965.20,Barchester Healthcare Ltd (Henford ,111113,BA12,Community Services,Home Loans,Adult Care - Home Loan Costs,Capital charges and Expenditure,REVENUE
http://statistics.data.gov.uk/id/local-authority/00HY,Wiltshire Council,06/07/2012,5106144575,2009.40,Barchester Healthcare Ltd (Henford ,111113,BA12,Community Services,OP West Locality,Adult Care Nursing Placements- Spot Purchase,Third Party Payments,REVENUE
http://statistics.data.gov.uk/id/local-authority/00HY,Wiltshire Council,06/07/2012,5106144577,2797.20,Barchester Healthcare Ltd (Henford ,111113,BA12,Community Services,MH AOWA West,Adult Care Nursing Placements- Spot Purchase,Third Party Payments,REVENUE
http://statistics.data.gov.uk/id/local-authority/00HY,Wiltshire Council,04/07/2012,5106145484,1489.80,Barchester Healthcare Ltd (Henford ,111113,BA12,Community Services,OP West Locality,Adult Care Nursing Placements- Spot Purchase,Third Party Payments,REVENUE
http://statistics.data.gov.uk/id/local-authority/00HY,Wiltshire Council,04/07/2012,5106145491,2999.20,Barchester Healthcare Ltd (Henford ,111113,BA12,Community Services,OP West Locality,Adult Care Nursing Placements- Spot Purchase,Third Party Payments,REVENUE
http://statistics.data.gov.uk/id/local-authority/00HY,Wiltshire Council,04/07/2012,5106145496,2191.20,Barchester Healthcare Ltd (Henford ,111113,BA12,Community Services,MH OP West Locality,Adult Care Nursing Placements- Spot Purchase,Third Party Payments,REVENUE
http://statistics.data.gov.uk/id/local-authority/00HY,Wiltshire Council,04/07/2012,5106145503,2021.52,Barchester Healthcare Ltd (Henford ,111113,BA12,Community Services,OP West Locality,Adult Care Nursing Placements- Spot Purchase,Third Party Payments,REVENUE
http://statistics.data.gov.uk/id/local-authority/00HY,Wiltshire Council,04/07/2012,5106145508,2021.52,Barchester Healthcare Ltd (Henford ,111113,BA12,Community Services,OP West Locality,Adult Care Nursing Placements- Spot Purchase,Third Party Payments,REVENUE
http://statistics.data.gov.uk/id/local-authority/00HY,Wiltshire Council,04/07/2012,5106145513,2021.52,Barchester Healthcare Ltd (Henford ,111113,BA12,Community Services,OP West Locality,Adult Care Nursing Placements- Spot Purchase,Third Party Payments,REVENUE
http://statistics.data.gov.uk/id/local-authority/00HY,Wiltshire Council,04/07/2012,5106145520,7443.20,Barchester Healthcare Ltd (Henford ,111113,BA12,Community Services,CTPLD County CIC U65,Adult Care Nursing Placements- Spot Purchase,Third Party Payments,REVENUE
http://statistics.data.gov.uk/id/local-authority/00HY,Wiltshire Council,06/07/2012,5106146642,2021.52,Barchester Healthcare Ltd (Henford ,111113,BA12,Community Services,OP West Locality,Adult Care Nursing Placements- Spot Purchase,Third Party Payments,REVENUE
http://statistics.data.gov.uk/id/local-authority/00HY,Wiltshire Council,06/07/2012,5106146645,2021.52,Barchester Healthcare Ltd (Henford ,111113,BA12,Community Services,MH OP West Locality,Adult Care Nursing Placements- Spot Purchase,Third Party Payments,REVENUE
http://statistics.data.gov.uk/id/local-authority/00HY,Wiltshire Council,06/07/2012,5106146648,2032.84,Barchester Healthcare Ltd (Henford ,111113,BA12,Community Services,MH OP West Locality,Adult Care Nursing Placements- Spot Purchase,Third Party Payments,REVENUE
http://statistics.data.gov.uk/id/local-authority/00HY,Wiltshire Council,06/07/2012,5106146651,2494.20,Barchester Healthcare Ltd (Henford ,111113,BA12,Community Services,MH OP West Locality,Adult Care Nursing Placements- Spot Purchase,Third Party Payments,REVENUE
http://statistics.data.gov.uk/id/local-authority/00HY,Wiltshire Council,06/07/2012,5106146770,2021.52,Barchester Healthcare Ltd (Henford ,111113,BA12,Community Services,OP West Locality,Adult Care Nursing Placements- Spot Purchase,Third Party Payments,REVENUE
http://statistics.data.gov.uk/id/local-authority/00HY,Wiltshire Council,06/07/2012,5106147423,2261.52,Barchester Healthcare Ltd (Henford ,111113,BA12,Community Services,OP South Locality,Adult Care Nursing Placements- Spot Purchase,Third Party Payments,REVENUE
http://statistics.data.gov.uk/id/local-authority/00HY,Wiltshire Council,06/07/2012,5106147494,2065.20,Barchester Healthcare Ltd (Henford ,111113,BA12,Community Services,OP West Locality,Adult Care Nursing Placements- Spot Purchase,Third Party Payments,REVENUE
http://statistics.data.gov.uk/id/local-authority/00HY,Wiltshire Council,03/07/2012,1900859329,23784.81,Barchester Healthcare Ltd (Milford ,111597,SP1 ,Community Services,FNC,Adult Care Funded Nursing Care - Out of County Cli,Third Party Payments,REVENUE
http://statistics.data.gov.uk/id/local-authority/00HY,Wiltshire Council,03/07/2012,1900859394,1014.65,Barchester Healthcare Ltd (Milford ,111597,SP1 ,Community Services,OP South Locality,Adult Nursing Place- Spot Purchase Contr,Income,REVENUE
http://statistics.data.gov.uk/id/local-authority/00HY,Wiltshire Council,31/07/2012,1900876415,23417.08,Barchester Healthcare Ltd (Milford ,111597,SP1 ,Community Services,FNC,Adult Care Funded Nursing Care - Out of County Cli,Third Party Payments,REVENUE
http://statistics.data.gov.uk/id/local-authority/00HY,Wiltshire Council,03/07/2012,5106142760,3365.20,Barchester Healthcare Ltd (Milford ,111597,SP1 ,Community Services,OP South Locality,Adult Care Nursing Placements- Spot Purchase,Third Party Payments,REVENUE
http://statistics.data.gov.uk/id/local-authority/00HY,Wiltshire Council,03/07/2012,5106143047,1573.80,Barchester Healthcare Ltd (Milford ,111597,SP1 ,Community Services,OP South Locality,Adult Care Nursing Placements- Spot Purchase,Third Party Payments,REVENUE
http://statistics.data.gov.uk/id/local-authority/00HY,Wiltshire Council,04/07/2012,5106143734,2965.20,Barchester Healthcare Ltd (Milford ,111597,SP1 ,Community Services,Home Loans,Adult Care - Home Loan Costs,Capital charges and Expenditure,REVENUE
http://statistics.data.gov.uk/id/local-authority/00HY,Wiltshire Council,04/07/2012,5106143736,2165.20,Barchester Healthcare Ltd (Milford ,111597,SP1 ,Community Services,Home Loans,Adult Care - Home Loan Costs,Capital charges and Expenditure,REVENUE
http://statistics.data.gov.uk/id/local-authority/00HY,Wiltshire Council,04/07/2012,5106143738,3600.00,Barchester Healthcare Ltd (Milford ,111597,SP1 ,Community Services,Home Loans,Adult Care - Home Loan Costs,Capital charges and Expenditure,REVENUE
http://statistics.data.gov.uk/id/local-authority/00HY,Wiltshire Council,04/07/2012,5106143740,3165.20,Barchester Healthcare Ltd (Milford ,111597,SP1 ,Community Services,Home Loans,Adult Care - Home Loan Costs,Capital charges and Expenditure,REVENUE
http://statistics.data.gov.uk/id/local-authority/00HY,Wiltshire Council,04/07/2012,5106143819,2285.20,Barchester Healthcare Ltd (Milford ,111597,SP1 ,Community Services,Home Loans,Adult Care - Home Loan Costs,Capital charges and Expenditure,REVENUE
http://statistics.data.gov.uk/id/local-authority/00HY,Wiltshire Council,06/07/2012,5106144448,2965.20,Barchester Healthcare Ltd (Milford ,111597,SP1 ,Community Services,MH OP South Locality,Adult Care Nursing Placements- Spot Purchase,Third Party Payments,REVENUE
http://statistics.data.gov.uk/id/local-authority/00HY,Wiltshire Council,04/07/2012,5106145716,1431.72,Barchester Healthcare Ltd (Milford ,111597,SP1 ,Community Services,OP South Locality,Adult Care Nursing Placements- Spot Purchase,Third Party Payments,REVENUE
http://statistics.data.gov.uk/id/local-authority/00HY,Wiltshire Council,04/07/2012,5106145723,2527.44,Barchester Healthcare Ltd (Milford ,111597,SP1 ,Community Services,OP South Locality,Adult Care Nursing Placements- Spot Purchase,Third Party Payments,REVENUE
http://statistics.data.gov.uk/id/local-authority/00HY,Wiltshire Council,04/07/2012,5106145728,2485.60,Barchester Healthcare Ltd (Milford ,111597,SP1 ,Community Services,OP South Locality,Adult Care Nursing Placements- Spot Purchase,Third Party Payments,REVENUE
http://statistics.data.gov.uk/id/local-authority/00HY,Wiltshire Council,04/07/2012,5106145733,2103.16,Barchester Healthcare Ltd (Milford ,111597,SP1 ,Community Services,OP South Locality,Adult Care Nursing Placements- Spot Purchase,Third Party Payments,REVENUE
http://statistics.data.gov.uk/id/local-authority/00HY,Wiltshire Council,04/07/2012,5106145742,2203.32,Barchester Healthcare Ltd (Milford ,111597,SP1 ,Community Services,MH OP South Locality,Adult Care Nursing Placements- Spot Purchase,Third Party Payments,REVENUE
http://statistics.data.gov.uk/id/local-authority/00HY,Wiltshire Council,04/07/2012,5106145747,2807.32,Barchester Healthcare Ltd (Milford ,111597,SP1 ,Community Services,OP South Locality,Adult Care Nursing Placements- Spot Purchase,Third Party Payments,REVENUE
http://statistics.data.gov.uk/id/local-authority/00HY,Wiltshire Council,04/07/2012,5106145754,2581.52,Barchester Healthcare Ltd (Milford ,111597,SP1 ,Community Services,OP South Locality,Adult Care Nursing Placements- Spot Purchase,Third Party Payments,REVENUE
http://statistics.data.gov.uk/id/local-authority/00HY,Wiltshire Council,04/07/2012,5106145759,2314.68,Barchester Healthcare Ltd (Milford ,111597,SP1 ,Community Services,OP South Locality,Adult Care Nursing Placements- Spot Purchase,Third Party Payments,REVENUE
http://statistics.data.gov.uk/id/local-authority/00HY,Wiltshire Council,04/07/2012,5106145764,2649.76,Barchester Healthcare Ltd (Milford ,111597,SP1 ,Community Services,OP South Locality,Adult Care Nursing Placements- Spot Purchase,Third Party Payments,REVENUE
http://statistics.data.gov.uk/id/local-authority/00HY,Wiltshire Council,03/07/2012,5106145769,2649.76,Barchester Healthcare Ltd (Milford ,111597,SP1 ,Community Services,OP South Locality,Adult Care Nursing Placements- Spot Purchase,Third Party Payments,REVENUE
http://statistics.data.gov.uk/id/local-authority/00HY,Wiltshire Council,04/07/2012,5106145774,2203.32,Barchester Healthcare Ltd (Milford ,111597,SP1 ,Community Services,MH OP South Locality,Adult Care Nursing Placements- Spot Purchase,Third Party Payments,REVENUE
http://statistics.data.gov.uk/id/local-authority/00HY,Wiltshire Council,04/07/2012,5106145781,2191.20,Barchester Healthcare Ltd (Milford ,111597,SP1 ,Community Services,OP South Locality,Adult Care Nursing Placements- Spot Purchase,Third Party Payments,REVENUE
http://statistics.data.gov.uk/id/local-authority/00HY,Wiltshire Council,04/07/2012,5106145786,2191.20,Barchester Healthcare Ltd (Milford ,111597,SP1 ,Community Services,OP South Locality,Adult Care Nursing Placements- Spot Purchase,Third Party Payments,REVENUE
http://statistics.data.gov.uk/id/local-authority/00HY,Wiltshire Council,06/07/2012,5106146666,2191.20,Barchester Healthcare Ltd (Milford ,111597,SP1 ,Community Services,OP North Locality,Adult Care Nursing Placements- Spot Purchase,Third Party Payments,REVENUE
http://statistics.data.gov.uk/id/local-authority/00HY,Wiltshire Council,06/07/2012,5106147698,3365.20,Barchester Healthcare Ltd (Milford ,111597,SP1 ,Community Services,OP South Locality,Adult Care Nursing Placements- Spot Purchase,Third Party Payments,REVENUE
http://statistics.data.gov.uk/id/local-authority/00HY,Wiltshire Council,06/07/2012,5106147727,2203.32,Barchester Healthcare Ltd (Milford ,111597,SP1 ,Community Services,OP South Locality,Adult Care Nursing Placements- Spot Purchase,Third Party Payments,REVENUE
http://statistics.data.gov.uk/id/local-authority/00HY,Wiltshire Council,06/07/2012,5106147910,2595.20,Barchester Healthcare Ltd (Milford ,111597,SP1 ,Community Services,OP South Locality,Adult Care Nursing Placements- Spot Purchase,Third Party Payments,REVENUE
http://statistics.data.gov.uk/id/local-authority/00HY,Wiltshire Council,04/07/2012,1900859163,17065.89,Barchester Healthcare Ltd- The Wing ,121969,BA14,Community Services,CTPLD County CIC 65+,Adult Nursing Place- Spot Purchase Contr,Income,REVENUE
http://statistics.data.gov.uk/id/local-authority/00HY,Wiltshire Council,04/07/2012,1900859164,2180.10,Barchester Healthcare Ltd- The Wing ,121969,BA14,Community Services,CTPLD County CIC 65+,Adult Nursing Place- Spot Purchase Contr,Income,REVENUE
http://statistics.data.gov.uk/id/local-authority/00HY,Wiltshire Council,04/07/2012,5106144013,3790.25,Barchester Healthcare Ltd- The Wing ,121969,BA14,Community Services,Home Loans,Adult Care - Home Loan Costs,Capital charges and Expenditure,REVENUE
http://statistics.data.gov.uk/id/local-authority/00HY,Wiltshire Council,04/07/2012,5106144015,4245.20,Barchester Healthcare Ltd- The Wing ,121969,BA14,Community Services,Home Loans,Adult Care - Home Loan Costs,Capital charges and Expenditure,REVENUE
http://statistics.data.gov.uk/id/local-authority/00HY,Wiltshire Council,04/07/2012,5106144053,2274.15,Barchester Healthcare Ltd- The Wing ,121969,BA14,Community Services,Home Loans,Adult Care - Home Loan Costs,Capital charges and Expenditure,REVENUE
http://statistics.data.gov.uk/id/local-authority/00HY,Wiltshire Council,04/07/2012,5106144055,4245.20,Barchester Healthcare Ltd- The Wing ,121969,BA14,Community Services,Home Loans,Adult Care - Home Loan Costs,Capital charges and Expenditure,REVENUE
http://statistics.data.gov.uk/id/local-authority/00HY,Wiltshire Council,06/07/2012,5106144478,2595.20,Barchester Healthcare Ltd- The Wing ,121969,BA14,Community Services,OP West Locality,Adult Care Nursing Placements- Spot Purchase,Third Party Payments,REVENUE
http://statistics.data.gov.uk/id/local-authority/00HY,Wiltshire Council,04/07/2012,5106146123,2494.20,Barchester Healthcare Ltd- The Wing ,121969,BA14,Community Services,OP West Locality,Adult Care Nursing Placements- Spot Purchase,Third Party Payments,REVENUE
http://statistics.data.gov.uk/id/local-authority/00HY,Wiltshire Council,04/07/2012,5106146126,1997.20,Barchester Healthcare Ltd- The Wing ,121969,BA14,Community Services,OP West Locality,Adult Care Nursing Placements- Spot Purchase,Third Party Payments,REVENUE
http://statistics.data.gov.uk/id/local-authority/00HY,Wiltshire Council,04/07/2012,5106146129,2494.20,Barchester Healthcare Ltd- The Wing ,121969,BA14,Community Services,MH OP West Locality,Adult Care Nursing Placements- Spot Purchase,Third Party Payments,REVENUE
http://statistics.data.gov.uk/id/local-authority/00HY,Wiltshire Council,04/07/2012,5106146132,2494.20,Barchester Healthcare Ltd- The Wing ,121969,BA14,Community Services,OP West Locality,Adult Care Nursing Placements- Spot Purchase,Third Party Payments,REVENUE
http://statistics.data.gov.uk/id/local-authority/00HY,Wiltshire Council,04/07/2012,5106146135,3002.28,Barchester Healthcare Ltd- The Wing ,121969,BA14,Community Services,MH OP South Locality,Adult Care Nursing Placements- Spot Purchase,Third Party Payments,REVENUE
http://statistics.data.gov.uk/id/local-authority/00HY,Wiltshire Council,04/07/2012,5106146138,1680.20,Barchester Healthcare Ltd- The Wing ,121969,BA14,Community Services,OP West Locality,Adult Care Nursing Placements- Spot Purchase,Third Party Payments,REVENUE
http://statistics.data.gov.uk/id/local-authority/00HY,Wiltshire Council,04/07/2012,5106146141,2595.20,Barchester Healthcare Ltd- The Wing ,121969,BA14,Community Services,MH OP West Locality,Adult Care Nursing Placements- Spot Purchase,Third Party Payments,REVENUE
http://statistics.data.gov.uk/id/local-authority/00HY,Wiltshire Council,04/07/2012,5106146144,2021.52,Barchester Healthcare Ltd- The Wing ,121969,BA14,Community Services,OP West Locality,Adult Care Nursing Placements- Spot Purchase,Third Party Payments,REVENUE
http://statistics.data.gov.uk/id/local-authority/00HY,Wiltshire Council,04/07/2012,5106146147,2494.20,Barchester Healthcare Ltd- The Wing ,121969,BA14,Community Services,MH OP West Locality,Adult Care Nursing Placements- Spot Purchase,Third Party Payments,REVENUE
http://statistics.data.gov.uk/id/local-authority/00HY,Wiltshire Council,04/07/2012,5106146150,3403.20,Barchester Healthcare Ltd- The Wing ,121969,BA14,Community Services,MH OP West Locality,Adult Care Nursing Placements- Spot Purchase,Third Party Payments,REVENUE
http://statistics.data.gov.uk/id/local-authority/00HY,Wiltshire Council,04/07/2012,5106146225,2649.76,Barchester Healthcare Ltd- The Wing ,121969,BA14,Community Services,MH OP West Locality,Adult Care Nursing Placements- Spot Purchase,Third Party Payments,REVENUE
http://statistics.data.gov.uk/id/local-authority/00HY,Wiltshire Council,06/07/2012,5106146726,2393.20,Barchester Healthcare Ltd- The Wing ,121969,BA14,Community Services,MH OP West Locality,Adult Care Nursing Placements- Spot Purchase,Third Party Payments,REVENUE
http://statistics.data.gov.uk/id/local-authority/00HY,Wiltshire Council,06/07/2012,5106146729,2494.20,Barchester Healthcare Ltd- The Wing ,121969,BA14,Community Services,MH OP West Locality,Adult Care Nursing Placements- Spot Purchase,Third Party Payments,REVENUE
http://statistics.data.gov.uk/id/local-authority/00HY,Wiltshire Council,06/07/2012,5106146776,2495.00,Barchester Healthcare Ltd- The Wing ,121969,BA14,Community Services,MH OP West Locality,Adult Care Nursing Placements- Spot Purchase,Third Party Payments,REVENUE
http://statistics.data.gov.uk/id/local-authority/00HY,Wiltshire Council,06/07/2012,5106146788,2530.20,Barchester Healthcare Ltd- The Wing ,121969,BA14,Community Services,OP West Locality,Adult Care Nursing Placements- Spot Purchase,Third Party Payments,REVENUE
http://statistics.data.gov.uk/id/local-authority/00HY,Wiltshire Council,06/07/2012,5106147490,2494.20,Barchester Healthcare Ltd- The Wing ,121969,BA14,Community Services,MH OP West Locality,Adult Care Nursing Placements- Spot Purchase,Third Party Payments,REVENUE
http://statistics.data.gov.uk/id/local-authority/00HY,Wiltshire Council,06/07/2012,5106147526,2977.20,Barchester Healthcare Ltd- The Wing ,121969,BA14,Community Services,OP West Locality,Adult Care Nursing Placements- Spot Purchase,Third Party Payments,REVENUE
http://statistics.data.gov.uk/id/local-authority/00HY,Wiltshire Council,06/07/2012,5106147647,2494.20,Barchester Healthcare Ltd- The Wing ,121969,BA14,Community Services,OP West Locality,Adult Care Nursing Placements- Spot Purchase,Third Party Payments,REVENUE
http://statistics.data.gov.uk/id/local-authority/00HY,Wiltshire Council,04/07/2012,5106148097,2444.12,Barchester Healthcare Ltd- The Wing ,121969,BA14,Community Services,OP West Locality,Adult Care Nursing Placements- Spot Purchase,Third Party Payments,REVENUE
http://statistics.data.gov.uk/id/local-authority/00HY,Wiltshire Council,24/07/2012,5106155894,2485.20,Barchester Healthcare Ltd- The Wing ,121969,BA14,Community Services,OP West Locality,Adult Care Nursing Placements- Spot Purchase,Third Party Payments,REVENUE
http://statistics.data.gov.uk/id/local-authority/00HY,Wiltshire Council,24/07/2012,5106155897,7012.04,Barchester Healthcare Ltd- The Wing ,121969,BA14,Community Services,OP West Locality,Adult Care Nursing Placements- Spot Purchase,Third Party Payments,REVENUE
http://statistics.data.gov.uk/id/local-authority/00HY,Wiltshire Council,24/07/2012,5106155899,1226.87,Barchester Healthcare Ltd- The Wing ,121969,BA14,Community Services,OP West FNC,Adult Care Funded Nursing Care - Loal Auth Clients,Third Party Payments,REVENUE
http://statistics.data.gov.uk/id/local-authority/00HY,Wiltshire Council,24/07/2012,5106155900,710.08,Barchester Healthcare Ltd- The Wing ,121969,BA14,Community Services,OP West Locality,Adult Care Nursing Placements- Spot Purchase,Third Party Payments,REVENUE
http://statistics.data.gov.uk/id/local-authority/00HY,Wiltshire Council,24/07/2012,5106155903,3106.50,Barchester Healthcare Ltd- The Wing ,121969,BA14,Community Services,OP West Locality,Adult Care Nursing Placements- Spot Purchase,Third Party Payments,REVENUE
http://statistics.data.gov.uk/id/local-authority/00HY,Wiltshire Council,24/07/2012,5106155905,543.50,Barchester Healthcare Ltd- The Wing ,121969,BA14,Community Services,OP West FNC,Adult Care Funded Nursing Care - Loal Auth Clients,Third Party Payments,REVENUE
http://statistics.data.gov.uk/id/local-authority/00HY,Wiltshire Council,24/07/2012,5106155906,2485.20,Barchester Healthcare Ltd- The Wing ,121969,BA14,Community Services,OP West Locality,Adult Care Nursing Placements- Spot Purchase,Third Party Payments,REVENUE
http://statistics.data.gov.uk/id/local-authority/00HY,Wiltshire Council,24/07/2012,5106155909,2485.20,Barchester Healthcare Ltd- The Wing ,121969,BA14,Community Services,OP West Locality,Adult Care Nursing Placements- Spot Purchase,Third Party Payments,REVENUE
http://statistics.data.gov.uk/id/local-authority/00HY,Wiltshire Council,24/07/2012,5106155912,2485.20,Barchester Healthcare Ltd- The Wing ,121969,BA14,Community Services,OP West Locality,Adult Care Nursing Placements- Spot Purchase,Third Party Payments,REVENUE
http://statistics.data.gov.uk/id/local-authority/00HY,Wiltshire Council,26/07/2012,5106156455,8025.48,Barchester Healthcare Ltd- The Wing ,121969,BA14,Community Services,OP West Locality,Adult Care Nursing Placements- Spot Purchase,Third Party Payments,REVENUE
http://statistics.data.gov.uk/id/local-authority/00HY,Wiltshire Council,26/07/2012,5106156456,1260.00,Barchester Healthcare Ltd- The Wing ,121969,BA14,Community Services,OP West Locality,Adult Care Nursing Placements- Spot Purchase,Third Party Payments,REVENUE
http://statistics.data.gov.uk/id/local-authority/00HY,Wiltshire Council,31/07/2012,5106161678,4030.84,Barchester Healthcare Ltd- The Wing ,121969,BA14,Community Services,OP West Locality,Adult Care Nursing Placements- Spot Purchase,Third Party Payments,REVENUE
http://statistics.data.gov.uk/id/local-authority/00HY,Wiltshire Council,31/07/2012,5106161679,683.32,Barchester Healthcare Ltd- The Wing ,121969,BA14,Community Services,OP West FNC,Adult Care Funded Nursing Care - Loal Auth Clients,Third Party Payments,REVENUE
http://statistics.data.gov.uk/id/local-authority/00HY,Wiltshire Council,26/07/2012,5106156412,102660.97,Barclays Bank Plc ,126156,E14 ,Resources,Monkton Pk Off Accom,PFI & PPP Schemes,Supplies and Services,REVENUE
http://statistics.data.gov.uk/id/local-authority/00HY,Wiltshire Council,09/07/2012,5106139593,1680.00,Barnardo ,113888,BS16,Children & Education,YPSSNorth,Educational Fees,Supplies and Services,REVENUE
http://statistics.data.gov.uk/id/local-authority/00HY,Wiltshire Council,16/07/2012,5106152498,83533.75,Barnardo Services Ltd ,110257,BS16,Children & Education,EYChildCentreTm,Grants Paid to individuals for Tangible Benefits,Supplies and Services,REVENUE
http://statistics.data.gov.uk/id/local-authority/00HY,Wiltshire Council,13/07/2012,1900870439,2413.69,Barnes Coaches Ltd ,100190,SN3 ,Neighbourhood & Planning,Mainstream Secondary,Transport Contracts,Third Party Payments,REVENUE
http://statistics.data.gov.uk/id/local-authority/00HY,Wiltshire Council,16/07/2012,1900870940,1351.84,Barnes Coaches Ltd ,100190,SN3 ,Neighbourhood & Planning,Mainstream 16+ FE,Transport Contracts,Third Party Payments,REVENUE
http://statistics.data.gov.uk/id/local-authority/00HY,Wiltshire Council,16/07/2012,1900870940,12166.51,Barnes Coaches Ltd ,100190,SN3 ,Neighbourhood & Planning,Mainstream Secondary,Transport Contracts,Third Party Payments,REVENUE
http://statistics.data.gov.uk/id/local-authority/00HY,Wiltshire Council,16/07/2012,1900870941,2657.32,Barnes Coaches Ltd ,100190,SN3 ,Neighbourhood & Planning,Mainstream Secondary,Transport Contracts,Third Party Payments,REVENUE
http://statistics.data.gov.uk/id/local-authority/00HY,Wiltshire Council,06/07/2012,5106146570,2843.52,Bath Mind ,131679,BA2 ,Community Services,MH AOWA East,Adult Residential Placements - Spot Purchase,Third Party Payments,REVENUE
http://statistics.data.gov.uk/id/local-authority/00HY,Wiltshire Council,09/07/2012,1900860924,572.99,Bath Mind ,134100,BA1 ,Community Services,MH Commissioned Cont,Grants Paid to individuals for Tangible Benefits,Supplies and Services,REVENUE
http://statistics.data.gov.uk/id/local-authority/00HY,Wiltshire Council,04/07/2012,5106148017,1813.88,BCVS Homes ,111047,BA2 ,Community Services,OP East Locality,Adult Residential Placements - Spot Purchase,Third Party Payments,REVENUE
http://statistics.data.gov.uk/id/local-authority/00HY,Wiltshire Council,04/07/2012,1900859996,2038.55,Beach Lawns Care Home ,112383,BS23,Community Services,PI West Locality,Adult Residential Placements - Spot Purchase,Third Party Payments,REVENUE
http://statistics.data.gov.uk/id/local-authority/00HY,Wiltshire Council,05/07/2012,1900860232,5827.37,Beach Lawns Care Home ,112383,BS23,Community Services,PI West Locality,Adult Residential Placements - Spot Purchase,Third Party Payments,REVENUE
http://statistics.data.gov.uk/id/local-authority/00HY,Wiltshire Council,06/07/2012,5106144462,2732.20,Beach Lawns Care Home ,112383,BS23,Community Services,CTPLD County CIC U65,Adult Residential Placements - Spot Purchase,Third Party Payments,REVENUE
http://statistics.data.gov.uk/id/local-authority/00HY,Wiltshire Council,06/07/2012,5106144468,5131.80,Beach Lawns Care Home ,112383,BS23,Community Services,PI North Locality,Adult Residential Placements - Spot Purchase,Third Party Payments,REVENUE
http://statistics.data.gov.uk/id/local-authority/00HY,Wiltshire Council,06/07/2012,5106144470,3005.08,Beach Lawns Care Home ,112383,BS23,Community Services,PI West Locality,Adult Residential Placements - Spot Purchase,Third Party Payments,REVENUE
http://statistics.data.gov.uk/id/local-authority/00HY,Wiltshire Council,06/07/2012,5106144476,3161.28,Beach Lawns Care Home ,112383,BS23,Community Services,PI North Locality,Adult Residential Placements - Spot Purchase,Third Party Payments,REVENUE
http://statistics.data.gov.uk/id/local-authority/00HY,Wiltshire Council,04/07/2012,5106145669,3242.80,Beach Lawns Care Home ,112383,BS23,Community Services,CTPLD County CIC U65,Adult Residential Placements - Spot Purchase,Third Party Payments,REVENUE
http://statistics.data.gov.uk/id/local-authority/00HY,Wiltshire Council,04/07/2012,5106145671,4270.12,Beach Lawns Care Home ,112383,BS23,Community Services,PI West Locality,Adult Residential Placements - Spot Purchase,Third Party Payments,REVENUE
http://statistics.data.gov.uk/id/local-authority/00HY,Wiltshire Council,04/07/2012,5106145673,3176.56,Beach Lawns Care Home ,112383,BS23,Community Services,PI West Locality,Adult Residential Placements - Spot Purchase,Third Party Payments,REVENUE
http://statistics.data.gov.uk/id/local-authority/00HY,Wiltshire Council,04/07/2012,5106145675,5416.92,Beach Lawns Care Home ,112383,BS23,Community Services,PI South Locality,Adult Residential Placements - Spot Purchase,Third Party Payments,REVENUE
http://statistics.data.gov.uk/id/local-authority/00HY,Wiltshire Council,04/07/2012,5106145677,3125.60,Beach Lawns Care Home ,112383,BS23,Community Services,CTPLD County CIC U65,Adult Residential Placements - Spot Purchase,Third Party Payments,REVENUE
http://statistics.data.gov.uk/id/local-authority/00HY,Wiltshire Council,04/07/2012,5106145679,3393.92,Beach Lawns Care Home ,112383,BS23,Community Services,PI North Locality,Adult Residential Placements - Spot Purchase,Third Party Payments,REVENUE
http://statistics.data.gov.uk/id/local-authority/00HY,Wiltshire Council,04/07/2012,5106145681,2663.92,Beach Lawns Care Home ,112383,BS23,Community Services,PI South Locality,Adult Residential Placements - Spot Purchase,Third Party Payments,REVENUE
http://statistics.data.gov.uk/id/local-authority/00HY,Wiltshire Council,04/07/2012,5106145683,4174.68,Beach Lawns Care Home ,112383,BS23,Community Services,PI South Locality,Adult Residential Placements - Spot Purchase,Third Party Payments,REVENUE
http://statistics.data.gov.uk/id/local-authority/00HY,Wiltshire Council,04/07/2012,5106145685,6317.92,Beach Lawns Care Home ,112383,BS23,Community Services,PI West Locality,Adult Residential Placements - Spot Purchase,Third Party Payments,REVENUE
http://statistics.data.gov.uk/id/local-authority/00HY,Wiltshire Council,04/07/2012,5106145690,3864.60,Beach Lawns Care Home ,112383,BS23,Community Services,PI West Locality,Adult Residential Placements - Spot Purchase,Third Party Payments,REVENUE
http://statistics.data.gov.uk/id/local-authority/00HY,Wiltshire Council,04/07/2012,5106145696,2720.00,Beach Lawns Care Home ,112383,BS23,Community Services,PI West Locality,Adult Residential Placements - Spot Purchase,Third Party Payments,REVENUE
http://statistics.data.gov.uk/id/local-authority/00HY,Wiltshire Council,06/07/2012,5106147651,3601.60,Beach Lawns Care Home ,112383,BS23,Community Services,PI South Locality,Adult Residential Placements - Spot Purchase,Third Party Payments,REVENUE
http://statistics.data.gov.uk/id/local-authority/00HY,Wiltshire Council,06/07/2012,5106147725,4664.40,Beach Lawns Care Home ,112383,BS23,Community Services,PI West Locality,Adult Residential Placements - Spot Purchase,Third Party Payments,REVENUE
http://statistics.data.gov.uk/id/local-authority/00HY,Wiltshire Council,06/07/2012,5106147909,3539.48,Beach Lawns Care Home ,112383,BS23,Community Services,CTPLD County CIC U65,Adult Residential Placements - Spot Purchase,Third Party Payments,REVENUE
http://statistics.data.gov.uk/id/local-authority/00HY,Wiltshire Council,11/07/2012,5106151722,2737.12,Beach Lawns Care Home ,112383,BS23,Community Services,PI North Locality,Adult Residential Placements - Spot Purchase,Third Party Payments,REVENUE
http://statistics.data.gov.uk/id/local-authority/00HY,Wiltshire Council,04/07/2012,5106145661,4048.00,Beamont Way Care Home ,112334,SP4 ,Community Services,CTPLD County CIC U65,Adult Residential Placements - Spot Purchase,Third Party Payments,REVENUE
http://statistics.data.gov.uk/id/local-authority/00HY,Wiltshire Council,04/07/2012,5106145663,4852.92,Beamont Way Care Home ,112334,SP4 ,Community Services,CTPLD County S75 U65,Adult Residential Placements - Spot Purchase,Third Party Payments,REVENUE
http://statistics.data.gov.uk/id/local-authority/00HY,Wiltshire Council,04/07/2012,5106145665,3301.24,Beamont Way Care Home ,112334,SP4 ,Community Services,CTPLD County CIC U65,Adult Residential Placements - Spot Purchase,Third Party Payments,REVENUE
http://statistics.data.gov.uk/id/local-authority/00HY,Wiltshire Council,04/07/2012,5106145667,3920.24,Beamont Way Care Home ,112334,SP4 ,Community Services,CTPLD County CIC U65,Adult Residential Placements - Spot Purchase,Third Party Payments,REVENUE
http://statistics.data.gov.uk/id/local-authority/00HY,Wiltshire Council,18/07/2012,1900872539,1554.55,Beaufort Minibus  and  Taxis Ltd ,101389,SN14,Neighbourhood & Planning,Mainstream Secondary,Transport Contracts,Third Party Payments,REVENUE
http://statistics.data.gov.uk/id/local-authority/00HY,Wiltshire Council,04/07/2012,5106147913,2918.00,Beck House ,123542,BS16,Community Services,CTPLD County CIC U65,Adult Residential Placements - Spot Purchase,Third Party Payments,REVENUE
http://statistics.data.gov.uk/id/local-authority/00HY,Wiltshire Council,04/07/2012,5106147915,2918.00,Beck House ,123542,BS16,Community Services,CTPLD County CIC U65,Adult Residential Placements - Spot Purchase,Third Party Payments,REVENUE
http://statistics.data.gov.uk/id/local-authority/00HY,Wiltshire Council,19/07/2012,5106153843,1188.00,Beck House ,123542,BS16,Community Services,CTPLD County CIC U65,Adult Day Care - Spot,Third Party Payments,REVENUE
http://statistics.data.gov.uk/id/local-authority/00HY,Wiltshire Council,19/07/2012,5106153845,1540.88,Beck House ,123542,BS16,Community Services,CTPLD County CIC U65,Adult Day Care - Spot,Third Party Payments,REVENUE
http://statistics.data.gov.uk/id/local-authority/00HY,Wiltshire Council,31/07/2012,5106159373,2557.28,Beck House ,123542,BS16,Community Services,CTPLD County CIC U65,Adult Residential Placements - Spot Purchase,Third Party Payments,REVENUE
http://statistics.data.gov.uk/id/local-authority/00HY,Wiltshire Council,31/07/2012,5106159375,2557.28,Beck House ,123542,BS16,Community Services,CTPLD County CIC U65,Adult Residential Placements - Spot Purchase,Third Party Payments,REVENUE
http://statistics.data.gov.uk/id/local-authority/00HY,Wiltshire Council,09/07/2012,5106137770,1275.65,Beeches Homecare Corsham Chippenham ,128852,SN13,Community Services,OP North Locality,Adult Domiciliary Care - Mileage,Third Party Payments,REVENUE
http://statistics.data.gov.uk/id/local-authority/00HY,Wiltshire Council,18/07/2012,5106153060,812.64,Beeches Homecare Corsham Chippenham ,128852,SN13,Community Services,MH AOWA North,Adult Domiciliary Care - Block,Third Party Payments,REVENUE
http://statistics.data.gov.uk/id/local-authority/00HY,Wiltshire Council,18/07/2012,5106153063,513.08,Beeches Homecare Corsham Chippenham ,128852,SN13,Community Services,OP North Locality,Adult Domiciliary Care - Block Contribution,Income,REVENUE
http://statistics.data.gov.uk/id/local-authority/00HY,Wiltshire Council,18/07/2012,5106153064,3097.70,Beeches Homecare Corsham Chippenham ,128852,SN13,Community Services,OP North Locality,Adult Domiciliary Care - Block,Third Party Payments,REVENUE
http://statistics.data.gov.uk/id/local-authority/00HY,Wiltshire Council,18/07/2012,5106153065,909.88,Beeches Homecare Corsham Chippenham ,128852,SN13,Community Services,OP North Locality,Adult Domiciliary Care - Block,Third Party Payments,REVENUE
http://statistics.data.gov.uk/id/local-authority/00HY,Wiltshire Council,11/07/2012,1900869462,1734.88,Beeline Coaches ,101673,.,Neighbourhood & Planning,Mainstream Secondary,Transport Contracts,Third Party Payments,REVENUE
http://statistics.data.gov.uk/id/local-authority/00HY,Wiltshire Council,18/07/2012,1900872568,684.06,Beeline Coaches ,101673,.,Neighbourhood & Planning,Public Transport,Transport Contracts,Third Party Payments,REVENUE
http://statistics.data.gov.uk/id/local-authority/00HY,Wiltshire Council,18/07/2012,1900872569,2762.98,Beeline Coaches ,101673,.,Neighbourhood & Planning,Public Transport,Transport Contracts,Third Party Payments,REVENUE
http://statistics.data.gov.uk/id/local-authority/00HY,Wiltshire Council,18/07/2012,1900872569,3557.67,Beeline Coaches ,101673,.,Neighbourhood & Planning,Mainstream 16+ FE,Transport Contracts,Third Party Payments,REVENUE
http://statistics.data.gov.uk/id/local-authority/00HY,Wiltshire Council,18/07/2012,1900872569,5336.50,Beeline Coaches ,101673,.,Neighbourhood & Planning,Mainstream Primary,Transport Contracts,Third Party Payments,REVENUE
http://statistics.data.gov.uk/id/local-authority/00HY,Wiltshire Council,18/07/2012,1900872569,26682.50,Beeline Coaches ,101673,.,Neighbourhood & Planning,Mainstream Secondary,Transport Contracts,Third Party Payments,REVENUE
http://statistics.data.gov.uk/id/local-authority/00HY,Wiltshire Council,18/07/2012,1900872570,915.12,Beeline Coaches ,101673,.,Neighbourhood & Planning,Mainstream Primary,Transport Contracts,Third Party Payments,REVENUE
http://statistics.data.gov.uk/id/local-authority/00HY,Wiltshire Council,18/07/2012,1900872570,2058.87,Beeline Coaches ,101673,.,Neighbourhood & Planning,Mainstream Secondary,Transport Contracts,Third Party Payments,REVENUE
http://statistics.data.gov.uk/id/local-authority/00HY,Wiltshire Council,18/07/2012,1900872572,2231.50,Beeline Coaches ,101673,.,Neighbourhood & Planning,Mainstream Secondary,Transport Contracts,Third Party Payments,REVENUE
http://statistics.data.gov.uk/id/local-authority/00HY,Wiltshire Council,18/07/2012,1900872574,917.70,Beeline Coaches ,101673,.,Neighbourhood & Planning,Mainstream Secondary,Transport Contracts,Third Party Payments,REVENUE
http://statistics.data.gov.uk/id/local-authority/00HY,Wiltshire Council,24/07/2012,1900874046,891.10,Beeline Coaches ,101673,.,Neighbourhood & Planning,Concessionary Fares,Compensation for Concessionary fares,Third Party Payments,REVENUE
http://statistics.data.gov.uk/id/local-authority/00HY,Wiltshire Council,18/07/2012,5106139880,692.00,BemroseBooth ,113983,HU7 ,Resources,DesignPrintTrowbridg,Printing External,Supplies and Services,REVENUE
http://statistics.data.gov.uk/id/local-authority/00HY,Wiltshire Council,09/07/2012,5106151074,4452.00,Benchmark ,113985,BA1 ,Resources,HR Org Dev/L&D,Publications / periodicals,Supplies and Services,REVENUE
http://statistics.data.gov.uk/id/local-authority/00HY,Wiltshire Council,24/07/2012,5106154655,3440.00,Benchmark ,113985,BA1 ,Resources,HR Org Dev/L&D,Publications / periodicals,Supplies and Services,REVENUE
http://statistics.data.gov.uk/id/local-authority/00HY,Wiltshire Council,10/07/2012,1900856158,643.72,Bibliotheca Intellident ,125688,SK8 ,Community Services,Lib General,Library Service,Supplies and Services,REVENUE
http://statistics.data.gov.uk/id/local-authority/00HY,Wiltshire Council,09/07/2012,1900860923,1594.07,Big O Productions ,130349,SK16,Neighbourhood & Planning,City Hall,City Hall Shows,Balance Sheet Accounts,REVENUE
http://statistics.data.gov.uk/id/local-authority/00HY,Wiltshire Council,04/07/2012,5106143782,3006.04,Birds Hill Nursing Home ,114024,BH15,Community Services,Home Loans,Adult Care - Home Loan Costs,Capital charges and Expenditure,REVENUE
http://statistics.data.gov.uk/id/local-authority/00HY,Wiltshire Council,06/07/2012,5106144696,3165.20,Bloomfield Care Centre ,114064,BS39,Community Services,MH OP West Locality,Adult Care Nursing Placements- Spot Purchase,Third Party Payments,REVENUE
http://statistics.data.gov.uk/id/local-authority/00HY,Wiltshire Council,05/07/2012,5106149287,3333.00,Blue Sky Fostering ,128079,SO51,Children & Education,External Placements,Adult / Child Care Agency Placement,Third Party Payments,REVENUE
http://statistics.data.gov.uk/id/local-authority/00HY,Wiltshire Council,05/07/2012,5106149288,3423.90,Blue Sky Fostering ,128079,SO51,Children & Education,External Placements,Adult / Child Care Agency Placement,Third Party Payments,REVENUE
http://statistics.data.gov.uk/id/local-authority/00HY,Wiltshire Council,06/07/2012,5106150019,3350.17,Blue Sky Fostering ,128079,SO51,Children & Education,External Placements,Adult / Child Care Agency Placement,Third Party Payments,REVENUE
http://statistics.data.gov.uk/id/local-authority/00HY,Wiltshire Council,06/07/2012,5106150020,3242.10,Blue Sky Fostering ,128079,SO51,Children & Education,External Placements,Adult / Child Care Agency Placement,Third Party Payments,REVENUE
http://statistics.data.gov.uk/id/local-authority/00HY,Wiltshire Council,06/07/2012,5106150216,3350.17,Blue Sky Fostering ,128079,SO51,Children & Education,External Placements,Adult / Child Care Agency Placement,Third Party Payments,REVENUE
http://statistics.data.gov.uk/id/local-authority/00HY,Wiltshire Council,06/07/2012,5106150217,3242.10,Blue Sky Fostering ,128079,SO51,Children & Education,External Placements,Adult / Child Care Agency Placement,Third Party Payments,REVENUE
http://statistics.data.gov.uk/id/local-authority/00HY,Wiltshire Council,12/07/2012,5106151997,6420.00,Blue Sky Fostering ,128079,SO51,Children & Education,External Placements,Adult / Child Care Agency Placement,Third Party Payments,REVENUE
http://statistics.data.gov.uk/id/local-authority/00HY,Wiltshire Council,12/07/2012,5106151998,6634.00,Blue Sky Fostering ,128079,SO51,Children & Education,External Placements,Adult / Child Care Agency Placement,Third Party Payments,REVENUE
http://statistics.data.gov.uk/id/local-authority/00HY,Wiltshire Council,12/07/2012,5106152000,3350.17,Blue Sky Fostering ,128079,SO51,Children & Education,External Placements,Adult / Child Care Agency Placement,Third Party Payments,REVENUE
http://statistics.data.gov.uk/id/local-authority/00HY,Wiltshire Council,12/07/2012,5106152005,3350.17,Blue Sky Fostering ,128079,SO51,Children & Education,External Placements,Adult / Child Care Agency Placement,Third Party Payments,REVENUE
http://statistics.data.gov.uk/id/local-authority/00HY,Wiltshire Council,13/07/2012,5106152223,3220.50,Blue Sky Fostering ,128079,SO51,Children & Education,External Placements,Adult / Child Care Agency Placement,Third Party Payments,REVENUE
http://statistics.data.gov.uk/id/local-authority/00HY,Wiltshire Council,13/07/2012,5106152224,3327.85,Blue Sky Fostering ,128079,SO51,Children & Education,External Placements,Adult / Child Care Agency Placement,Third Party Payments,REVENUE
http://statistics.data.gov.uk/id/local-authority/00HY,Wiltshire Council,04/07/2012,5106143708,1546.40,Bluebell Lodge Residential Care Hom ,110314,SN15,Community Services,Home Loans,Adult Care - Home Loan Costs,Capital charges and Expenditure,REVENUE
http://statistics.data.gov.uk/id/local-authority/00HY,Wiltshire Council,06/07/2012,5106144782,2160.00,Bluebell Lodge Residential Care Hom ,110314,SN15,Community Services,OP North Locality,Adult Residential Placements - Spot Purchase,Third Party Payments,REVENUE
http://statistics.data.gov.uk/id/local-authority/00HY,Wiltshire Council,06/07/2012,5106146853,1546.40,Bluebell Lodge Residential Care Hom ,110314,SN15,Community Services,OP North Locality,Adult Residential Placements - Spot Purchase,Third Party Payments,REVENUE
http://statistics.data.gov.uk/id/local-authority/00HY,Wiltshire Council,06/07/2012,5106146855,1920.00,Bluebell Lodge Residential Care Hom ,110314,SN15,Community Services,PI North Locality,Adult Residential Placements - Spot Purchase,Third Party Payments,REVENUE
http://statistics.data.gov.uk/id/local-authority/00HY,Wiltshire Council,16/07/2012,1900856154,1332.45,Bluecare ,114070,EC4M,Community Services,Hosp Salis Fndtn,Agency Staff,Employee Related,REVENUE
http://statistics.data.gov.uk/id/local-authority/00HY,Wiltshire Council,10/07/2012,1900856155,1056.45,Bluecare ,114070,EC4M,Community Services,Hosp Salis Fndtn,Agency Staff,Employee Related,REVENUE
http://statistics.data.gov.uk/id/local-authority/00HY,Wiltshire Council,23/07/2012,1900858330,1322.94,Bluecare ,114070,EC4M,Community Services,Hosp Salis Fndtn,Agency Staff,Employee Related,REVENUE
http://statistics.data.gov.uk/id/local-authority/00HY,Wiltshire Council,30/07/2012,1900861286,913.68,Bluecare ,114070,EC4M,Community Services,Hosp Salis Fndtn,Agency Staff,Employee Related,REVENUE
http://statistics.data.gov.uk/id/local-authority/00HY,Wiltshire Council,26/07/2012,5106156366,2430.00,Bluesky International Limited ,127694,LE67,Neighbourhood & Planning,Housing Contracts,Premises Related Other Maintenance Costs,Premises Related,REVENUE
http://statistics.data.gov.uk/id/local-authority/00HY,Wiltshire Council,12/07/2012,5106151847,1020.00,BodyTech Gym ,127752,BA15,Children & Education,YPSSKennet,Educational Fees,Supplies and Services,REVENUE
http://statistics.data.gov.uk/id/local-authority/00HY,Wiltshire Council,31/07/2012,5106153772,566.64,Bracknell Forest Council ,131223,RG12,Children & Education,TeamTeach,Staff Training Course Costs,Employee Related,REVENUE
http://statistics.data.gov.uk/id/local-authority/00HY,Wiltshire Council,06/07/2012,1900860842,791.67,Bradies Taxis ,100249,SN15,Neighbourhood & Planning,Mainstream Primary,Transport Contracts,Third Party Payments,REVENUE
http://statistics.data.gov.uk/id/local-authority/00HY,Wiltshire Council,06/07/2012,1900860842,791.67,Bradies Taxis ,100249,SN15,Neighbourhood & Planning,Mainstream 16+ FE,Transport Contracts,Third Party Payments,REVENUE
http://statistics.data.gov.uk/id/local-authority/00HY,Wiltshire Council,06/07/2012,1900860842,6486.53,Bradies Taxis ,100249,SN15,Neighbourhood & Planning,Connect 2 Wiltshire,Transport Contracts,Third Party Payments,REVENUE
http://statistics.data.gov.uk/id/local-authority/00HY,Wiltshire Council,06/07/2012,1900860846,1034.93,Bradies Taxis ,100249,SN15,Neighbourhood & Planning,Mainstream Secondary,Transport Contracts,Third Party Payments,REVENUE
http://statistics.data.gov.uk/id/local-authority/00HY,Wiltshire Council,24/07/2012,1900874027,1721.00,Bradies Taxis ,100249,SN15,Neighbourhood & Planning,Concessionary Fares,Compensation for Concessionary fares,Third Party Payments,REVENUE
http://statistics.data.gov.uk/id/local-authority/00HY,Wiltshire Council,06/07/2012,5106147390,4129.68,Brain Injury Rehabilitation Trust ,114147,WF6 ,Community Services,MH AOWA West,Adult Residential Placements - Spot Purchase,Third Party Payments,REVENUE
http://statistics.data.gov.uk/id/local-authority/00HY,Wiltshire Council,06/07/2012,5106147391,1769.84,Brain Injury Rehabilitation Trust ,114147,WF6 ,Community Services,Section 117-PCT Clnt,Adult Residential Placements - Spot Purchase,Third Party Payments,REVENUE
http://statistics.data.gov.uk/id/local-authority/00HY,Wiltshire Council,10/07/2012,5106143391,1032.92,Brakes Bros Ltd ,110344,TN24,Children & Education,UrchfontManor,Catering,Supplies and Services,REVENUE
http://statistics.data.gov.uk/id/local-authority/00HY,Wiltshire Council,24/07/2012,5106144189,610.07,Brakes Bros Ltd ,110344,TN24,Children & Education,UrchfontManor,Catering,Supplies and Services,REVENUE
http://statistics.data.gov.uk/id/local-authority/00HY,Wiltshire Council,31/07/2012,5106151052,750.62,Brakes Bros Ltd ,110344,TN24,Children & Education,UrchfontManor,Catering,Supplies and Services,REVENUE
http://statistics.data.gov.uk/id/local-authority/00HY,Wiltshire Council,30/07/2012,5106158041,192000.00,Bramble CC Ltd ,134204,SE1 ,Resources,Miscellaneous,Software Purchases,Supplies and Services,REVENUE
http://statistics.data.gov.uk/id/local-authority/00HY,Wiltshire Council,06/07/2012,5106144647,1943.24,Bramley House ,121488,DT10,Community Services,OP South Locality,Adult Residential Placements - Spot Purchase,Third Party Payments,REVENUE
http://statistics.data.gov.uk/id/local-authority/00HY,Wiltshire Council,06/07/2012,5106144649,1995.76,Bramley House ,121488,DT10,Community Services,OP South Locality,Adult Residential Placements - Spot Purchase,Third Party Payments,REVENUE
http://statistics.data.gov.uk/id/local-authority/00HY,Wiltshire Council,06/07/2012,5106144651,1909.60,Bramley House ,121488,DT10,Community Services,OP South Locality,Adult Residential Placements - Spot Purchase,Third Party Payments,REVENUE
http://statistics.data.gov.uk/id/local-authority/00HY,Wiltshire Council,06/07/2012,5106144827,2222.00,Bramley House ,121488,DT10,Community Services,OP South Locality,Adult Residential Placements - Spot Purchase,Third Party Payments,REVENUE
http://statistics.data.gov.uk/id/local-authority/00HY,Wiltshire Council,03/07/2012,1900859543,881.79,Brampton View Nursing Care Home ,133010,NN6 ,Community Services,OP North Locality,Adult Residential Place - Spot Purchase,Income,REVENUE
http://statistics.data.gov.uk/id/local-authority/00HY,Wiltshire Council,06/07/2012,5106146396,2900.00,Brampton View Nursing Care Home ,133010,NN6 ,Community Services,OP North Locality,Adult Residential Placements - Spot Purchase,Third Party Payments,REVENUE
